NUMERO_MANDATO;RIGA_MANDATO;QUIET;IMPORTO_RIGA;IMPORTO_MANDATO;BENEFICIARIO;CIG;TITOLO_PAGAMENTO;DATA_MANDATO;CAPITOLO;ARTICOLO;NUMERO_IMPEGNO;TITOLO;DESCR_TITOLO;LIVELLO_II;DESCR_LIVELLO_II;LIVELLO_III;DESCR_LIVELLO_III;LIVELLO_IV;DESCR_LIVELLO_IV;LIVELLO_V;DESCR_LIVELLO_V;DATA_PAG_EFF
1;1;0;2.733,08;2.733,08;AMMINISTRATORI C/INDENNITA' DI CARICA; ;gen-19;16/01/2019;20;0;3;1;Spese correnti;3;Acquisto di beni e servizi;2;Acquisto di servizi;1;Organi e incarichi istituzionali dell'amministrazione;1;Organi istituzionali dell'amministrazione - Indennità;16/01/2019
57;1;0;4.270,00;4.270,00;BOXXAPPS S.R.L.;ZA8213C753;SALDO Fatt.n. 1/180488  del 30/07/2018 SERVIZI X-STORAGE E X-GDPR 2018;18/01/2019;440;0;753;1;Spese correnti;3;Acquisto di beni e servizi;2;Acquisto di servizi;19;Servizi informatici e di telecomunicazioni;5;Servizi per i sistemi e relativa manutenzione;18/01/2019
58;1;0;29.914,13;29.914,13;AZIENDA U.L.S.S. N.2 MARCA TREVIGIANA; ;LIQ. SALDO DELLA QUOTA CAPITARIA ANNO 2018 RELATIVA ALLE ATTIVITA' DELEGATE DEI SERVIZI SOCIALI.;18/01/2019;5600;0;636;1;Spese correnti;4;Trasferimenti correnti;1;Trasferimenti correnti a Amministrazioni Pubbliche;2;Trasferimenti correnti a Amministrazioni Locali;11;Trasferimenti correnti a Aziende sanitarie locali  n.a.f.;18/01/2019
59;1;0;5.421,44;5.421,44;AZIENDA U.L.S.S. N.2 MARCA TREVIGIANA; ;LIQ. SECONDO ACCONTO DELLA QUOTA RICOVERI E AFFIDI PARI AL 40% DELLA PREVISIONE DELLA SPESA PER L'ANNO CORRENTE.;18/01/2019;5600;0;637;1;Spese correnti;4;Trasferimenti correnti;1;Trasferimenti correnti a Amministrazioni Pubbliche;2;Trasferimenti correnti a Amministrazioni Locali;11;Trasferimenti correnti a Aziende sanitarie locali  n.a.f.;18/01/2019
60;1;0;150;150;I.P. PAIN SRL;Z3525D710F;ACCONTO Fatt.n. 162  del 27/11/2018 FORNITURA MATERIALI DI PULIZIA .;18/01/2019;650;0;642;1;Spese correnti;3;Acquisto di beni e servizi;1;Acquisto di beni;2;Altri beni di consumo;999;Altri beni e materiali di consumo n.a.c.;18/01/2019
61;1;0;72;72;I.P. PAIN SRL;Z3525D710F;ACCONTO Fatt.n. 162  del 27/11/2018 FORNITURA MATERIALI DI PULIZIA .;18/01/2019;337;0;641;1;Spese correnti;3;Acquisto di beni e servizi;1;Acquisto di beni;2;Altri beni di consumo;999;Altri beni e materiali di consumo n.a.c.;18/01/2019
62;1;0;149;149;I.P. PAIN SRL;Z3525D710F;SALDO Fatt.n. 162  del 27/11/2018 FORNITURA MATERIALI DI PULIZIA .;18/01/2019;1081;0;643;1;Spese correnti;3;Acquisto di beni e servizi;1;Acquisto di beni;2;Altri beni di consumo;999;Altri beni e materiali di consumo n.a.c.;18/01/2019
63;1;0;1.000,00;1.000,00;SITA SRL;Z572555F8D;ACCONTO Fatt.n. 2265  del 30/11/2018 MANUTENZIONE LAMPADE E IMPIANTI DI EMERGENZA SCUOLE IN VIA EINAUDI - PATRIMONIO COMUNALE.;18/01/2019;2511;0;565;1;Spese correnti;3;Acquisto di beni e servizi;1;Acquisto di beni;2;Altri beni di consumo;999;Altri beni e materiali di consumo n.a.c.;18/01/2019
64;1;0;600;600;SITA SRL;Z572555F8D;ACCONTO Fatt.n. 2265  del 30/11/2018 MANUTENZIONE LAMPADE E IMPIANTI DI EMERGENZA SCUOLE IN VIA EINAUDI - PATRIMONIO COMUNALE.;18/01/2019;2509;0;564;1;Spese correnti;3;Acquisto di beni e servizi;2;Acquisto di servizi;9;Manutenzione ordinaria e riparazioni;4;Manutenzione ordinaria e riparazioni di impianti e macchinari;18/01/2019
65;1;0;250;250;SITA SRL;Z572555F8D;ACCONTO Fatt.n. 2265  del 30/11/2018 MANUTENZIONE LAMPADE E IMPIANTI DI EMERGENZA SCUOLE IN VIA EINAUDI - PATRIMONIO COMUNALE.;18/01/2019;2341;0;563;1;Spese correnti;3;Acquisto di beni e servizi;1;Acquisto di beni;2;Altri beni di consumo;999;Altri beni e materiali di consumo n.a.c.;18/01/2019
66;1;0;200;200;SITA SRL;Z572555F8D;ACCONTO Fatt.n. 2265  del 30/11/2018 MANUTENZIONE LAMPADE E IMPIANTI DI EMERGENZA SCUOLE IN VIA EINAUDI - PATRIMONIO COMUNALE.;18/01/2019;2339;0;562;1;Spese correnti;3;Acquisto di beni e servizi;2;Acquisto di servizi;9;Manutenzione ordinaria e riparazioni;4;Manutenzione ordinaria e riparazioni di impianti e macchinari;18/01/2019
67;1;0;200;200;SITA SRL;Z572555F8D;ACCONTO Fatt.n. 2265  del 30/11/2018 MANUTENZIONE LAMPADE E IMPIANTI DI EMERGENZA SCUOLE IN VIA EINAUDI - PATRIMONIO COMUNALE.;18/01/2019;1081;0;561;1;Spese correnti;3;Acquisto di beni e servizi;1;Acquisto di beni;2;Altri beni di consumo;999;Altri beni e materiali di consumo n.a.c.;18/01/2019
68;1;0;165,6;165,6;SITA SRL;Z572555F8D;SALDO Fatt.n. 2265  del 30/11/2018 MANUTENZIONE LAMPADE E IMPIANTI DI EMERGENZA SCUOLE IN VIA EINAUDI - PATRIMONIO COMUNALE.;18/01/2019;1079;0;560;1;Spese correnti;3;Acquisto di beni e servizi;2;Acquisto di servizi;9;Manutenzione ordinaria e riparazioni;1;Manutenzione ordinaria e riparazioni di mezzi di trasporto ad uso civile, di sicurezza e ordine pubblico;18/01/2019
69;1;0;3,9;3,9;VODAFONE OMNITEL N.V;Z8422011C0;SALDO Fatt.n. AI23161230  del 19/12/2018 SPESE TELEFONO PER SIM M2M GOLD PERIODO DAL 16 OTTOBRE AL 15 DICEMBRE 2018.;18/01/2019;340;0;50;1;Spese correnti;3;Acquisto di beni e servizi;2;Acquisto di servizi;5;Utenze e canoni;2;Telefonia mobile;18/01/2019
70;1;0;319,01;319,01;MINISTERO INTERNO; ;COMUNE DI CESSALTO - CORRISPETTIVO PER IL RILASCIO DI N. 19 CARTE D'IDENTITA' ELETTRONICHE - PERIODO 15-31 DICEMBRE 2018.;18/01/2019;822;0;756;1;Spese correnti;4;Trasferimenti correnti;1;Trasferimenti correnti a Amministrazioni Pubbliche;1;Trasferimenti correnti a Amministrazioni Centrali;1;Trasferimenti correnti a Ministeri;18/01/2019
71;1;0;59,9;59,9;CONDOMINIO CAMPIELLO;Z70243BF4F;LIQUIDAZIONE TERZA RATA A.2018-19 GESTIONE CENTRO POLIFUNZIONALE DI VIA ROMA. CONDOMINIO CAMPIELLO.;18/01/2019;1079;0;438;1;Spese correnti;3;Acquisto di beni e servizi;2;Acquisto di servizi;9;Manutenzione ordinaria e riparazioni;8;Manutenzione ordinaria e riparazioni di beni immobili;18/01/2019
72;1;0;220,1;220,1;CONDOMINIO CAMPIELLO;Z70243BF4F;LIQUIDAZIONE TERZA RATA A.2018-19 PER IL PATRIMONIO COMUNALE. GESTIONE CENTRO POLIFUNZIONALE DI VIA ROMA. CONDOMINIO CAMPIELLO.;18/01/2019;1080;0;439;1;Spese correnti;3;Acquisto di beni e servizi;2;Acquisto di servizi;5;Utenze e canoni;999;Utenze e canoni per altri servizi n.a.c.;18/01/2019
73;1;0;160;160;CONDOMINIO CAMPIELLO;Z70243BF4F;LIQUIDAZIONE TERZA RATA A.2018-19 PER IL PATRIMONIO COMUNALE. GESTIONE CENTRO POLIFUNZIONALE DI VIA ROMA. CONDOMINIO CAMPIELLO.;18/01/2019;1081;0;440;1;Spese correnti;3;Acquisto di beni e servizi;1;Acquisto di beni;2;Altri beni di consumo;1;Carta, cancelleria e stampati;18/01/2019
74;1;0;310;310;A.N.U.S.C.A.; ;ADESIONE ANUSCA ANNO 2019.;18/01/2019;821;0;674;1;Spese correnti;3;Acquisto di beni e servizi;2;Acquisto di servizi;9;Manutenzione ordinaria e riparazioni;11;Manutenzione ordinaria e riparazioni di altri beni materiali;18/01/2019
75;1;0;163,11;163,11;S.I.A.E.;Z962602CC9;SALDO Fatt.n. 1618041598  del 13/12/2018 DIRITTI SIAE CONCERTO GOSPEL IN DATA 8 DICEMBRE.;18/01/2019;3031;0;651;1;Spese correnti;3;Acquisto di beni e servizi;2;Acquisto di servizi;2;Organizzazione eventi, pubblicita` e servizi per trasferta;5;Organizzazione e partecipazione a manifestazioni e convegni;18/01/2019
76;1;0;128,2;128,2;FURLANETTO L. & C. SNC;Z5C2357C89;ACCONTO Fatt.n. 4  del 12/12/2018 SOSTITUZIONE INCONTRO ELETTRICO SERRATURA PORTA INGRESSO E REGOLAZIONE PORTA VILLA MARIA S.MARIA DI CAMPAGNA;18/01/2019;1079;0;226;1;Spese correnti;3;Acquisto di beni e servizi;2;Acquisto di servizi;9;Manutenzione ordinaria e riparazioni;8;Manutenzione ordinaria e riparazioni di beni immobili;18/01/2019
77;1;0;250;250;FURLANETTO L. & C. SNC;Z5C2357C89;SALDO Fatt.n. 4  del 12/12/2018 SOSTITUZIONE INCONTRO ELETTRICO SERRATURA PORTA INGRESSO E REGOLAZIONE PORTA VILLA MARIA S.MARIA DI CAMPAGNA;18/01/2019;1081;0;227;1;Spese correnti;3;Acquisto di beni e servizi;1;Acquisto di beni;2;Altri beni di consumo;999;Altri beni e materiali di consumo n.a.c.;18/01/2019
78;1;0;200;200;FURLANETTO L. & C. SNC;ZAA2261877;ACCONTO Fatt.n. 7  del 13/12/2018 MANUTENZIONE VARIE DI PORTE, FINESTRE, INFISSI DEL PATRIMONIO COMUNALE.;18/01/2019;1079;0;105;1;Spese correnti;3;Acquisto di beni e servizi;2;Acquisto di servizi;9;Manutenzione ordinaria e riparazioni;8;Manutenzione ordinaria e riparazioni di beni immobili;18/01/2019
79;1;0;200;200;FURLANETTO L. & C. SNC;ZAA2261877;ACCONTO Fatt.n. 7  del 13/12/2018 MANUTENZIONE VARIE DI PORTE, FINESTRE, INFISSI DEL PATRIMONIO COMUNALE.;18/01/2019;1081;0;106;1;Spese correnti;3;Acquisto di beni e servizi;1;Acquisto di beni;2;Altri beni di consumo;999;Altri beni e materiali di consumo n.a.c.;18/01/2019
80;1;0;200;200;FURLANETTO L. & C. SNC;ZAA2261877;ACCONTO Fatt.n. 7  del 13/12/2018 MANUTENZIONE VARIE DI PORTE, FINESTRE, INFISSI DEL PATRIMONIO COMUNALE.;18/01/2019;2341;0;108;1;Spese correnti;3;Acquisto di beni e servizi;1;Acquisto di beni;2;Altri beni di consumo;999;Altri beni e materiali di consumo n.a.c.;18/01/2019
81;1;0;215,12;215,12;FURLANETTO L. & C. SNC;ZAA2261877;ACCONTO Fatt.n. 7  del 13/12/2018 MANUTENZIONE VARIE DI PORTE, FINESTRE, INFISSI DEL PATRIMONIO COMUNALE.;18/01/2019;2509;0;109;1;Spese correnti;3;Acquisto di beni e servizi;2;Acquisto di servizi;9;Manutenzione ordinaria e riparazioni;8;Manutenzione ordinaria e riparazioni di beni immobili;18/01/2019
82;1;0;35,3;35,3;FURLANETTO L. & C. SNC;ZAA2261877;ACCONTO Fatt.n. 7  del 13/12/2018 MANUTENZIONE VARIE DI PORTE, FINESTRE, INFISSI DEL PATRIMONIO COMUNALE.;18/01/2019;2511;0;110;1;Spese correnti;3;Acquisto di beni e servizi;1;Acquisto di beni;2;Altri beni di consumo;999;Altri beni e materiali di consumo n.a.c.;18/01/2019
83;1;0;200;200;FURLANETTO L. & C. SNC;ZAA2261877;SALDO Fatt.n. 7  del 13/12/2018 MANUTENZIONE VARIE DI PORTE, FINESTRE, INFISSI DEL PATRIMONIO COMUNALE.;18/01/2019;2339;0;107;1;Spese correnti;3;Acquisto di beni e servizi;2;Acquisto di servizi;9;Manutenzione ordinaria e riparazioni;8;Manutenzione ordinaria e riparazioni di beni immobili;18/01/2019
84;1;0;951,6;951,6;FURLANETTO L. & C. SNC;Z0F25626CA;SALDO Fatt.n. 6  del 12/12/2018 RIPARAZIONE PARAPETTO PONTE CANALE PIAVON A SEGUITO SINISTRO DEL 30/09/2018.;18/01/2019;1082;0;570;1;Spese correnti;3;Acquisto di beni e servizi;2;Acquisto di servizi;9;Manutenzione ordinaria e riparazioni;8;Manutenzione ordinaria e riparazioni di beni immobili;18/01/2019
85;1;0;1.897,20;1.897,20;FURLANETTO L. & C. SNC;Z0524C64CD;ACCONTO Fatt.n. 5  del 12/12/2018 RIPARAZIONE PARAPETTO PONTE CANALE PIAVON A SEGUITO SINISTRO DEL 23/07/2018.;18/01/2019;1082;0;475;1;Spese correnti;3;Acquisto di beni e servizi;2;Acquisto di servizi;9;Manutenzione ordinaria e riparazioni;8;Manutenzione ordinaria e riparazioni di beni immobili;18/01/2019
86;1;0;250;250;FURLANETTO L. & C. SNC;Z0524C64CD;SALDO Fatt.n. 5  del 12/12/2018 RIPARAZIONE PARAPETTO PONTE CANALE PIAVON A SEGUITO SINISTRO DEL 23/07/2018.;18/01/2019;5910;0;476;1;Spese correnti;3;Acquisto di beni e servizi;2;Acquisto di servizi;9;Manutenzione ordinaria e riparazioni;8;Manutenzione ordinaria e riparazioni di beni immobili;18/01/2019
87;1;0;1.580,38;1.580,38;GLOBAL ENERGY S.R.L.; ;SALDO Fatt.n. PA-0022  del 17/12/2018 PROVENTI CONTO ENERGIA REALTIVO ALL'IMPIANTO FOTOVOLTAICO REALIZZATO PRESSO LA SCUOLA ELEMENTARE.;18/01/2019;2342;0;781;1;Spese correnti;4;Trasferimenti correnti;3;Trasferimenti correnti a Imprese;99;Trasferimenti correnti a altre imprese;999;Trasferimenti correnti a altre imprese;18/01/2019
88;1;0;1.019,26;1.019,26;GLOBAL ENERGY S.R.L.; ;SALDO Fatt.n. PA-0021  del 17/12/2018 PROVENTI CONTO ENERGIA RELATIVO ALL'IMPIANTO FOTOVOLTAICO REALIZZATO PRESSO IL PALAZZETTO DELLO SPORT.;18/01/2019;5291;0;782;1;Spese correnti;4;Trasferimenti correnti;3;Trasferimenti correnti a Imprese;99;Trasferimenti correnti a altre imprese;999;Trasferimenti correnti a altre imprese;18/01/2019
89;1;0;1.134,60;1.134,60;HALLEY VENETO SRL;Z3324412E0;SALDO Fatt.n. 1/181447  del 17/12/2018 AFFIDAMENTO INCARICO OPERAZIONI PRE-SUBENTRO E SUBENTRO ANPR.;18/01/2019;440;0;335;1;Spese correnti;3;Acquisto di beni e servizi;2;Acquisto di servizi;19;Servizi informatici e di telecomunicazioni;1;Gestione e manutenzione applicazioni;18/01/2019
90;1;0;207,4;207,4;PIOVESAN MORENO;Z2A2639C92;ACCONTO Fatt.n. 07  del 18/12/2018 INTERVENTI DI TUMULAZIONE IN LOCULI PRESSO CIMITERO;18/01/2019;4139;0;492;1;Spese correnti;3;Acquisto di beni e servizi;2;Acquisto di servizi;9;Manutenzione ordinaria e riparazioni;8;Manutenzione ordinaria e riparazioni di beni immobili;18/01/2019
91;1;0;244;244;PIOVESAN MORENO;Z2A2639C92;ACCONTO Fatt.n. 07  del 18/12/2018 INTERVENTI DI TUMULAZIONE IN LOCULI PRESSO CIMITERO;18/01/2019;4139;0;649;1;Spese correnti;3;Acquisto di beni e servizi;2;Acquisto di servizi;9;Manutenzione ordinaria e riparazioni;4;Manutenzione ordinaria e riparazioni di impianti e macchinari;18/01/2019
92;1;0;36,6;36,6;PIOVESAN MORENO;Z2A2639C92;SALDO Fatt.n. 07  del 18/12/2018 INTERVENTI DI TUMULAZIONE IN LOCULI PRESSO CIMITERO;18/01/2019;4139;0;680;1;Spese correnti;3;Acquisto di beni e servizi;2;Acquisto di servizi;9;Manutenzione ordinaria e riparazioni;4;Manutenzione ordinaria e riparazioni di impianti e macchinari;18/01/2019
93;1;0;841,8;841,8;STUDIO CAVAGGIONI SCARL;Z7420D82FD;SALDO Fatt.n. 374/FE/2018  del 21/12/2018 RICOGNIZIONE CESPITI DI PROPRIETA' COMUNALE-RELAZIONE DI STIMA DI RETI DI IMPIANTI E DEI CONSEGUENTI VALORI ECONOMICI.;18/01/2019;640;0;692;1;Spese correnti;3;Acquisto di beni e servizi;2;Acquisto di servizi;11;Prestazioni professionali e specialistiche;999;Altre prestazioni professionali e specialistiche n.a.c.;18/01/2019
94;1;0;47,4;120,48;WIND TRE SPA;Z2F21F767A;SALDO Fatt.n. 2018E000010622  del 21/12/2018 SPESE TELEFONO TRAFFICO PERIODO DAL 01/10/18 AL 30/11/18.;18/01/2019;340;0;36;1;Spese correnti;3;Acquisto di beni e servizi;2;Acquisto di servizi;5;Utenze e canoni;1;Telefonia fissa;18/01/2019
94;2;0;73,08;120,48;WIND TRE SPA;Z2F21F767A;SALDO Fatt.n. 2018E000010623  del 21/12/2018 SPESE TELEFONO PER CANONE ADSL AZIENDE PERIODO 01/10/18-30/11/18.;18/01/2019;340;0;36;1;Spese correnti;3;Acquisto di beni e servizi;2;Acquisto di servizi;5;Utenze e canoni;1;Telefonia fissa;18/01/2019
95;1;0;1.643,95;1.643,95;SAVNO - SERVIZI AMBIENTALI VENETO NORD ORIENTALE SRL; ;COMUNE DI CESSALTO - TRASFERIMENTO CONTRIBUTO DA MIUR PER TARI SCUOLE 2018.;18/01/2019;4672;0;747;1;Spese correnti;4;Trasferimenti correnti;1;Trasferimenti correnti a Amministrazioni Pubbliche;2;Trasferimenti correnti a Amministrazioni Locali;18;Trasferimenti correnti a Consorzi di enti locali;18/01/2019
96;1;0;2.000,00;2.000,00;A.S.D. CESSALTO VOLLEY 1972; ;LIQUIDAZIONE CONTRIBUTO GESTIONE IMPIANTI SPORTIVI DI VIA EINAUDI - PALAZZETTO DELLO SPORT, CAMPO DA BEACH VOLLEY E RAMPA DA SKATEBOARD STAGIONE 18/19.;18/01/2019;5289;0;30;1;Spese correnti;4;Trasferimenti correnti;4;Trasferimenti correnti a Istituzioni Sociali Private;1;Trasferimenti correnti a Istituzioni Sociali Private;1;Trasferimenti correnti a Istituzioni Sociali Private;18/01/2019
97;1;0;100;100;SCUOLA DELL'INFANZIA MARIA ASSUNTA; ;"LIQUIDAZIONE CONTRIBUTO PER ORGANIZZAZIONE ""PAN E VIN DEI PAPA'"" IN DATA 05.01.2019.";18/01/2019;5330;0;632;1;Spese correnti;4;Trasferimenti correnti;4;Trasferimenti correnti a Istituzioni Sociali Private;1;Trasferimenti correnti a Istituzioni Sociali Private;1;Trasferimenti correnti a Istituzioni Sociali Private;18/01/2019
98;1;0;49,98;49,98;V.E.R.I.T.A.S. SPA;Z8022005E3;SALDO Fatt.n. 810000317009  del 27/12/2018 SERVIZIO IDRICO INTEGRATO PERIODO 01.11.2018-31.12.2018 SEDE MUNICIPALE.;23/01/2019;340;0;45;1;Spese correnti;3;Acquisto di beni e servizi;2;Acquisto di servizi;5;Utenze e canoni;5;Acqua;23/01/2019
99;1;0;0,34;39,9;V.E.R.I.T.A.S. SPA;Z8022005E3;S.DO FT.810000317283 27/12/18 SERV.IDR.INT.PER.10.05.18-31.12.18 CIMIT.VIA CHIESA.;23/01/2019;4140;0;49;1;Spese correnti;3;Acquisto di beni e servizi;2;Acquisto di servizi;5;Utenze e canoni;5;Acqua;23/01/2019
99;2;0;17,26;39,9;V.E.R.I.T.A.S. SPA;Z8022005E3;S.DO FT.810000317282 27/12/18 SERV.IDR.INT.PER.05.10.18-31.12.18 CIM.S.M.DI CAMP.;23/01/2019;4140;0;49;1;Spese correnti;3;Acquisto di beni e servizi;2;Acquisto di servizi;5;Utenze e canoni;5;Acqua;23/01/2019
99;3;0;22,3;39,9;V.E.R.I.T.A.S. SPA;Z8022005E3;S.DO FT.810000317281 27/12/18 SERV.IDR.INT.PER.05.10.18-31.12.18 CIMIT.;23/01/2019;4140;0;49;1;Spese correnti;3;Acquisto di beni e servizi;2;Acquisto di servizi;5;Utenze e canoni;5;Acqua;23/01/2019
100;1;0;102,86;102,86;V.E.R.I.T.A.S. SPA;Z8022005E3;ACCONTO Fatt.n. 810000317007  del 27/12/2018 SERVIZIO IDRICO INTEGRATO PERIODO 05.05.2018-31.12.2018 SCUOLA MEDIA VIA MAGNADOLA.;23/01/2019;2510;0;48;1;Spese correnti;3;Acquisto di beni e servizi;2;Acquisto di servizi;5;Utenze e canoni;5;Acqua;23/01/2019
101;1;0;158,29;158,29;V.E.R.I.T.A.S. SPA;Z8022005E3;SALDO Fatt.n. 810000317007  del 27/12/2018 SERVIZIO IDRICO INTEGRATO PERIODO 05.05.2018-31.12.2018 SCUOLA MEDIA VIA MAGNADOLA.;23/01/2019;1080;0;46;1;Spese correnti;3;Acquisto di beni e servizi;2;Acquisto di servizi;5;Utenze e canoni;5;Acqua;23/01/2019
102;1;0;0,34;29,22;V.E.R.I.T.A.S. SPA;Z8022005E3;S.DO FT.810000317008 27/12/18 SERV.IDR.INT.PERIODO 08.05.18-31.12.18  EX SC.P.ZZA MARTIRI DELLA LIBERTA'.;23/01/2019;1080;0;46;1;Spese correnti;3;Acquisto di beni e servizi;2;Acquisto di servizi;5;Utenze e canoni;5;Acqua;23/01/2019
102;2;0;28,88;29,22;V.E.R.I.T.A.S. SPA;Z8022005E3;S.DO FT.810000317271 27/12/18 SERV.IDR.INT.PER.05.10.18-31.12.18 CASERMA CARAB.VIA ISONZO.;23/01/2019;1080;0;46;1;Spese correnti;3;Acquisto di beni e servizi;2;Acquisto di servizi;5;Utenze e canoni;5;Acqua;23/01/2019
103;1;0;0,19;14,56;V.E.R.I.T.A.S. SPA;Z8022005E3;S.DO FT.810000316879 27/12/18 SERV.IDR.INT.PER.16.10.17-31.12.18 AREA VERDE VIA GONELLE.;23/01/2019;1080;0;46;1;Spese correnti;3;Acquisto di beni e servizi;2;Acquisto di servizi;5;Utenze e canoni;5;Acqua;23/01/2019
103;2;0;0,5;14,56;V.E.R.I.T.A.S. SPA;Z8022005E3;S.DO FT.810000317389 27/12/18 SERV.IDR.INT.PER.10.05.18-31.12.18 COLON.P.ZZA D.ANDREAZZA.;23/01/2019;1080;0;46;1;Spese correnti;3;Acquisto di beni e servizi;2;Acquisto di servizi;5;Utenze e canoni;5;Acqua;23/01/2019
103;3;0;13,87;14,56;V.E.R.I.T.A.S. SPA;Z8022005E3;S.DO FT.810000316968 27/12/18 SERV.IDR.INT.PER.01.11.18-31.12.18 PARC.VIA MAGNADOLA.;23/01/2019;1080;0;46;1;Spese correnti;3;Acquisto di beni e servizi;2;Acquisto di servizi;5;Utenze e canoni;5;Acqua;23/01/2019
104;1;0;0,19;31,86;V.E.R.I.T.A.S. SPA;Z8022005E3;S.DO FT.810000317315 27/12/18 SER.IDR.INT.PER.05.10.18-31.12.18 VIA CALNOVA BOSCHI.;23/01/2019;1080;0;46;1;Spese correnti;3;Acquisto di beni e servizi;2;Acquisto di servizi;5;Utenze e canoni;5;Acqua;23/01/2019
104;2;0;0,95;31,86;V.E.R.I.T.A.S. SPA;Z8022005E3;S.DO FT.810000316890 27/12/18 SER.IDR INT.PER.01.11.18-31.12.18 AREA CARD VIA PASCOLI.;23/01/2019;1080;0;46;1;Spese correnti;3;Acquisto di beni e servizi;2;Acquisto di servizi;5;Utenze e canoni;5;Acqua;23/01/2019
104;3;0;30,72;31,86;V.E.R.I.T.A.S. SPA;Z8022005E3;S.DO FT.810000317373 27/12/18 SER.IDR.INT.PER.05.10.18-31.12.18 AREA VERDE VIA ROMA.;23/01/2019;1080;0;46;1;Spese correnti;3;Acquisto di beni e servizi;2;Acquisto di servizi;5;Utenze e canoni;5;Acqua;23/01/2019
105;1;0;0,11;221,03;V.E.R.I.T.A.S. SPA;Z8022005E3;S.DO FT.810000317316 27/12/18 SER.IDR.INT.PER.08.05.18-04.12.18 P.ZZA MARTIRI DELLA LIBERTA';23/01/2019;1080;0;46;1;Spese correnti;3;Acquisto di beni e servizi;2;Acquisto di servizi;5;Utenze e canoni;5;Acqua;23/01/2019
105;2;0;0,19;221,03;V.E.R.I.T.A.S. SPA;Z8022005E3;S.DO FT.810000317254 27/12/18 SER.IDR.INT.PER.08.05.18-31.12.18 FONTANA P.ZZA MARTIRI DELLA LIBERTA'.;23/01/2019;1080;0;46;1;Spese correnti;3;Acquisto di beni e servizi;2;Acquisto di servizi;5;Utenze e canoni;5;Acqua;23/01/2019
105;3;0;220,73;221,03;V.E.R.I.T.A.S. SPA;Z8022005E3;S.DO FT.810000316831 27/12/18 SER.IDR.INT.PER.10.05.18-31.12.18 COND.VIA CHIESA.;23/01/2019;1080;0;46;1;Spese correnti;3;Acquisto di beni e servizi;2;Acquisto di servizi;5;Utenze e canoni;5;Acqua;23/01/2019
106;1;0;0,19;30,34;V.E.R.I.T.A.S. SPA;Z8022005E3;S.DO FT.810000317311 27/12/18 SER.IDR.INT.PER.05.05.18-31.12.18 PARC.VIA ROMA;23/01/2019;1080;0;46;1;Spese correnti;3;Acquisto di beni e servizi;2;Acquisto di servizi;5;Utenze e canoni;5;Acqua;23/01/2019
106;2;0;0,65;30,34;V.E.R.I.T.A.S. SPA;Z8022005E3;S.DO FT.810000317033 27/12/18 SER.IDR.INT.PER.05.05.18-31.12.18 BIBLIOTECA.;23/01/2019;1080;0;46;1;Spese correnti;3;Acquisto di beni e servizi;2;Acquisto di servizi;5;Utenze e canoni;5;Acqua;23/01/2019
106;3;0;29,5;30,34;V.E.R.I.T.A.S. SPA;Z8022005E3;S.DO FT.810000317010 27/12/18 SER.IDR.INT.PER.08.05.18-31.12.18 P.ZZA DEL SANTO VOLTO.;23/01/2019;1080;0;46;1;Spese correnti;3;Acquisto di beni e servizi;2;Acquisto di servizi;5;Utenze e canoni;5;Acqua;23/01/2019
107;1;0;0,19;131,79;V.E.R.I.T.A.S. SPA;Z8022005E3;S.DO FT.810000316966 27/12/18 SERV.IDR.INT.PER.01.11.18-31.12.18 FONTANA VIA DANTE ALIGHIERI.;23/01/2019;1080;0;46;1;Spese correnti;3;Acquisto di beni e servizi;2;Acquisto di servizi;5;Utenze e canoni;5;Acqua;23/01/2019
107;2;0;131,6;131,79;V.E.R.I.T.A.S. SPA;Z8022005E3;S.DO FT.810000317006 27/12/18 SERV.IDR.INT.PER.05.10.18-31.12.18 VILLA MARIA DI VIA MAGGIORE.;23/01/2019;1080;0;46;1;Spese correnti;3;Acquisto di beni e servizi;2;Acquisto di servizi;5;Utenze e canoni;5;Acqua;23/01/2019
108;1;0;-0,12;19,28;V.E.R.I.T.A.S. SPA;Z8022005E3;S.DO FT.810000317023 27/12/18 N.C.SERV.IDR.INT05.05.18-31.12.18 C.ANZ.VIA MARCONI.;24/01/2019;1080;0;46;1;Spese correnti;3;Acquisto di beni e servizi;2;Acquisto di servizi;5;Utenze e canoni;5;Acqua;24/01/2019
108;2;0;0,49;19,28;V.E.R.I.T.A.S. SPA;Z8022005E3;S.DO FT.810000317270 27/12/18 SER.IDR.INT.16.10.17-31.12.18 UT.VIA ISONZO.;24/01/2019;1080;0;46;1;Spese correnti;3;Acquisto di beni e servizi;2;Acquisto di servizi;5;Utenze e canoni;5;Acqua;24/01/2019
108;3;0;18,91;19,28;V.E.R.I.T.A.S. SPA;Z8022005E3;S.DO FT.810000317087 27/12/18 SER.IDR.INT.01.11.18-31.12.18 AREA VERDE VIA PAPA LUC.;24/01/2019;1080;0;46;1;Spese correnti;3;Acquisto di beni e servizi;2;Acquisto di servizi;5;Utenze e canoni;5;Acqua;24/01/2019
109;1;0;149,7;149,7;COOP ALLEANZA 3.0; ;SALDO Fatt.n. 3J0000542  del 27/12/2018 FORNITURA TESTI SCOLASTICI SCUOLA PRIMARIA 2018/2019;24/01/2019;2360;0;308;1;Spese correnti;3;Acquisto di beni e servizi;1;Acquisto di beni;2;Altri beni di consumo;999;Altri beni e materiali di consumo n.a.c.;24/01/2019
110;1;0;33.152,90;33.152,90;NUOVA CARLET SRL;75562964B8;SALDO Fatt.n. 37/E  del 28/12/2018 LAVORI DI COSTRUZIONE LOCULI E URNE NEL CIMITERO DI CESSALTO - CIG 75562964B8 CUP D58C18000010004 - CERTIFICATO DI PAGAMENTO NR. 1;24/01/2019;9000;0;415;2;Spese in conto capitale;2;Investimenti fissi lordi e acquisto di terreni;1;Beni materiali;9;Beni immobili;15;Cimiteri;24/01/2019
111;1;0;93,94;93,94;COMPASS PUBBLICITA' SAS;ZF826029C9;SALDO Fatt.n. 13PA  del 28/11/2018 FORNITURA PERGAMENA STAMPATA CON NASTRINO E TARGA COMPRESA DI DISTANZIATORI;24/01/2019;40;0;617;1;Spese correnti;3;Acquisto di beni e servizi;1;Acquisto di beni;2;Altri beni di consumo;9;Beni per attività di rappresentanza;24/01/2019
112;1;0;52,73;52,73;ISEPPON S.R.L.; ;SALDO Fatt.n. 29/18  del 31/12/2018 FORNITURA MATERIALE VARIO PER MANUTENZIONI;24/01/2019;5911;0;790;1;Spese correnti;3;Acquisto di beni e servizi;1;Acquisto di beni;2;Altri beni di consumo;999;Altri beni e materiali di consumo n.a.c.;24/01/2019
113;1;0;256,2;256,2;ISEPPON S.R.L.;ZBD266D687;SALDO Fatt.n. 30/18  del 31/12/2018 NOLEGGIO MINIESCAVATOREPER INUMAZIONE CIMITERO CAPOLUOGO.;24/01/2019;4139;0;710;1;Spese correnti;3;Acquisto di beni e servizi;2;Acquisto di servizi;9;Manutenzione ordinaria e riparazioni;4;Manutenzione ordinaria e riparazioni di impianti e macchinari;24/01/2019
114;1;0;46,36;512,25;SPIGAS SRL;Z2D21ED429;S.DO FT.PA079855/2018 31/12/18 FORN.GAS.NOVEMBRE 18 IMMOB.CENTRO ANZIANI VIA MARCONI.;24/01/2019;1080;0;51;1;Spese correnti;3;Acquisto di beni e servizi;2;Acquisto di servizi;5;Utenze e canoni;6;Gas;24/01/2019
114;2;0;465,89;512,25;SPIGAS SRL;Z2D21ED429;S.DO FT.PA079854/2018 31/12/18 FORN.GAS NOVEMBRE 18 IMMOB. VILLA MARIA VIA MAGGIORE.;24/01/2019;1080;0;51;1;Spese correnti;3;Acquisto di beni e servizi;2;Acquisto di servizi;5;Utenze e canoni;6;Gas;24/01/2019
115;1;0;432,37;432,37;DOLOMITI ENERGIA SPA;7142067C20;SALDO Fatt.n. 41804895460  del 28/12/2018 FORNITURA ENERGIA ELETTRICA MESE DI NOVEMBRE 2018 SEDE MUNICIPALE P.ZZA MARTIRI DELLA LIBERTA';24/01/2019;340;0;547;1;Spese correnti;3;Acquisto di beni e servizi;2;Acquisto di servizi;5;Utenze e canoni;999;Utenze e canoni per altri servizi n.a.c.;24/01/2019
116;1;0;99,03;206,82;DOLOMITI ENERGIA SPA;7142067C20;S.DO FT.41804895452 28/12/18 FORN.ENERGIA ELET NOVEMBRE 18 IMP.IRRIG.VIA PASCOLI.;24/01/2019;1130;0;655;1;Spese correnti;3;Acquisto di beni e servizi;2;Acquisto di servizi;5;Utenze e canoni;4;Energia elettrica;24/01/2019
116;2;0;107,79;206,82;DOLOMITI ENERGIA SPA;7142067C20;S.DO FT.41804895456 28/12/18 FORN.ENERGIA ELET.NOVEMBRE 18 IMP.IRRIGAZ.VIA PASCOLI.;24/01/2019;1130;0;655;1;Spese correnti;3;Acquisto di beni e servizi;2;Acquisto di servizi;5;Utenze e canoni;4;Energia elettrica;24/01/2019
117;1;0;366,15;366,15;DOLOMITI ENERGIA SPA;7142067C20;SALDO Fatt.n. 41804895453  del 28/12/2018 FORNITURA ENERGIA ELETTRICA MESE DI NOVEMBRE 2018 UTENZA SCUOLA ELEMENTARE.;24/01/2019;2340;0;550;1;Spese correnti;3;Acquisto di beni e servizi;2;Acquisto di servizi;5;Utenze e canoni;999;Utenze e canoni per altri servizi n.a.c.;24/01/2019
118;1;0;576,74;576,74;DOLOMITI ENERGIA SPA;7142067C20;SALDO Fatt.n. 41804895461  del 28/12/2018 FORNITURA ENERGIA ELETTRICA MESE DI NOVEMBRE 2018 UTENZA SCUOLA MEDIA.;24/01/2019;2510;0;551;1;Spese correnti;3;Acquisto di beni e servizi;2;Acquisto di servizi;5;Utenze e canoni;999;Utenze e canoni per altri servizi n.a.c.;24/01/2019
119;1;0;570,42;570,42;DOLOMITI ENERGIA SPA;7142067C20;SALDO Fatt.n. 41804895465  del 28/12/2018 FORNITURA ENERGIA ELETTRICA MESE DI NOVEMBRE 2018 PALAZZETTO DELLO SPORT VIA G.GALILEI;24/01/2019;5290;0;553;1;Spese correnti;3;Acquisto di beni e servizi;2;Acquisto di servizi;5;Utenze e canoni;999;Utenze e canoni per altri servizi n.a.c.;24/01/2019
120;1;0;89,95;190,21;DOLOMITI ENERGIA SPA;7142067C20;S.DO FT.41804891100 28/12/18 FORN.ENERGIA ELET.NOVEMBRE 18 P.ILLUM.P.ZZA MARTIRI DELLA LIBERTA';24/01/2019;6000;0;554;1;Spese correnti;3;Acquisto di beni e servizi;2;Acquisto di servizi;5;Utenze e canoni;999;Utenze e canoni per altri servizi n.a.c.;24/01/2019
120;2;0;100,26;190,21;DOLOMITI ENERGIA SPA;7142067C20;S.DO FT.41804891101 28/12/18 FORN.ENERGIA ELET.NOVEMBRE 18 P.ILLUMINAZIONE.;24/01/2019;6000;0;554;1;Spese correnti;3;Acquisto di beni e servizi;2;Acquisto di servizi;5;Utenze e canoni;999;Utenze e canoni per altri servizi n.a.c.;24/01/2019
121;1;0;502,68;9.709,85;DOLOMITI ENERGIA SPA;7142067C20;S.DO FT.41804895457 28/12/18 FORN.ENERGIA ELET.NOVEMBRE 18 I.PUBBLICA VIA MAGGIORE 115/X;24/01/2019;6000;0;554;1;Spese correnti;3;Acquisto di beni e servizi;2;Acquisto di servizi;5;Utenze e canoni;999;Utenze e canoni per altri servizi n.a.c.;24/01/2019
121;2;0;9.207,17;9.709,85;DOLOMITI ENERGIA SPA;7142067C20;S.DO FT.41804888293 28/12/18 FORN.ENERGIA ELET.NOVEMBRE 18 ILLUMINAZIONE PUBBLICA.;24/01/2019;6000;0;554;1;Spese correnti;3;Acquisto di beni e servizi;2;Acquisto di servizi;5;Utenze e canoni;999;Utenze e canoni per altri servizi n.a.c.;24/01/2019
122;1;0;35,82;142,03;DOLOMITI ENERGIA SPA;7142067C20;S.DO FT.41804895464 28/12/18 FORN.ENERGIA ELET.NOVEMBRE 18 CIMIT.S.ANASTASIO;24/01/2019;4140;0;656;1;Spese correnti;3;Acquisto di beni e servizi;2;Acquisto di servizi;5;Utenze e canoni;4;Energia elettrica;24/01/2019
122;2;0;45,51;142,03;DOLOMITI ENERGIA SPA;7142067C20;S.DO FT.41804895462 28/12/18 FORN.ENERGIA ELET.NOVEMBRE 18 CIMIT.S.M.CAMP.VIA MAGGIORE;24/01/2019;4140;0;656;1;Spese correnti;3;Acquisto di beni e servizi;2;Acquisto di servizi;5;Utenze e canoni;4;Energia elettrica;24/01/2019
122;3;0;60,7;142,03;DOLOMITI ENERGIA SPA;7142067C20;S.DO FT.41804895463  28/12/18 FORN.ENERGIA ELET.NOVEMBRE 18 CIMIT.VIA U.FOSCOLO 3X;24/01/2019;4140;0;656;1;Spese correnti;3;Acquisto di beni e servizi;2;Acquisto di servizi;5;Utenze e canoni;4;Energia elettrica;24/01/2019
123;1;0;27,9;94,63;DOLOMITI ENERGIA SPA;7142067C20;S.DO FT.41804895449 28/12/18 FORN.ENERGIA ELET.NOVEMBRE 18 SERV.SCALE COND.VIA CHIESA;24/01/2019;1080;0;654;1;Spese correnti;3;Acquisto di beni e servizi;2;Acquisto di servizi;5;Utenze e canoni;4;Energia elettrica;24/01/2019
123;2;0;66,73;94,63;DOLOMITI ENERGIA SPA;7142067C20;S.DO FT.41804895459 28/12/18 FORN.ENERGIA ELET.NOVEMBRE 18 MAGAZZINO P.ZZA MARTIRI DELLA LIBERTA';24/01/2019;1080;0;654;1;Spese correnti;3;Acquisto di beni e servizi;2;Acquisto di servizi;5;Utenze e canoni;4;Energia elettrica;24/01/2019
124;1;0;32,57;70,95;DOLOMITI ENERGIA SPA;7142067C20;S.DO FT.41804895454 28/12/18 FORN.ENERGIA ELET.MESE DI NOVEMBRE 18 SEDE AVIS VIA A.DIAZ;24/01/2019;1080;0;654;1;Spese correnti;3;Acquisto di beni e servizi;2;Acquisto di servizi;5;Utenze e canoni;4;Energia elettrica;24/01/2019
124;2;0;38,38;70,95;DOLOMITI ENERGIA SPA;7142067C20;S.DO FT.41804895451 28/12/18 FORN.ENERGIA ELET.MESE DI NOVEMBRE 18 AMB.VIA CHIESA.;24/01/2019;1080;0;654;1;Spese correnti;3;Acquisto di beni e servizi;2;Acquisto di servizi;5;Utenze e canoni;4;Energia elettrica;24/01/2019
125;1;0;99,32;579,67;DOLOMITI ENERGIA SPA;7142067C20;S.DO FT.41804895455 28/12/18 FORN.ENERGIA ELET.MESE DI NOVEMBRE 18 CENTRO SOCIALE + BIBLIOTECA VIA DIAZ;24/01/2019;1080;0;654;1;Spese correnti;3;Acquisto di beni e servizi;2;Acquisto di servizi;5;Utenze e canoni;4;Energia elettrica;24/01/2019
125;2;0;480,35;579,67;DOLOMITI ENERGIA SPA;7142067C20;S.DO FT.41804895448  28/12/18 FORN.ENERGIA ELET.MESE DI NOVEMBRE 18 VILLA MARIA VIA MAGGIORE;24/01/2019;1080;0;654;1;Spese correnti;3;Acquisto di beni e servizi;2;Acquisto di servizi;5;Utenze e canoni;4;Energia elettrica;24/01/2019
126;1;0;41,98;271,54;DOLOMITI ENERGIA SPA;7142067C20;S.DO FT.41804895450 28/12/18 FORN.ENERGIA ELET.NOVEMBRE 18 CENTRO SOC.VIA CHIESA;24/01/2019;1080;0;654;1;Spese correnti;3;Acquisto di beni e servizi;2;Acquisto di servizi;5;Utenze e canoni;4;Energia elettrica;24/01/2019
126;2;0;42,5;271,54;DOLOMITI ENERGIA SPA;7142067C20;S.DO FT.41804895447 28/12/18 FORN.ENERGIA ELET.NOVEMBRE 18 CENTRO ANZIANI.;24/01/2019;1080;0;654;1;Spese correnti;3;Acquisto di beni e servizi;2;Acquisto di servizi;5;Utenze e canoni;4;Energia elettrica;24/01/2019
126;3;0;187,06;271,54;DOLOMITI ENERGIA SPA;7142067C20;S.DO FT.41804895458 28/12/18 FORN.ENERGIA ELET.NOVEMBRE 18 EX SCUOLA P.ZZA MARTIRI;24/01/2019;1080;0;654;1;Spese correnti;3;Acquisto di beni e servizi;2;Acquisto di servizi;5;Utenze e canoni;4;Energia elettrica;24/01/2019
127;1;0;12.168,20;12.168,20;EURO TOURS S.R.L.;65873873B8;ACCONTO Fatt.n. 00379  del 31/12/2018 SERVIZIO TRASPORTO SCOLASTICO MESE DI DICEMBRE 2018;24/01/2019;2720;0;599;1;Spese correnti;3;Acquisto di beni e servizi;2;Acquisto di servizi;15;Contratti di servizio pubblico;2;Contratti di servizio di trasporto scolastico;24/01/2019
128;1;0;598,39;598,39;EURO TOURS S.R.L.;65873873B8;SALDO Fatt.n. 00379  del 31/12/2018 SERVIZIO TRASPORTO SCOLASTICO MESE DI DICEMBRE 2018;24/01/2019;2720;0;587;1;Spese correnti;3;Acquisto di beni e servizi;2;Acquisto di servizi;15;Contratti di servizio pubblico;2;Contratti di servizio di trasporto scolastico;24/01/2019
129;1;0;94;94;AZIENDA U.L.S.S. N.2 MARCA TREVIGIANA; ;LIQUIDAZIONE SOMMA  PER TARIFFA DI SOPRALLUOGO E SPESE TRASFERTA DEL DIRIGENTE MEDICO, MEMBRO COMMISSIONE COMUNALE DI VIGILANZA DEI LOCALI DI PUBBLICO - SAGRA DI SAN VALENTINO 2019.;24/01/2019;640;0;12;1;Spese correnti;3;Acquisto di beni e servizi;2;Acquisto di servizi;11;Prestazioni professionali e specialistiche;999;Altre prestazioni professionali e specialistiche n.a.c.;24/01/2019
130;1;0;250;250;ASSOCIAZIONE COMITATO CITTADINI PER LA SALUTE; ;LIQUIDAZIONE CONTRIBUTO PER ORGANIZZAZIONE CORSO DI FOTOGRAFIA A CURA DELL'ASSOCIAZIONE COMITATO CITTADINI PER LA SALUTE DI CESSALTO.;24/01/2019;5330;0;741;1;Spese correnti;4;Trasferimenti correnti;4;Trasferimenti correnti a Istituzioni Sociali Private;1;Trasferimenti correnti a Istituzioni Sociali Private;1;Trasferimenti correnti a Istituzioni Sociali Private;24/01/2019
131;1;0;300;300;OMESSO NOMINATIVO NEL RISPETTO DELLA NORMATIVA SULLA PROTEZIONE DATI PERSONALI; ;EROGAZIONE CONTRIBUTO ECONOMICO STRAORDINARIO URGENTE A PERSONA BISOGNOSA - M.C.;25/01/2019;5650;0;31;1;Spese correnti;4;Trasferimenti correnti;2;Trasferimenti correnti a Famiglie;2;Interventi assistenziali;999;Altri assegni e sussidi assistenziali;25/01/2019
132;1;0;302,22;302,22;MINISTERO INTERNO; ;COMUNE DI CESSALTO - CORRISPETTIVO PER RILASCIO N. 18 CARTE IDENTITA ELETTRONICHE - PERIODO 01-15 GENNAIO 2019.;28/01/2019;822;0;39;1;Spese correnti;4;Trasferimenti correnti;1;Trasferimenti correnti a Amministrazioni Pubbliche;1;Trasferimenti correnti a Amministrazioni Centrali;1;Trasferimenti correnti a Ministeri;28/01/2019
134;1;0;5,85;5,85;MARCATO MARTA ECONOMO COMUNALE; ;RIMBORSO PER ACQUISTO ACQUA PER CONSIGLIO COMUNALE - BUONO 83;28/01/2019;30;0;644;1;Spese correnti;3;Acquisto di beni e servizi;1;Acquisto di beni;2;Altri beni di consumo;999;Altri beni e materiali di consumo n.a.c.;28/01/2019
135;1;0;3,72;3,72;MARCATO MARTA ECONOMO COMUNALE; ;RIMBORSO PER ACQUISTO ACQUA PER CONSIGLIO COMUNALE - BUONO 89;28/01/2019;30;0;757;1;Spese correnti;3;Acquisto di beni e servizi;1;Acquisto di beni;2;Altri beni di consumo;999;Altri beni e materiali di consumo n.a.c.;28/01/2019
136;1;0;2,8;2,8;MARCATO MARTA ECONOMO COMUNALE; ;RIMBORSO PER ACQUISTO NASTRO BIADESIVO PER MANIFESTAZIONE - BUONO 84;28/01/2019;337;0;645;1;Spese correnti;3;Acquisto di beni e servizi;1;Acquisto di beni;2;Altri beni di consumo;1;Carta, cancelleria e stampati;28/01/2019
138;1;0;10;10;MARCATO MARTA ECONOMO COMUNALE; ;RIMBORSO PER ACQUISTO BIGLIETTI TRENO ANDATA E RITORNO PER VENEZIA PER INCONTRO RELATIVO POST EMERGENZA DEL 10/08/2017 - BUONO 80;28/01/2019;620;0;590;1;Spese correnti;3;Acquisto di beni e servizi;2;Acquisto di servizi;2;Organizzazione eventi, pubblicita` e servizi per trasferta;2;Indennità di missione e di trasferta;28/01/2019
139;1;0;12;12;MARCATO MARTA ECONOMO COMUNALE; ;RIMBORSO PER ACQUISTO PALI PER CARTELLONISTICA BOSCO - BUONO 81;28/01/2019;650;0;619;1;Spese correnti;3;Acquisto di beni e servizi;1;Acquisto di beni;2;Altri beni di consumo;999;Altri beni e materiali di consumo n.a.c.;28/01/2019
140;1;0;2;2;MARCATO MARTA ECONOMO COMUNALE; ;IMPEGNO DI SPESA PER ACQUISTO BATTERIA PER UFFICIO VIGILANZA - BUONO 82;28/01/2019;1720;0;627;1;Spese correnti;3;Acquisto di beni e servizi;1;Acquisto di beni;2;Altri beni di consumo;999;Altri beni e materiali di consumo n.a.c.;28/01/2019
141;1;0;13;13;MARCATO MARTA ECONOMO COMUNALE; ;RIMBORSO SPESE POSTALI PER NR. 2 AVVISI RICEVUTE RACCOMANDATE A.R. UFFICIO POLIZIA LOCALE - BUONO 73;28/01/2019;1721;0;543;1;Spese correnti;3;Acquisto di beni e servizi;2;Acquisto di servizi;5;Utenze e canoni;999;Utenze e canoni per altri servizi n.a.c.;28/01/2019
142;1;0;6,5;6,5;MARCATO MARTA ECONOMO COMUNALE; ;RIMBORSO SPESE POSTALI PER NR.1 AVVISO RICEVUTA RITORNO RACCOMANDATA A.R. UFFICIO POLIZIA LOCALE - BUONO 74.;28/01/2019;1721;0;548;1;Spese correnti;3;Acquisto di beni e servizi;2;Acquisto di servizi;5;Utenze e canoni;999;Utenze e canoni per altri servizi n.a.c.;28/01/2019
143;1;0;6,5;6,5;MARCATO MARTA ECONOMO COMUNALE; ;RIMBORSO SPESE POSTALI PER NR. 1 AVVISO RICEVUTA RITORNO RACCOMANDATA A.R. UFFICIO POLIZIA LOCALE - BUONO 76;28/01/2019;1721;0;553;1;Spese correnti;3;Acquisto di beni e servizi;2;Acquisto di servizi;5;Utenze e canoni;999;Utenze e canoni per altri servizi n.a.c.;28/01/2019
144;1;0;6,5;6,5;MARCATO MARTA ECONOMO COMUNALE; ;RIMBORSO SPESE POSTALI PER NR.1 AVVISO RICEVUTA RITORNO RACCOMANDATA A.R. UFFICIO POLIZIA LOCALE - BUONO 77;28/01/2019;1721;0;554;1;Spese correnti;3;Acquisto di beni e servizi;2;Acquisto di servizi;5;Utenze e canoni;999;Utenze e canoni per altri servizi n.a.c.;28/01/2019
145;1;0;6,5;6,5;MARCATO MARTA ECONOMO COMUNALE; ;RIMBORSO SPESE POSTALI PER NR.1 AVVISO RICEVUTA RITORNO RACCOMANDATA A.R. UFFICIO POLIZIA LOCALE - BUONO 78;28/01/2019;1721;0;579;1;Spese correnti;3;Acquisto di beni e servizi;2;Acquisto di servizi;5;Utenze e canoni;999;Utenze e canoni per altri servizi n.a.c.;28/01/2019
146;1;0;6,5;6,5;MARCATO MARTA ECONOMO COMUNALE; ;RIMBORSO SPESE POSTALI PER NR. 1 AVVISO RICEVUTA RITORNO RACCOMANDATA A.R. UFFICIO POLIZIA LOCALE - BUONO 79;28/01/2019;1721;0;588;1;Spese correnti;3;Acquisto di beni e servizi;2;Acquisto di servizi;5;Utenze e canoni;999;Utenze e canoni per altri servizi n.a.c.;28/01/2019
147;1;0;8,7;8,7;MARCATO MARTA ECONOMO COMUNALE; ;RIMBORSO AL COMUNE DI SAN DONA' DI PIAVE DEI DIRITTI DI NOTIFICA - BUONO 87;28/01/2019;1721;0;716;1;Spese correnti;3;Acquisto di beni e servizi;2;Acquisto di servizi;5;Utenze e canoni;999;Utenze e canoni per altri servizi n.a.c.;28/01/2019
148;1;0;7,38;7,38;MARCATO MARTA ECONOMO COMUNALE; ;RIMBORSO AL COMUNE DI CORNUDA DEI DIRITTI DI NOTIFICA - BUONO 88;28/01/2019;1721;0;717;1;Spese correnti;3;Acquisto di beni e servizi;2;Acquisto di servizi;5;Utenze e canoni;999;Utenze e canoni per altri servizi n.a.c.;28/01/2019
149;1;0;39,99;39,99;MARCATO MARTA ECONOMO COMUNALE; ;RIMBORSO PER SPESE VARIE PER MANIFESTAZIONE ORGANIZZATA IN COLLABORAZIONE CON IL COMUNE - BUONO 85;28/01/2019;3030;0;682;1;Spese correnti;3;Acquisto di beni e servizi;1;Acquisto di beni;2;Altri beni di consumo;999;Altri beni e materiali di consumo n.a.c.;28/01/2019
150;1;0;29,61;29,61;MARCATO MARTA ECONOMO COMUNALE; ;"RIMBORSO SPESA PER ACQUISTO MATERIALI  INIZIATIVA ""BABBO NATALE""  - BUONO 86";28/01/2019;3030;0;684;1;Spese correnti;3;Acquisto di beni e servizi;1;Acquisto di beni;2;Altri beni di consumo;999;Altri beni e materiali di consumo n.a.c.;28/01/2019
151;1;0;44,97;44,97;FIRAS SRL; ;SALDO Fatt.n. 000407/04  del 22/12/2018 FORNITURA MATERIALE VARIO UFFICIO TECNICO PER MANUTENZIONI;28/01/2019;650;0;792;1;Spese correnti;3;Acquisto di beni e servizi;1;Acquisto di beni;2;Altri beni di consumo;999;Altri beni e materiali di consumo n.a.c.;28/01/2019
152;1;0;515,45;515,45;SITA SRL;Z8323A6E0C;ACCONTO Fatt.n. 2551  del 21/12/2018 MANUTENZIONE DISPOSITIVI ANTINCENDIO INSTALLATI PRESSO GLI IMMOBILI COMUNALI.;28/01/2019;1079;0;267;1;Spese correnti;3;Acquisto di beni e servizi;2;Acquisto di servizi;9;Manutenzione ordinaria e riparazioni;4;Manutenzione ordinaria e riparazioni di impianti e macchinari;28/01/2019
153;1;0;594,75;594,75;SITA SRL;Z8323A6E0C;ACCONTO Fatt.n. 2551  del 21/12/2018 MANUTENZIONE DISPOSITIVI ANTINCENDIO INSTALLATI PRESSO GLI IMMOBILI COMUNALI.;28/01/2019;2339;0;268;1;Spese correnti;3;Acquisto di beni e servizi;2;Acquisto di servizi;9;Manutenzione ordinaria e riparazioni;4;Manutenzione ordinaria e riparazioni di impianti e macchinari;28/01/2019
154;1;0;411,75;411,75;SITA SRL;Z8323A6E0C;SALDO Fatt.n. 2551  del 21/12/2018 MANUTENZIONE DISPOSITIVI ANTINCENDIO INSTALLATI PRESSO GLI IMMOBILI COMUNALI.;28/01/2019;2509;0;269;1;Spese correnti;3;Acquisto di beni e servizi;2;Acquisto di servizi;9;Manutenzione ordinaria e riparazioni;4;Manutenzione ordinaria e riparazioni di impianti e macchinari;28/01/2019
155;1;0;117,12;117,12;LASTIMMA SRL; ;SALDO Fatt.n. E-114  del 17/12/2018 FORNITURA MATERIALE VARIO PER MANUTENZIONE ORDINARIA;28/01/2019;5960;0;690;1;Spese correnti;3;Acquisto di beni e servizi;1;Acquisto di beni;2;Altri beni di consumo;999;Altri beni e materiali di consumo n.a.c.;28/01/2019
156;1;0;100;100;GIAROLO SERGIO;Z9222331AA;ACCONTO Fatt.n. 5/PA  del 31/12/2018 SERVIZIO DI PULIZIA DEGLI SCARICHI FOGNARI DELLE SCUOLE COMUNALI.;28/01/2019;2509;0;89;1;Spese correnti;3;Acquisto di beni e servizi;2;Acquisto di servizi;9;Manutenzione ordinaria e riparazioni;4;Manutenzione ordinaria e riparazioni di impianti e macchinari;28/01/2019
157;1;0;144;144;GIAROLO SERGIO;Z9222331AA;SALDO Fatt.n. 5/PA  del 31/12/2018 SERVIZIO DI PULIZIA DEGLI SCARICHI FOGNARI DELLE SCUOLE COMUNALI.;28/01/2019;5910;0;90;1;Spese correnti;3;Acquisto di beni e servizi;2;Acquisto di servizi;9;Manutenzione ordinaria e riparazioni;4;Manutenzione ordinaria e riparazioni di impianti e macchinari;28/01/2019
158;1;0;823,3;823,3;CIGAINA SRL;ZEE264BAC0;ACCONTO Fatt.n. 440  del 31/12/2018 FORNITURA CARTA PER UFFICI COMUNALI.;28/01/2019;337;0;683;1;Spese correnti;3;Acquisto di beni e servizi;1;Acquisto di beni;2;Altri beni di consumo;1;Carta, cancelleria e stampati;28/01/2019
159;1;0;707,61;707,61;GEMEAZ ELIOR SPA;6164666B4E;SALDO Fatt.n. 7680035080  del 30/11/2018 SERVIZIO PASTI ANZIANI DOMICILIARI MESE DI NOVEMBRE 2018.;28/01/2019;5654;0;616;1;Spese correnti;3;Acquisto di beni e servizi;2;Acquisto di servizi;14;Servizi di ristorazione;999;Altri servizi di ristorazione;28/01/2019
160;1;0;1.936,13;1.936,13;EOS COOPERATIVA SOCIALE ARL;6869902678;ACCONTO Fatt.n. 2018240000203  del 30/11/2018 INTEGRAZIONE SERVIZI DI MANUTENZIONE AREE E CICLI STRADALI;28/01/2019;5101;0;200;1;Spese correnti;3;Acquisto di beni e servizi;2;Acquisto di servizi;9;Manutenzione ordinaria e riparazioni;8;Manutenzione ordinaria e riparazioni di beni immobili;28/01/2019
161;1;0;57,32;57,32;EOS COOPERATIVA SOCIALE ARL;6869902678;ACCONTO Fatt.n. 2018240000203  del 30/11/2018 INTEGRAZIONE SERVIZI DI MANUTENZIONE AREE E CICLI STRADALI;28/01/2019;5101;0;16;1;Spese correnti;3;Acquisto di beni e servizi;2;Acquisto di servizi;9;Manutenzione ordinaria e riparazioni;4;Manutenzione ordinaria e riparazioni di impianti e macchinari;28/01/2019
162;1;0;29,52;29,52;EOS COOPERATIVA SOCIALE ARL;6869902678;ACCONTO Fatt.n. 2018240000203  del 30/11/2018 INTEGRAZIONE SERVIZI DI MANUTENZIONE AREE E CICLI STRADALI;28/01/2019;5101;0;214;1;Spese correnti;3;Acquisto di beni e servizi;2;Acquisto di servizi;9;Manutenzione ordinaria e riparazioni;4;Manutenzione ordinaria e riparazioni di impianti e macchinari;28/01/2019
163;1;0;7,27;7,27;EOS COOPERATIVA SOCIALE ARL;6869902678;ACCONTO Fatt.n. 2018240000203  del 30/11/2018 INTEGRAZIONE SERVIZI DI MANUTENZIONE AREE E CICLI STRADALI;29/01/2019;5910;0;215;1;Spese correnti;3;Acquisto di beni e servizi;2;Acquisto di servizi;9;Manutenzione ordinaria e riparazioni;4;Manutenzione ordinaria e riparazioni di impianti e macchinari;29/01/2019
164;1;0;22,83;22,83;EOS COOPERATIVA SOCIALE ARL;6869902678;ACCONTO Fatt.n. 2018240000203  del 30/11/2018 INTEGRAZIONE SERVIZI DI MANUTENZIONE AREE E CICLI STRADALI;29/01/2019;5101;0;472;1;Spese correnti;3;Acquisto di beni e servizi;2;Acquisto di servizi;9;Manutenzione ordinaria e riparazioni;8;Manutenzione ordinaria e riparazioni di beni immobili;29/01/2019
165;1;0;13,11;13,11;EOS COOPERATIVA SOCIALE ARL;6869902678;SALDO Fatt.n. 2018240000203  del 30/11/2018 INTEGRAZIONE SERVIZI DI MANUTENZIONE AREE E CICLI STRADALI;29/01/2019;5910;0;473;1;Spese correnti;3;Acquisto di beni e servizi;2;Acquisto di servizi;9;Manutenzione ordinaria e riparazioni;8;Manutenzione ordinaria e riparazioni di beni immobili;29/01/2019
166;1;0;449,13;449,13;EOS COOPERATIVA SOCIALE ARL;Z711E34788;SALDO Fatt.n. 2018240000204  del 30/11/2018 SERVIZI DI MANUTENZIONE AREE VERDI PN E AREE VERDI MESE DI NOVEMBRE;29/01/2019;5101;0;221;1;Spese correnti;3;Acquisto di beni e servizi;2;Acquisto di servizi;9;Manutenzione ordinaria e riparazioni;8;Manutenzione ordinaria e riparazioni di beni immobili;29/01/2019
167;1;0;869,86;869,86;AZIENDA ROMAN DEI F.LLI ROMAN SNC;Z6421F0066;SALDO Fatt.n. 10/P/18  del 27/12/2018 SERVIZIO DI MANUTENZIONE STRADE, AREE VERDI E CIMITERI.;29/01/2019;5101;0;54;1;Spese correnti;3;Acquisto di beni e servizi;2;Acquisto di servizi;9;Manutenzione ordinaria e riparazioni;5;Manutenzione ordinaria e riparazioni di attrezzature;29/01/2019
168;1;0;734,44;734,44;AZIENDA ROMAN DEI F.LLI ROMAN SNC;ZC12202CFA;ACCONTO Fatt.n. 9/P/18  del 27/12/2018 SERVIZIO DI DISERBATURA DELLE AREE VERDI STRADE E CIMITERI ANNO 2018;29/01/2019;5910;0;80;1;Spese correnti;3;Acquisto di beni e servizi;2;Acquisto di servizi;9;Manutenzione ordinaria e riparazioni;4;Manutenzione ordinaria e riparazioni di impianti e macchinari;29/01/2019
169;1;0;788,73;788,73;AZIENDA ROMAN DEI F.LLI ROMAN SNC;ZC12202CFA;ACCONTO Fatt.n. 9/P/18  del 27/12/2018 SERVIZIO DI DISERBATURA DELLE AREE VERDI STRADE E CIMITERI ANNO 2018;29/01/2019;1079;0;581;1;Spese correnti;3;Acquisto di beni e servizi;2;Acquisto di servizi;9;Manutenzione ordinaria e riparazioni;8;Manutenzione ordinaria e riparazioni di beni immobili;29/01/2019
170;1;0;4.354,79;4.354,79;AZIENDA ROMAN DEI F.LLI ROMAN SNC;ZC12202CFA;SALDO Fatt.n. 9/P/18  del 27/12/2018 SERVIZIO DI DISERBATURA DELLE AREE VERDI STRADE E CIMITERI ANNO 2018;29/01/2019;5101;0;582;1;Spese correnti;3;Acquisto di beni e servizi;2;Acquisto di servizi;9;Manutenzione ordinaria e riparazioni;8;Manutenzione ordinaria e riparazioni di beni immobili;29/01/2019
171;1;0;1.120,36;1.120,36;ASE ACEGASAPSAMGA SERVIZI ENERGETICI S.p.A.;300404150D;ACCONTO Fatt.n. 331800003516  del 19/11/2018 SERVIZIO GESTIONE IMPIANTI CALORE 1^ RATA ACCONTO IMMOBILI COMUNALI STAGIONE 2018/2019;29/01/2019;340;0;69;1;Spese correnti;3;Acquisto di beni e servizi;2;Acquisto di servizi;5;Utenze e canoni;999;Utenze e canoni per altri servizi n.a.c.;29/01/2019
172;1;0;908,29;908,29;ASE ACEGASAPSAMGA SERVIZI ENERGETICI S.p.A.;300404150D;ACCONTO Fatt.n. 331800003516  del 19/11/2018 SERVIZIO GESTIONE IMPIANTI CALORE 1^ RATA ACCONTO IMMOBILI COMUNALI STAGIONE 2018/2019;29/01/2019;1080;0;70;1;Spese correnti;3;Acquisto di beni e servizi;2;Acquisto di servizi;5;Utenze e canoni;999;Utenze e canoni per altri servizi n.a.c.;29/01/2019
173;1;0;1.848,20;1.848,20;ASE ACEGASAPSAMGA SERVIZI ENERGETICI S.p.A.;300404150D;ACCONTO Fatt.n. 331800003516  del 19/11/2018 SERVIZIO GESTIONE IMPIANTI CALORE 1^ RATA ACCONTO IMMOBILI COMUNALI STAGIONE 2018/2019;29/01/2019;2340;0;71;1;Spese correnti;3;Acquisto di beni e servizi;2;Acquisto di servizi;5;Utenze e canoni;999;Utenze e canoni per altri servizi n.a.c.;29/01/2019
174;1;0;6.159,50;6.159,50;ASE ACEGASAPSAMGA SERVIZI ENERGETICI S.p.A.;300404150D;SALDO Fatt.n. 331800003516  del 19/11/2018 SERVIZIO GESTIONE IMPIANTI CALORE 1^ RATA ACCONTO IMMOBILI COMUNALI STAGIONE 2018/2019;29/01/2019;2510;0;72;1;Spese correnti;3;Acquisto di beni e servizi;2;Acquisto di servizi;5;Utenze e canoni;999;Utenze e canoni per altri servizi n.a.c.;29/01/2019
175;1;0;580,68;580,68;ASE ACEGASAPSAMGA SERVIZI ENERGETICI S.p.A.;300404150D;ACCONTO Fatt.n. 331800003958  del 10/12/2018 CONGUAGLIO STAGIONE TERMICA 2017-2018;29/01/2019;340;0;69;1;Spese correnti;3;Acquisto di beni e servizi;2;Acquisto di servizi;5;Utenze e canoni;999;Utenze e canoni per altri servizi n.a.c.;29/01/2019
176;1;0;129,3;129,3;ASE ACEGASAPSAMGA SERVIZI ENERGETICI S.p.A.;300404150D;ACCONTO Fatt.n. 331800003958  del 10/12/2018 CONGUAGLIO STAGIONE TERMICA 2017-2018;29/01/2019;1080;0;70;1;Spese correnti;3;Acquisto di beni e servizi;2;Acquisto di servizi;5;Utenze e canoni;999;Utenze e canoni per altri servizi n.a.c.;29/01/2019
177;1;0;1.429,40;1.429,40;ASE ACEGASAPSAMGA SERVIZI ENERGETICI S.p.A.;300404150D;ACCONTO Fatt.n. 331800003958  del 10/12/2018 CONGUAGLIO STAGIONE TERMICA 2017-2018;29/01/2019;2340;0;71;1;Spese correnti;3;Acquisto di beni e servizi;2;Acquisto di servizi;5;Utenze e canoni;999;Utenze e canoni per altri servizi n.a.c.;29/01/2019
178;1;0;3.366,79;3.366,79;ASE ACEGASAPSAMGA SERVIZI ENERGETICI S.p.A.;300404150D;SALDO Fatt.n. 331800003958  del 10/12/2018 CONGUAGLIO STAGIONE TERMICA 2017-2018;29/01/2019;2510;0;72;1;Spese correnti;3;Acquisto di beni e servizi;2;Acquisto di servizi;5;Utenze e canoni;999;Utenze e canoni per altri servizi n.a.c.;29/01/2019
179;1;0;295,4;295,4;ASE ACEGASAPSAMGA SERVIZI ENERGETICI S.p.A.;Z7B2615574;ACCONTO Fatt.n. 331800004287  del 19/12/2018 SOSTIUTZIONE MANICHETTE IMPIANTO ANTINCENDIO SCUOLE EINAUDI;29/01/2019;2339;0;665;1;Spese correnti;3;Acquisto di beni e servizi;2;Acquisto di servizi;9;Manutenzione ordinaria e riparazioni;4;Manutenzione ordinaria e riparazioni di impianti e macchinari;29/01/2019
180;1;0;400;400;ASE ACEGASAPSAMGA SERVIZI ENERGETICI S.p.A.;Z7B2615574;SALDO Fatt.n. 331800004287  del 19/12/2018 SOSTIUTZIONE MANICHETTE IMPIANTO ANTINCENDIO SCUOLE EINAUDI;29/01/2019;2341;0;666;1;Spese correnti;3;Acquisto di beni e servizi;1;Acquisto di beni;2;Altri beni di consumo;999;Altri beni e materiali di consumo n.a.c.;29/01/2019
181;1;0;26,5;26,5;LIBR.BECCO GIALLO DI ZAGHIS & C. SNC;Z1A25CB94C;SALDO Fatt.n. 26/02  del 31/12/2018 FORNITURA LIBRI PER GIORNATA CONTRO LA VIOLENZA SULLE DONNE.;29/01/2019;3020;0;630;1;Spese correnti;3;Acquisto di beni e servizi;1;Acquisto di beni;2;Altri beni di consumo;999;Altri beni e materiali di consumo n.a.c.;29/01/2019
182;1;0;95;95;IKEA BUSINESS ITALIA RETAIL SRL;ZCD260A580;ACCONTO Fatt.n. 231745  del 05/12/2018 FORNITURA ALBERI DI NATALE;29/01/2019;2341;0;659;1;Spese correnti;3;Acquisto di beni e servizi;1;Acquisto di beni;2;Altri beni di consumo;999;Altri beni e materiali di consumo n.a.c.;29/01/2019
183;1;0;100;100;IKEA BUSINESS ITALIA RETAIL SRL;ZCD260A580;SALDO Fatt.n. 231745  del 05/12/2018 FORNITURA ALBERI DI NATALE;29/01/2019;2511;0;660;1;Spese correnti;3;Acquisto di beni e servizi;1;Acquisto di beni;2;Altri beni di consumo;999;Altri beni e materiali di consumo n.a.c.;29/01/2019
184;1;0;488;488;ACCATRE S.R.L.;ZC324A2774;SALDO Fatt.n. 1/181506  del 28/12/2018 SERVIZIO DI AFFIANCAMENTO ECONOMICO-PATRIMONIALE D.LGS. 118/2011 EFFETTUATO NEL 2018.;29/01/2019;440;0;435;1;Spese correnti;3;Acquisto di beni e servizi;2;Acquisto di servizi;19;Servizi informatici e di telecomunicazioni;1;Gestione e manutenzione applicazioni;29/01/2019
185;1;0;30.134,95;30.134,95;AZIENDA U.L.S.S. N.2 MARCA TREVIGIANA; ;LIQUIDAZIONE PRIMI 4/12 DELLA QUOTA CAPITARIA ANNO 2019 RELATIVA ALLE ATTIVITA' DELEGATE DEI SERVIZI SOCIALI - AZIENDA ULSS N.2 MARCA TREVIGIANA.;29/01/2019;5600;0;30;1;Spese correnti;4;Trasferimenti correnti;1;Trasferimenti correnti a Amministrazioni Pubbliche;2;Trasferimenti correnti a Amministrazioni Locali;11;Trasferimenti correnti a Aziende sanitarie locali  n.a.f.;29/01/2019
186;1;0;337,94;337,94;KYOCERA DOCUMENT SOLUTIONS ITALIA SPA;ZEE116EC09;SALDO Fatt.n. 1010518337  del 13/12/2018 CANONE NOLEGGIO FOTOCOPIATORI KYOCERA;29/01/2019;440;0;121;1;Spese correnti;3;Acquisto di beni e servizi;2;Acquisto di servizi;19;Servizi informatici e di telecomunicazioni;1;Gestione e manutenzione applicazioni;29/01/2019
187;1;0;951,6;951,6;SARDI MAURO;ZCA21E9D69;SALDO Fatt.n. 00017  del 30/11/2018 SERVIZI DI AGGIORNAMENTO ASR E DOCUMENTO VALUTAZIONE RISCHIO STRESS CORRELATO;30/01/2019;200;0;38;1;Spese correnti;3;Acquisto di beni e servizi;2;Acquisto di servizi;4;Acquisto di servizi per formazione e addestramento del personale dell'ente;999;Acquisto di servizi per altre spese per formazione e addestramento n.a.c.;30/01/2019
188;1;0;1.950,00;1.950,00;MINESSO MAURO;ZF82677B76;SALDO Fatt.n. 01  del 31/12/2018 SERVIZIO FUNEBRE PER CONTO DELLA DEFUNTA G.R.;30/01/2019;5650;0;754;1;Spese correnti;4;Trasferimenti correnti;2;Trasferimenti correnti a Famiglie;2;Interventi assistenziali;999;Altri assegni e sussidi assistenziali;30/01/2019
189;1;0;70;70;KUWAIT PETROLEUM ITALIA SPA;ZF21878CC7;ACCONTO Fatt.n. PJ00643104  del 31/12/2018 FORNITURA CARBURANTE AUTOMEZZI MESE DI DICEMBRE 2018.;30/01/2019;1711;0;60;1;Spese correnti;3;Acquisto di beni e servizi;1;Acquisto di beni;2;Altri beni di consumo;2;Carburanti, combustibili e lubrificanti;30/01/2019
190;1;0;70;70;KUWAIT PETROLEUM ITALIA SPA;ZF21878CC7;ACCONTO Fatt.n. PJ00643104  del 31/12/2018 FORNITURA CARBURANTE AUTOMEZZI MESE DI DICEMBRE 2018.;30/01/2019;5100;0;61;1;Spese correnti;3;Acquisto di beni e servizi;1;Acquisto di beni;2;Altri beni di consumo;2;Carburanti, combustibili e lubrificanti;30/01/2019
191;1;0;109,33;109,33;KUWAIT PETROLEUM ITALIA SPA;ZF21878CC7;SALDO Fatt.n. PJ00643104  del 31/12/2018 FORNITURA CARBURANTE AUTOMEZZI MESE DI DICEMBRE 2018.;30/01/2019;5911;0;63;1;Spese correnti;3;Acquisto di beni e servizi;1;Acquisto di beni;2;Altri beni di consumo;2;Carburanti, combustibili e lubrificanti;30/01/2019
192;1;0;219,6;219,6;CROCE ROSSA ITALIANA COMITATO DI PALMANOVA ONLUS;ZA426826F4;SALDO Fatt.n. FATTPA 91_18  del 31/12/2018 NOLEGGIO MONTASCALE;31/01/2019;5620;0;755;1;Spese correnti;3;Acquisto di beni e servizi;2;Acquisto di servizi;15;Contratti di servizio pubblico;9;Contratti di servizio di assistenza sociale domiciliare;31/01/2019
193;1;0;610;610;TINET SRL;ZF02665B02;SALDO Fatt.n. F04-2018-153  del 27/12/2018 FORNITURA TINET CARD DURATA 12 MESI-PREPAGATO;31/01/2019;440;0;713;1;Spese correnti;3;Acquisto di beni e servizi;2;Acquisto di servizi;19;Servizi informatici e di telecomunicazioni;999;Altri servizi informatici e di telecomunicazioni n.a.c.;31/01/2019
196;1;0;711,75;3.444,83;AMMINISTRATORI C/INDENNITA' DI CARICA; ;feb-19;11/02/2019;20;0;3;1;Spese correnti;3;Acquisto di beni e servizi;2;Acquisto di servizi;1;Organi e incarichi istituzionali dell'amministrazione;1;Organi istituzionali dell'amministrazione - Indennità;11/02/2019
196;2;0;2.733,08;3.444,83;AMMINISTRATORI C/INDENNITA' DI CARICA; ;feb-19;11/02/2019;20;0;3;1;Spese correnti;3;Acquisto di beni e servizi;2;Acquisto di servizi;1;Organi e incarichi istituzionali dell'amministrazione;1;Organi istituzionali dell'amministrazione - Indennità;11/02/2019
253;1;0;319,01;319,01;MINISTERO INTERNO; ;LIQUIDAZIONE DIRITTI DI SEGRETERIA C.I.E. PERIODO 16-31 GENNAIO 2019.;12/02/2019;822;0;74;1;Spese correnti;4;Trasferimenti correnti;1;Trasferimenti correnti a Amministrazioni Pubbliche;1;Trasferimenti correnti a Amministrazioni Centrali;1;Trasferimenti correnti a Ministeri;12/02/2019
254;1;0;4.000,00;4.000,00;ASSOCIAZIONE ANZIANI CESSALTO; ;CONCESSIONE DI UN CONTRIBUTO ECONOMICO PER L'ORGANIZZAZIONE DI ATTIVITA' DI GINNASTICA E NUOTO, A FAVORE DEGLI ANZIANI E DISABILI, ORGANIZZATE NELL'ANNO 2018/2019;12/02/2019;5659;0;740;1;Spese correnti;4;Trasferimenti correnti;4;Trasferimenti correnti a Istituzioni Sociali Private;1;Trasferimenti correnti a Istituzioni Sociali Private;1;Trasferimenti correnti a Istituzioni Sociali Private;12/02/2019
255;1;0;1.200,00;1.200,00;"COOPERATIVA SOCIALE ""MADONNA DEI MIRACOLI"" ONLUS"; ;"CONCESSIONE ULTERIORE CONTRIBUTO ALLA COOPERATIVA SOCIALE ""MADONNA DEI MIRACOLI"" ONLUS DI MOTTA DI LIVENZA";12/02/2019;5659;0;779;1;Spese correnti;4;Trasferimenti correnti;4;Trasferimenti correnti a Istituzioni Sociali Private;1;Trasferimenti correnti a Istituzioni Sociali Private;1;Trasferimenti correnti a Istituzioni Sociali Private;12/02/2019
256;1;0;570;570;CROCE ANTONELLO;Z0F21EA0EF;SALDO Fatt.n. 2/E  del 28/12/2018 PRESTAZIONI MEDICHE DI MEDICINA DEL LAVORO DIPENDENTI ANNO 2018;12/02/2019;200;0;39;1;Spese correnti;3;Acquisto di beni e servizi;2;Acquisto di servizi;4;Acquisto di servizi per formazione e addestramento del personale dell'ente;999;Acquisto di servizi per altre spese per formazione e addestramento n.a.c.;12/02/2019
257;1;0;16.500,00;16.500,00;PIOVESAN MORENO;Z67256B525;SALDO Fatt.n. 2/PA  del 23/01/2019 ACCONTO PER LAVORI DI SISTEMAZIONE ACCESSO AL PLESSO SCOLASTICO DI VIA L.EINAUDI COMUNE DI CESSALTO;13/02/2019;8071;0;576;2;Spese in conto capitale;2;Investimenti fissi lordi e acquisto di terreni;1;Beni materiali;9;Beni immobili;3;Fabbricati ad uso scolastico;13/02/2019
258;1;0;255,8;255,8;SPIGAS SRL;Z2D21ED429;SALDO Fatt.n. PA001751/2019  del 28/01/2019 FORNITURA GAS CENTRO ANZIANI MESE DI DICEMBRE;13/02/2019;1080;0;51;1;Spese correnti;3;Acquisto di beni e servizi;2;Acquisto di servizi;5;Utenze e canoni;6;Gas;13/02/2019
259;1;0;893,67;893,67;SPIGAS SRL;Z2D21ED429;SALDO Fatt.n. PA001750/2019  del 28/01/2019 FORNITURA GAS VILLA MARIA MESE DI DICEMBRE;13/02/2019;1080;0;51;1;Spese correnti;3;Acquisto di beni e servizi;2;Acquisto di servizi;5;Utenze e canoni;6;Gas;13/02/2019
260;1;0;131,6;131,6;SVILUPPO COMMERCIALE SNC -D'ITALY SUPERMERCATO CESSALTO;Z31262860B;SALDO Fatt.n. 01  del 16/01/2019 PANDORO E PANETTONI MOTTA;13/02/2019;5650;0;679;1;Spese correnti;4;Trasferimenti correnti;2;Trasferimenti correnti a Famiglie;2;Interventi assistenziali;999;Altri assegni e sussidi assistenziali;13/02/2019
261;1;0;323,59;323,59;ANCI SA S.R.L.; ;LIQ. QUOTA ASSOCIATIVA ANCI SEZIONE REGIONALE ANNO 2019.;13/02/2019;510;0;83;1;Spese correnti;3;Acquisto di beni e servizi;2;Acquisto di servizi;99;Altri servizi;3;Quote di associazioni;13/02/2019
262;1;0;200;200;ASSOCIAZIONE VIA DI NATALE ONLUS; ;CONCESSIONE CONTRIBUTO ALL'ISTITUZIONE CASA VIA DI NATALE - DELIBERAZIONE 2018;13/02/2019;5800;0;23;1;Spese correnti;4;Trasferimenti correnti;4;Trasferimenti correnti a Istituzioni Sociali Private;1;Trasferimenti correnti a Istituzioni Sociali Private;1;Trasferimenti correnti a Istituzioni Sociali Private;13/02/2019
263;1;0;200;200;ASSOCIAZIONE VIA DI NATALE ONLUS; ;CONCESSIONE CONTRIBUTO ALL'ISTITUZIONE CASA VIA DI NATALE DI AVIANO (PN) - DELIBERAZIONE 2019;13/02/2019;5800;0;85;1;Spese correnti;4;Trasferimenti correnti;4;Trasferimenti correnti a Istituzioni Sociali Private;1;Trasferimenti correnti a Istituzioni Sociali Private;1;Trasferimenti correnti a Istituzioni Sociali Private;13/02/2019
264;1;0;250;250;OMESSO NOMINATIVO NEL RISPETTO DELLA NORMATIVA SULLA PROTEZIONE DATI PERSONALI; ;SPESA SOSTITUZIONE SCALDABAGNO P/O EDIFICIO PROPRIETA' COMUNALE VIA MAGGIORE 60/A DA RICONOSCERE A SCOMPUTO QUOTA AFFITTO - DA ESTINGUERE A COMMUTAZIONE CON REVERSALE 165.;13/02/2019;1079;0;849;1;Spese correnti;3;Acquisto di beni e servizi;2;Acquisto di servizi;9;Manutenzione ordinaria e riparazioni;4;Manutenzione ordinaria e riparazioni di impianti e macchinari;13/02/2019
265;1;0;209;209;ARMONY TOURS SNC;ZA01FF07EE;SALDO Fatt.n. 163  del 30/12/2018 TRASPORTO MESE DI MAGGIO 2018 TERME BIBIONE;15/02/2019;5650;0;91;1;Spese correnti;4;Trasferimenti correnti;2;Trasferimenti correnti a Famiglie;2;Interventi assistenziali;999;Altri assegni e sussidi assistenziali;15/02/2019
266;1;0;75,83;75,83;COMUNE DI ODERZO; ;RIMBORSO AL COMUNE DI ODERZO SPESE FUNZIONAMENTO X E XI SOTTOCOMMISSIONE ELETTORALE CIRCONDARIALE ANNO 2018.;15/02/2019;380;0;90;1;Spese correnti;3;Acquisto di beni e servizi;2;Acquisto di servizi;1;Organi e incarichi istituzionali dell'amministrazione;7;Commissioni elettorali;15/02/2019
267;1;0;1.000,00;1.000,00;A.S.D. EUROPEO CESSALTO; ;CONCESSIONE CONTRIBUTO ALL'ASD EUROPEO CESSALTO.;15/02/2019;5330;0;84;1;Spese correnti;4;Trasferimenti correnti;4;Trasferimenti correnti a Istituzioni Sociali Private;1;Trasferimenti correnti a Istituzioni Sociali Private;1;Trasferimenti correnti a Istituzioni Sociali Private;15/02/2019
268;1;0;300;300;PARR.DELLA NATIVITA' DELLA BEATA VERGINE; ;CONCESSIONE CONTRIBUTO ALLA PARROCCHIA DELLA NATIVITA' DELLA BEATA VERGINE PER FESTEGGIAMENTI DI S.VALENTINO;15/02/2019;5330;0;86;1;Spese correnti;4;Trasferimenti correnti;4;Trasferimenti correnti a Istituzioni Sociali Private;1;Trasferimenti correnti a Istituzioni Sociali Private;1;Trasferimenti correnti a Istituzioni Sociali Private;15/02/2019
269;1;0;22,63;22,63;"ISTITUTO COMPRENSIVO CONEGLIANO 2 ""G.B. CIMA"""; ;CONCESSIONE CONTRIBUTO PER SCELTA ALTERNATIVA ALLA CEDOLA LIBRARIA RELATIVA AD UN ALUNNO RESIDENTE IN CESSALTO (O.M.);15/02/2019;2360;0;88;1;Spese correnti;3;Acquisto di beni e servizi;1;Acquisto di beni;2;Altri beni di consumo;999;Altri beni e materiali di consumo n.a.c.;15/02/2019
270;1;0;900;900;OMESSO NOMINATIVO NEL RISPETTO DELLA NORMATIVA SULLA PROTEZIONE DATI PERSONALI; ;CONCESSIONE CONTRIBUTO ECONOMICO A FAVORE DI PERSONA INDIGENTE;15/02/2019;5650;0;89;1;Spese correnti;4;Trasferimenti correnti;2;Trasferimenti correnti a Famiglie;2;Interventi assistenziali;999;Altri assegni e sussidi assistenziali;15/02/2019
271;1;0;96;96;ART E DOSSIER; ;RINNOVO ABBONAMENTO RIVISTA ART E DOSSIER PER BIBLIOTECA COMUNALE ANNI 2018 E 2019.;19/02/2019;3020;0;744;1;Spese correnti;3;Acquisto di beni e servizi;1;Acquisto di beni;2;Altri beni di consumo;999;Altri beni e materiali di consumo n.a.c.;19/02/2019
272;1;0;69;69;FEGUAGISKIA STUDIOS; ;RINNOVO ABBONAMENTO RIVISTA ANDERSEN PER BIBLIOTECA COMUNALE ANNO 2018.;19/02/2019;3020;0;744;1;Spese correnti;3;Acquisto di beni e servizi;1;Acquisto di beni;2;Altri beni di consumo;999;Altri beni e materiali di consumo n.a.c.;19/02/2019
273;1;0;69;69;FEGUAGISKIA STUDIOS; ;"RINNOVO ABBONAMENTO RIVISTA ""ANDERSEN""  PER BIBLIOTECA COMUNALE ANNO 2019.";19/02/2019;3020;0;712;1;Spese correnti;3;Acquisto di beni e servizi;1;Acquisto di beni;2;Altri beni di consumo;999;Altri beni e materiali di consumo n.a.c.;19/02/2019
274;1;0;50;50;MORETTI & VITALI EDITORI SRL; ;"RINNOVO ABBONAMENTO RIVISTA ""QUI LIBRI""  PER BIBLIOTECA COMUNALE ANNO 2019.";19/02/2019;3020;0;712;1;Spese correnti;3;Acquisto di beni e servizi;1;Acquisto di beni;2;Altri beni di consumo;999;Altri beni e materiali di consumo n.a.c.;19/02/2019
275;1;0;44;44;IDEST SRL; ;"RINNOVO ABBONAMENTO RIVISTA ""LIBER""  PER BIBLIOTECA COMUNALE ANNO 2019.";19/02/2019;3020;0;712;1;Spese correnti;3;Acquisto di beni e servizi;1;Acquisto di beni;2;Altri beni di consumo;999;Altri beni e materiali di consumo n.a.c.;19/02/2019
276;1;0;46,47;46,47;WIND TRE SPA;Z2F21F767A;ACCONTO Fatt.n. 19E0000000051  del 20/01/2019 ABBONAMENTO LIBERO ASDL AFFARI FLAT NOV/DIC;19/02/2019;340;0;36;1;Spese correnti;3;Acquisto di beni e servizi;2;Acquisto di servizi;5;Utenze e canoni;1;Telefonia fissa;19/02/2019
277;1;0;19,48;433,79;WIND TRE SPA;Z2B2739C42;SALDO Fatt.n. 19E0000000051  del 20/01/2019 ABBONAMENTO LIBERO ASDL AFFARI FLAT NOV/DIC;19/02/2019;340;0;109;1;Spese correnti;3;Acquisto di beni e servizi;2;Acquisto di servizi;5;Utenze e canoni;1;Telefonia fissa;19/02/2019
277;2;0;414,31;433,79;WIND TRE SPA;Z2B2739C42;SALDO Fatt.n. 19E0000000048  del 20/01/2019 ABBONAMENTO HAPPY ITALY ISDN NOV/DIC 2018;19/02/2019;340;0;109;1;Spese correnti;3;Acquisto di beni e servizi;2;Acquisto di servizi;5;Utenze e canoni;1;Telefonia fissa;19/02/2019
278;1;0;488;488;PIOVESAN MORENO;ZA724F40C1;SALDO Fatt.n. 1/PA  del 23/01/2019 ESECUZIONE SIGILLI PER LOCULI CIMITERIALI;19/02/2019;4139;0;546;1;Spese correnti;3;Acquisto di beni e servizi;2;Acquisto di servizi;9;Manutenzione ordinaria e riparazioni;4;Manutenzione ordinaria e riparazioni di impianti e macchinari;19/02/2019
279;1;0;3.000,00;3.000,00;PETRACCO ALIANO;ZC0249723D;SALDO Fatt.n. 01/01/0000003  del 18/02/2019 SALDO COMPETENZE PROFESSIONALI PORGETTO ESECUTIVO, D.L. INTERVENTO DI SISTEMAZIONE ACCESSO PLESSO SCOLASTICO VIA EINAUDI;19/02/2019;640;0;424;1;Spese correnti;3;Acquisto di beni e servizi;2;Acquisto di servizi;11;Prestazioni professionali e specialistiche;999;Altre prestazioni professionali e specialistiche n.a.c.;19/02/2019
280;1;0;1.171,20;1.171,20;CENTRAUTO SNC DI CARGNELUTTI & C.;Z15264D789;SALDO Fatt.n. 6/00  del 23/01/2019 MANUTENZIONE FIAT PUNTO YA659AL P.L.;22/02/2019;1710;0;761;1;Spese correnti;3;Acquisto di beni e servizi;2;Acquisto di servizi;9;Manutenzione ordinaria e riparazioni;1;Manutenzione ordinaria e riparazioni di mezzi di trasporto ad uso civile, di sicurezza e ordine pubblico;22/02/2019
281;1;0;245;245;MAGGIOLI SPA;Z9526DA3D8;RINNOVO ABBONAMENTO ANNUALE ALLA RIVISTA IL VIGILE URBANO ANNO 2019.;22/02/2019;421;0;32;1;Spese correnti;3;Acquisto di beni e servizi;1;Acquisto di beni;1;Giornali, riviste e pubblicazioni;1;Giornali e riviste;22/02/2019
282;1;0;268,64;268,64;MINISTERO INTERNO; ;COMUNE DI CESSALTO - CORRISPETTIVO PER RILASCIO N.16 CARTE D'IDENTITA' ELETTRONICHE PERIODO 1-15 FEBBRAIO 2019.;22/02/2019;822;0;106;1;Spese correnti;4;Trasferimenti correnti;1;Trasferimenti correnti a Amministrazioni Pubbliche;1;Trasferimenti correnti a Amministrazioni Centrali;1;Trasferimenti correnti a Ministeri;22/02/2019
283;1;0;250;250;OMESSO NOMINATIVO NEL RISPETTO DELLA NORMATIVA SULLA PROTEZIONE DATI PERSONALI; ;LIQUIDAZIONE CONTRIBUTO REGIONALE ANNO 2018 A FAVORE DELLE FAMIGLIE CON PARTI TRIGEMELLARI E DELLE FAMIGLIE CON NUMERO DI FIGLI PARI O SUPERIORE A QUATTRO.;22/02/2019;5670;0;101;1;Spese correnti;4;Trasferimenti correnti;2;Trasferimenti correnti a Famiglie;2;Interventi assistenziali;999;Altri assegni e sussidi assistenziali;22/02/2019
284;1;0;500;500;OMESSO NOMINATIVO NEL RISPETTO DELLA NORMATIVA SULLA PROTEZIONE DATI PERSONALI; ;LIQUIDAZIONE CONTRIBUTO REGIONALE ANNO 2018 A FAVORE DELLE FAMIGLIE CON PARTI TRIGEMELLARI E DELLE FAMIGLIE CON NUMERO DI FIGLI PARI O SUPERIORI A QUATTRO.;22/02/2019;5670;0;101;1;Spese correnti;4;Trasferimenti correnti;2;Trasferimenti correnti a Famiglie;2;Interventi assistenziali;999;Altri assegni e sussidi assistenziali;22/02/2019
285;1;0;500;500;OMESSO NOMINATIVO NEL RISPETTO DELLA NORMATIVA SULLA PROTEZIONE DATI PERSONALI; ;LIQUIDAZIONE CONTRIBUTO REGIONALE ANNO 2018 A FAVORE DELLE FAMIGLIE CON PARTI TRIGEMELLARI E DELLE FAMIGLIE CON NUMERO DI FIGLI PARI O SUPERIORI A QUATTRO.;22/02/2019;5670;0;101;1;Spese correnti;4;Trasferimenti correnti;2;Trasferimenti correnti a Famiglie;2;Interventi assistenziali;999;Altri assegni e sussidi assistenziali;22/02/2019
286;1;0;375;375;OMESSO NOMINATIVO NEL RISPETTO DELLA NORMATIVA SULLA PROTEZIONE DATI PERSONALI; ;LIQUIDAZIONE CONTRIBUTO REGIONALE ANNO 2018 A FAVORE DELLE FAMIGLIE CON PARTI TRIGEMELLARI E DELLE FAMIGLIE CON NUMERO DI FIGLI PARI O SUPERIORI A QUATTRO.;22/02/2019;5670;0;101;1;Spese correnti;4;Trasferimenti correnti;2;Trasferimenti correnti a Famiglie;2;Interventi assistenziali;999;Altri assegni e sussidi assistenziali;22/02/2019
287;1;0;500;500;OMESSO NOMINATIVO NEL RISPETTO DELLA NORMATIVA SULLA PROTEZIONE DATI PERSONALI; ;LIQUIDAZIONE CONTRIBUTO REGIONALE ANNO 2018 A FAVORE DELLE FAMIGLIE CON PARTI TRIGEMELLARI E DELLE FAMIGLIE CON NUMERO DI FIGLI PARI O SUPERIORI A QUATTRO.;22/02/2019;5670;0;101;1;Spese correnti;4;Trasferimenti correnti;2;Trasferimenti correnti a Famiglie;2;Interventi assistenziali;999;Altri assegni e sussidi assistenziali;22/02/2019
288;1;0;500;500;OMESSO NOMINATIVO NEL RISPETTO DELLA NORMATIVA SULLA PROTEZIONE DATI PERSONALI; ;LIQUIDAZIONE CONTRIBUTO REGIONALE ANNO 2018 A FAVORE DELLE FAMIGLIE CON PARTI TRIGEMELLARI E DELLE FAMIGLIE CON NUMERO DI FIGLI PARI O SUPERIORI A QUATTRO.;22/02/2019;5670;0;101;1;Spese correnti;4;Trasferimenti correnti;2;Trasferimenti correnti a Famiglie;2;Interventi assistenziali;999;Altri assegni e sussidi assistenziali;22/02/2019
289;1;0;238;238;DE ZOTTI IMPIANTI SRL;Z7624DEC12;ACCONTO Fatt.n. FE-0009  del 21/01/2019 INTERVENTI SU IMPIANTO DI PUBBLICA ILLUMINAZIONE;22/02/2019;1082;0;493;1;Spese correnti;3;Acquisto di beni e servizi;2;Acquisto di servizi;9;Manutenzione ordinaria e riparazioni;4;Manutenzione ordinaria e riparazioni di impianti e macchinari;22/02/2019
290;1;0;250;250;DE ZOTTI IMPIANTI SRL;Z7624DEC12;SALDO Fatt.n. FE-0009  del 21/01/2019 INTERVENTI SU IMPIANTO DI PUBBLICA ILLUMINAZIONE;22/02/2019;6011;0;494;1;Spese correnti;3;Acquisto di beni e servizi;2;Acquisto di servizi;9;Manutenzione ordinaria e riparazioni;4;Manutenzione ordinaria e riparazioni di impianti e macchinari;22/02/2019
291;1;0;133,2;133,2;DE ZOTTI IMPIANTI SRL;Z1725660EE;ACCONTO Fatt.n. FE-0004  del 11/01/2019 FORNITURA E POSA DI N.8 LAMPADE PER L PALESTRA DELLE SCUOLE IN VIA EINAUDI.;22/02/2019;2509;0;566;1;Spese correnti;3;Acquisto di beni e servizi;2;Acquisto di servizi;9;Manutenzione ordinaria e riparazioni;4;Manutenzione ordinaria e riparazioni di impianti e macchinari;22/02/2019
292;1;0;550;550;DE ZOTTI IMPIANTI SRL;Z1725660EE;SALDO Fatt.n. FE-0004  del 11/01/2019 FORNITURA E POSA DI N.8 LAMPADE PER L PALESTRA DELLE SCUOLE IN VIA EINAUDI.;22/02/2019;2511;0;567;1;Spese correnti;3;Acquisto di beni e servizi;1;Acquisto di beni;2;Altri beni di consumo;999;Altri beni e materiali di consumo n.a.c.;22/02/2019
293;1;0;200;200;DE ZOTTI IMPIANTI SRL;ZC32615540;ACCONTO Fatt.n. FE-0002  del 11/01/2019 SOSTITUZIONE PALO DI PUBBLICA ILLUMINAZIONE E ARREDO URBANO INCIDENTATO SU P.ZZA SANTO VOLTO.;22/02/2019;6010;0;663;1;Spese correnti;3;Acquisto di beni e servizi;1;Acquisto di beni;2;Altri beni di consumo;999;Altri beni e materiali di consumo n.a.c.;22/02/2019
294;1;0;410;410;DE ZOTTI IMPIANTI SRL;ZC32615540;SALDO Fatt.n. FE-0002  del 11/01/2019 SOSTITUZIONE PALO DI PUBBLICA ILLUMINAZIONE E ARREDO URBANO INCIDENTATO SU P.ZZA SANTO VOLTO.;22/02/2019;6011;0;664;1;Spese correnti;3;Acquisto di beni e servizi;2;Acquisto di servizi;9;Manutenzione ordinaria e riparazioni;4;Manutenzione ordinaria e riparazioni di impianti e macchinari;22/02/2019
295;1;0;500;500;AUTOFFICINA TUBIANA & C. SNC;Z6A2698604;ACCONTO Fatt.n. 6/001  del 14/01/2019 F. PUNTO DH638SF KM. 142933;25/02/2019;470;0;758;1;Spese correnti;3;Acquisto di beni e servizi;1;Acquisto di beni;2;Altri beni di consumo;999;Altri beni e materiali di consumo n.a.c.;25/02/2019
296;1;0;504,18;504,18;AUTOFFICINA TUBIANA & C. SNC;Z6A2698604;SALDO Fatt.n. 6/001  del 14/01/2019 F. PUNTO DH638SF KM. 142933;25/02/2019;471;0;759;1;Spese correnti;3;Acquisto di beni e servizi;2;Acquisto di servizi;9;Manutenzione ordinaria e riparazioni;1;Manutenzione ordinaria e riparazioni di mezzi di trasporto ad uso civile, di sicurezza e ordine pubblico;25/02/2019
297;1;0;37;37;ISEPPON S.R.L.; ;ACCONTO Fatt.n. 000001/19P  del 31/01/2019 MATERIALE UFFICIO TECNICO;25/02/2019;4141;0;92;1;Spese correnti;3;Acquisto di beni e servizi;1;Acquisto di beni;2;Altri beni di consumo;999;Altri beni e materiali di consumo n.a.c.;25/02/2019
298;1;0;50,41;50,41;ISEPPON S.R.L.; ;SALDO Fatt.n. 000001/19P  del 31/01/2019 MATERIALE UFFICIO TECNICO;25/02/2019;5911;0;93;1;Spese correnti;3;Acquisto di beni e servizi;1;Acquisto di beni;2;Altri beni di consumo;999;Altri beni e materiali di consumo n.a.c.;25/02/2019
299;1;0;300;300;FIRAS SRL; ;ACCONTO Fatt.n. 000411/04  del 31/01/2019 FORNITURA MATERIALE PER UFFICIO TECNICO;25/02/2019;650;0;688;1;Spese correnti;3;Acquisto di beni e servizi;1;Acquisto di beni;2;Altri beni di consumo;999;Altri beni e materiali di consumo n.a.c.;25/02/2019
300;1;0;575,51;575,51;FIRAS SRL; ;ACCONTO Fatt.n. 000411/04  del 31/01/2019 FORNITURA MATERIALE PER UFFICIO TECNICO;25/02/2019;1081;0;689;1;Spese correnti;3;Acquisto di beni e servizi;1;Acquisto di beni;2;Altri beni di consumo;999;Altri beni e materiali di consumo n.a.c.;25/02/2019
301;1;0;86;86;FIRAS SRL; ;ACCONTO Fatt.n. 000411/04  del 31/01/2019 FORNITURA MATERIALE PER UFFICIO TECNICO;25/02/2019;1081;0;793;1;Spese correnti;3;Acquisto di beni e servizi;1;Acquisto di beni;2;Altri beni di consumo;999;Altri beni e materiali di consumo n.a.c.;25/02/2019
302;1;0;31;31;FIRAS SRL; ;ACCONTO Fatt.n. 000411/04  del 31/01/2019 FORNITURA MATERIALE PER UFFICIO TECNICO;25/02/2019;2511;0;794;1;Spese correnti;3;Acquisto di beni e servizi;1;Acquisto di beni;2;Altri beni di consumo;999;Altri beni e materiali di consumo n.a.c.;25/02/2019
303;1;0;23,73;23,73;FIRAS SRL; ;SALDO Fatt.n. 000411/04  del 31/01/2019 FORNITURA MATERIALE PER UFFICIO TECNICO;25/02/2019;4141;0;795;1;Spese correnti;3;Acquisto di beni e servizi;1;Acquisto di beni;2;Altri beni di consumo;999;Altri beni e materiali di consumo n.a.c.;25/02/2019
304;1;0;1.742,16;1.742,16;EOS COOPERATIVA SOCIALE ARL;Z612415E51;SALDO Fatt.n. 2018240000231  del 31/12/2018 SERVIZI DI MANUTENZIONE DIVERSI NOVEMBRE E DICEMBRE 2018;25/02/2019;5101;0;575;1;Spese correnti;3;Acquisto di beni e servizi;2;Acquisto di servizi;9;Manutenzione ordinaria e riparazioni;4;Manutenzione ordinaria e riparazioni di impianti e macchinari;25/02/2019
305;1;0;1.697,60;1.697,60;LE LIBRERIE SRL;ZB0266DDCF;SALDO Fatt.n. 20/B/PA  del 31/01/2019 FORNITURA LIBRI BIBLIOTECA;25/02/2019;3020;0;711;1;Spese correnti;3;Acquisto di beni e servizi;1;Acquisto di beni;2;Altri beni di consumo;999;Altri beni e materiali di consumo n.a.c.;25/02/2019
306;1;0;163,11;163,11;S.I.A.E.; ;SALDO Fatt.n. 1619003338  del 25/01/2019 DIRITTI S.I.A.E. CONCERTO DI MUSICA LEGGERA;25/02/2019;3031;0;10;1;Spese correnti;3;Acquisto di beni e servizi;2;Acquisto di servizi;2;Organizzazione eventi, pubblicita` e servizi per trasferta;5;Organizzazione e partecipazione a manifestazioni e convegni;25/02/2019
307;1;0;305,02;305,02;CARRARO ASCENSORI SRL;ZF121BB10A;SALDO Fatt.n. 145  del 27/12/2018 CANONE MANUTENZIONE ASCENSORE IMMOBILE VILLA MARIA DI VIA MAGGIORE PERIODO DAL 01/07/2018 AL 31/12/2018.;25/02/2019;1079;0;18;1;Spese correnti;3;Acquisto di beni e servizi;2;Acquisto di servizi;9;Manutenzione ordinaria e riparazioni;4;Manutenzione ordinaria e riparazioni di impianti e macchinari;25/02/2019
308;1;0;951,6;951,6;ASE ACEGASAPSAMGA SERVIZI ENERGETICI S.p.A.;Z932282A95;SALDO Fatt.n. 331800004098  del 14/12/2018 SERVIZIO CONDUZIONE E MANUTENZIONE ORDINARIA GRUPPO FRIGO VILLA MARIA ANNO 2018;25/02/2019;1079;0;115;1;Spese correnti;3;Acquisto di beni e servizi;2;Acquisto di servizi;9;Manutenzione ordinaria e riparazioni;4;Manutenzione ordinaria e riparazioni di impianti e macchinari;25/02/2019
309;1;0;384,3;384,3;ASE ACEGASAPSAMGA SERVIZI ENERGETICI S.p.A.;Z87228294F;SALDO Fatt.n. 331800004101  del 14/12/2018 SERVIZIO CONDUZIONE E MANUTENZIONE ORDINARIA CENTRALE TERMICA VILLA MARIA ANNO 2018.;25/02/2019;1079;0;111;1;Spese correnti;3;Acquisto di beni e servizi;2;Acquisto di servizi;9;Manutenzione ordinaria e riparazioni;4;Manutenzione ordinaria e riparazioni di impianti e macchinari;25/02/2019
310;1;0;793;793;ASE ACEGASAPSAMGA SERVIZI ENERGETICI S.p.A.;Z132282870;SALDO Fatt.n. 331800004097  del 14/12/2018 SERVIZIO MANUTENZIONE ORDINARIA CALDAIETTE COMUNALI ANNO 2018.;25/02/2019;1079;0;112;1;Spese correnti;3;Acquisto di beni e servizi;2;Acquisto di servizi;9;Manutenzione ordinaria e riparazioni;4;Manutenzione ordinaria e riparazioni di impianti e macchinari;25/02/2019
311;1;0;603,9;603,9;ASE ACEGASAPSAMGA SERVIZI ENERGETICI S.p.A.;Z2E22829D5;SALDO Fatt.n. 331800004096  del 14/12/2018 SERVIZIO MANUTENZIONE ASCENSORE SCUOLA PRIMARIA DI PRIMO GRADO 2^ RATA ANNO 2018.;25/02/2019;2339;0;116;1;Spese correnti;3;Acquisto di beni e servizi;2;Acquisto di servizi;9;Manutenzione ordinaria e riparazioni;4;Manutenzione ordinaria e riparazioni di impianti e macchinari;25/02/2019
312;1;0;603,9;603,9;ASE ACEGASAPSAMGA SERVIZI ENERGETICI S.p.A.;ZAD22EBC3B;SALDO Fatt.n. 331800004095  del 14/12/2018 SERVIZIO MANUTENZIONE ASCENSORE SCUOLA SECONDARIA DI PRIMO GRADO 2^ RATA 2018.;25/02/2019;2509;0;147;1;Spese correnti;3;Acquisto di beni e servizi;2;Acquisto di servizi;9;Manutenzione ordinaria e riparazioni;4;Manutenzione ordinaria e riparazioni di impianti e macchinari;25/02/2019
313;1;0;507,52;507,52;SARDI MAURO;ZCA21E9D69;SALDO Fatt.n. 00021  del 18/12/2018 SUPPORTO AL MANTENIMENTO DEL SGSL FINO A VENTI DIPENDENTI;25/02/2019;200;0;38;1;Spese correnti;3;Acquisto di beni e servizi;2;Acquisto di servizi;4;Acquisto di servizi per formazione e addestramento del personale dell'ente;999;Acquisto di servizi per altre spese per formazione e addestramento n.a.c.;25/02/2019
314;1;0;761,28;761,28;SARDI MAURO;ZCA21E9D69;SALDO Fatt.n. 00022  del 18/12/2018 INCARICO DI RESPONSABILE DEL SERVIZIO DI PREVENZIONE E PROTEZIONE PER IL SECONDO SEMESTRE;25/02/2019;200;0;38;1;Spese correnti;3;Acquisto di beni e servizi;2;Acquisto di servizi;4;Acquisto di servizi per formazione e addestramento del personale dell'ente;999;Acquisto di servizi per altre spese per formazione e addestramento n.a.c.;25/02/2019
315;1;0;516,34;516,34;BENVEGNU' AGRICOLTURA SAS; ;ACCONTO Fatt.n. 10/05  del 31/12/2018 SALE INDUSTRIALE;25/02/2019;1081;0;704;1;Spese correnti;3;Acquisto di beni e servizi;1;Acquisto di beni;2;Altri beni di consumo;999;Altri beni e materiali di consumo n.a.c.;25/02/2019
316;1;0;700;700;BENVEGNU' AGRICOLTURA SAS; ;SALDO Fatt.n. 10/05  del 31/12/2018 SALE INDUSTRIALE;25/02/2019;5911;0;705;1;Spese correnti;3;Acquisto di beni e servizi;1;Acquisto di beni;2;Altri beni di consumo;999;Altri beni e materiali di consumo n.a.c.;25/02/2019
317;1;0;613,95;613,95;GEMEAZ ELIOR SPA;6164666B4E;SALDO Fatt.n. 7680035930  del 31/12/2018 SERVIZIO PASTI A DOMICILIO MESE DI DICEMBRE 2018.;25/02/2019;5654;0;616;1;Spese correnti;3;Acquisto di beni e servizi;2;Acquisto di servizi;14;Servizi di ristorazione;999;Altri servizi di ristorazione;25/02/2019
318;1;0;12.766,59;12.766,59;EURO TOURS S.R.L.;65873873B8;SALDO Fatt.n. 00043  del 31/01/2019 SERVIZIO TRASPORTO SCOLASTICO MESE DI GENNAIO;25/02/2019;2720;0;373;1;Spese correnti;3;Acquisto di beni e servizi;2;Acquisto di servizi;15;Contratti di servizio pubblico;2;Contratti di servizio di trasporto scolastico;25/02/2019
319;1;0;459,27;459,27;DOLOMITI ENERGIA SPA;7142067C20;SALDO Fatt.n. 41900204162  del 30/01/2019 ENERGIA ELETTRICA DICEMBRE 2018 UTENZA MUNICIPIO;25/02/2019;340;0;547;1;Spese correnti;3;Acquisto di beni e servizi;2;Acquisto di servizi;5;Utenze e canoni;999;Utenze e canoni per altri servizi n.a.c.;25/02/2019
320;1;0;118,4;118,4;DOLOMITI ENERGIA SPA;7142067C20;SALDO Fatt.n. 41900208703  del 30/01/2019 ENERGIA ELETTRICA DICEMBRE 2018 UTENZA P.I. PIAZZA MARTIRI;25/02/2019;1080;0;654;1;Spese correnti;3;Acquisto di beni e servizi;2;Acquisto di servizi;5;Utenze e canoni;4;Energia elettrica;25/02/2019
321;1;0;504,71;504,71;DOLOMITI ENERGIA SPA;7142067C20;SALDO Fatt.n. 41900204150  del 30/01/2019 ENERGIA ELETTRICA DICEMBRE 2018 UTENZA VILLA MARIA;25/02/2019;1080;0;654;1;Spese correnti;3;Acquisto di beni e servizi;2;Acquisto di servizi;5;Utenze e canoni;4;Energia elettrica;25/02/2019
322;1;0;49,42;49,42;DOLOMITI ENERGIA SPA;7142067C20;SALDO Fatt.n. 41900204149  del 30/01/2019 ENERGIA ELETTRICA DICEMBRE 2018 UTENZA CENTRO ANZIANI;25/02/2019;1080;0;654;1;Spese correnti;3;Acquisto di beni e servizi;2;Acquisto di servizi;5;Utenze e canoni;4;Energia elettrica;25/02/2019
323;1;0;109,62;109,62;DOLOMITI ENERGIA SPA;7142067C20;SALDO Fatt.n. 41900204157  del 30/01/2019 ENERGIA ELETTRICA DICEMBRE 2018 UTENZA CENTRO SOC.-BIBLIOTECA;25/02/2019;1080;0;654;1;Spese correnti;3;Acquisto di beni e servizi;2;Acquisto di servizi;5;Utenze e canoni;4;Energia elettrica;25/02/2019
324;1;0;32,37;32,37;DOLOMITI ENERGIA SPA;7142067C20;SALDO Fatt.n. 41900204152  del 30/01/2019 ENERGIA ELETTRICA DICEMBRE 2018 UTENZA CENTRO SOC.VIA CHIESA;25/02/2019;1080;0;654;1;Spese correnti;3;Acquisto di beni e servizi;2;Acquisto di servizi;5;Utenze e canoni;4;Energia elettrica;25/02/2019
325;1;0;42,5;42,5;DOLOMITI ENERGIA SPA;7142067C20;SALDO Fatt.n. 41900204153  del 30/01/2019 ENERGIA ELETTRICA DICEMBRE 2018 UTENZA AMBULATORIO VIA CHIESA;25/02/2019;1080;0;654;1;Spese correnti;3;Acquisto di beni e servizi;2;Acquisto di servizi;5;Utenze e canoni;4;Energia elettrica;25/02/2019
326;1;0;36,31;36,31;DOLOMITI ENERGIA SPA;7142067C20;SALDO Fatt.n. 41900204156  del 30/01/2019 ENERGIA ELETTRICA DICEMBRE 2018 UTENZA SEDE AVIS VIA ROMA;25/02/2019;1080;0;654;1;Spese correnti;3;Acquisto di beni e servizi;2;Acquisto di servizi;5;Utenze e canoni;4;Energia elettrica;25/02/2019
327;1;0;175,5;175,5;DOLOMITI ENERGIA SPA;7142067C20;SALDO Fatt.n. 41900204160  del 30/01/2019 ENERGIA ELETTRICA DICEMBRE 2018 UTENZA EX SC.ELEMENTARI P.ZZA MARTIRI;25/02/2019;1080;0;654;1;Spese correnti;3;Acquisto di beni e servizi;2;Acquisto di servizi;5;Utenze e canoni;4;Energia elettrica;25/02/2019
328;1;0;85,36;85,36;DOLOMITI ENERGIA SPA;7142067C20;SALDO Fatt.n. 41900204161  del 30/01/2019 ENERGIA ELETTRICA DICEMBRE 2018 UTENZA MAGAZZINO COMUNALE.;25/02/2019;1080;0;654;1;Spese correnti;3;Acquisto di beni e servizi;2;Acquisto di servizi;5;Utenze e canoni;4;Energia elettrica;25/02/2019
329;1;0;31,06;31,06;DOLOMITI ENERGIA SPA;7142067C20;SALDO Fatt.n. 41900204151  del 30/01/2019 ENERGIA ELETTRICA DICEMBRE 2018 UTENZA SERV.SCALE VIA CHIESA.;25/02/2019;1080;0;654;1;Spese correnti;3;Acquisto di beni e servizi;2;Acquisto di servizi;5;Utenze e canoni;4;Energia elettrica;25/02/2019
330;1;0;132,89;132,89;DOLOMITI ENERGIA SPA;7142067C20;SALDO Fatt.n. 41900204158  del 30/01/2019 ENERGIA ELETTRICA DICEMBRE 2018 UTENZA IMP.IRRIGAZIONE 2 VIA PASCOLI.;25/02/2019;1130;0;655;1;Spese correnti;3;Acquisto di beni e servizi;2;Acquisto di servizi;5;Utenze e canoni;4;Energia elettrica;25/02/2019
331;1;0;99,03;99,03;DOLOMITI ENERGIA SPA;7142067C20;SALDO Fatt.n. 41900204154  del 30/01/2019 ENERGIA ELETTRICA DICEMBRE 2018 UTENZA IMP.IRRIGAZIONE VIA PASCOLI;25/02/2019;1130;0;655;1;Spese correnti;3;Acquisto di beni e servizi;2;Acquisto di servizi;5;Utenze e canoni;4;Energia elettrica;25/02/2019
332;1;0;377,2;377,2;DOLOMITI ENERGIA SPA;7142067C20;SALDO Fatt.n. 41900204155  del 30/01/2019 ENERGIA ELETTRICA DICEMBRE 2018 UTENZA SC.ELEMENTARI.;25/02/2019;2340;0;550;1;Spese correnti;3;Acquisto di beni e servizi;2;Acquisto di servizi;5;Utenze e canoni;999;Utenze e canoni per altri servizi n.a.c.;25/02/2019
333;1;0;536,86;536,86;DOLOMITI ENERGIA SPA;7142067C20;SALDO Fatt.n. 41900204163  del 30/01/2019 ENERGIA ELETTRICA DICEMBRE 2018 UTENZA SCUOLE MEDIE;25/02/2019;2510;0;551;1;Spese correnti;3;Acquisto di beni e servizi;2;Acquisto di servizi;5;Utenze e canoni;999;Utenze e canoni per altri servizi n.a.c.;25/02/2019
334;1;0;550,87;550,87;DOLOMITI ENERGIA SPA;7142067C20;SALDO Fatt.n. 41900204159  del 30/01/2019 ENERGIA ELETTRICA DICEMBRE 2018 UTENZA P.I. VIA MAGGIORE;25/02/2019;2510;0;551;1;Spese correnti;3;Acquisto di beni e servizi;2;Acquisto di servizi;5;Utenze e canoni;999;Utenze e canoni per altri servizi n.a.c.;25/02/2019
335;1;0;61,28;61,28;DOLOMITI ENERGIA SPA;7142067C20;SALDO Fatt.n. 41900204165  del 30/01/2019 ENERGIA ELETTRICA DICEMBRE 2018 UTENZA CIMITERO CESSALTO;25/02/2019;4140;0;656;1;Spese correnti;3;Acquisto di beni e servizi;2;Acquisto di servizi;5;Utenze e canoni;4;Energia elettrica;25/02/2019
336;1;0;46,25;46,25;DOLOMITI ENERGIA SPA;7142067C20;SALDO Fatt.n. 41900204164  del 30/01/2019 ENERGIA ELETTRICA DICEMBRE 2018 UTENZA CIMITERO S.M.DI CAMPAGNA.;25/02/2019;4140;0;656;1;Spese correnti;3;Acquisto di beni e servizi;2;Acquisto di servizi;5;Utenze e canoni;4;Energia elettrica;25/02/2019
337;1;0;35,92;35,92;DOLOMITI ENERGIA SPA;7142067C20;SALDO Fatt.n. 41900204166  del 30/01/2019 ENERGIA ELETTRICA DICEMBRE 2018 UTENZA CIMITERO S.ANASTASIO.;25/02/2019;4140;0;656;1;Spese correnti;3;Acquisto di beni e servizi;2;Acquisto di servizi;5;Utenze e canoni;4;Energia elettrica;25/02/2019
338;1;0;663,35;663,35;DOLOMITI ENERGIA SPA;7142067C20;SALDO Fatt.n. 41900204167  del 30/01/2019 ENERGIA ELETTRICA DICEMBRE 2018 UTENZA PALAZZETTO SPORT;25/02/2019;5290;0;553;1;Spese correnti;3;Acquisto di beni e servizi;2;Acquisto di servizi;5;Utenze e canoni;999;Utenze e canoni per altri servizi n.a.c.;25/02/2019
339;1;0;100,61;100,61;DOLOMITI ENERGIA SPA;7142067C20;SALDO Fatt.n. 41900215816  del 30/01/2019 ENERGIA ELETTRICA DICEMBRE 2018 UTENZA P.I. P.ZZA MARTIRI;25/02/2019;5290;0;553;1;Spese correnti;3;Acquisto di beni e servizi;2;Acquisto di servizi;5;Utenze e canoni;999;Utenze e canoni per altri servizi n.a.c.;25/02/2019
340;1;0;508,63;508,63;DOLOMITI ENERGIA SPA;7142067C20;ACCONTO Fatt.n. 41900184426  del 30/01/2019 ENERGIA ELETTRICA DICEMBRE 2018 UTENZA P.I.;25/02/2019;5290;0;553;1;Spese correnti;3;Acquisto di beni e servizi;2;Acquisto di servizi;5;Utenze e canoni;999;Utenze e canoni per altri servizi n.a.c.;25/02/2019
341;1;0;269,03;269,03;DOLOMITI ENERGIA SPA;7142067C20;ACCONTO Fatt.n. 41900184426  del 30/01/2019 ENERGIA ELETTRICA DICEMBRE 2018 UTENZA P.I.;25/02/2019;1130;0;655;1;Spese correnti;3;Acquisto di beni e servizi;2;Acquisto di servizi;5;Utenze e canoni;4;Energia elettrica;25/02/2019
342;1;0;571,25;571,25;DOLOMITI ENERGIA SPA;7142067C20;ACCONTO Fatt.n. 41900184426  del 30/01/2019 ENERGIA ELETTRICA DICEMBRE 2018 UTENZA P.I.;25/02/2019;340;0;547;1;Spese correnti;3;Acquisto di beni e servizi;2;Acquisto di servizi;5;Utenze e canoni;999;Utenze e canoni per altri servizi n.a.c.;25/02/2019
343;1;0;8.379,50;8.379,50;DOLOMITI ENERGIA SPA;7142067C20;SALDO Fatt.n. 41900184426  del 30/01/2019 ENERGIA ELETTRICA DICEMBRE 2018 UTENZA P.I.;25/02/2019;6000;0;554;1;Spese correnti;3;Acquisto di beni e servizi;2;Acquisto di servizi;5;Utenze e canoni;999;Utenze e canoni per altri servizi n.a.c.;25/02/2019
344;1;0;788,78;788,78;AGENZIA DELLE ENTRATE RISCOSSIONE; ;LIQUIDAZIONE QUOTA ASSOCIATIVA ASSOCIAZIONE NAZIONALE COMUNI ITALIANI ANNO 2019 - AVVISO 012830L019000003062 DEL 02/01/2019.;25/02/2019;510;0;82;1;Spese correnti;3;Acquisto di beni e servizi;2;Acquisto di servizi;99;Altri servizi;3;Quote di associazioni;25/02/2019
345;1;0;36,5;36,5;MARCATO MARTA ECONOMO COMUNALE; ;REINTEGRO IMPOSTA DI BOLLO E COMPETENZE LIQUIDAZIONE 3^ TRIMESTRE 2018.;25/02/2019;450;0;802;1;Spese correnti;3;Acquisto di beni e servizi;2;Acquisto di servizi;17;Servizi finanziari;1;Commissioni per servizi finanziari;25/02/2019
346;1;0;36,16;36,16;MARCATO MARTA ECONOMO COMUNALE; ;REINTEGRO IMPOSTA DI BOLLO E COMPETENZE LIQUIDAZIONE 4^ TRIMESTRE 2018.;25/02/2019;450;0;803;1;Spese correnti;3;Acquisto di beni e servizi;2;Acquisto di servizi;17;Servizi finanziari;1;Commissioni per servizi finanziari;25/02/2019
347;1;0;16,4;16,4;MARCATO MARTA ECONOMO COMUNALE; ;REINTEGRO PER COMPETENZE CHIUSURA CONTO.;25/02/2019;450;0;804;1;Spese correnti;3;Acquisto di beni e servizi;2;Acquisto di servizi;17;Servizi finanziari;1;Commissioni per servizi finanziari;25/02/2019
348;1;0;415;415;ISPEL SRL;ZC32629DB5;ACCONTO Fatt.n. 435  del 19/02/2019 VERIFICA IMPIANTO DI TERRA TORRI FARRO.;25/02/2019;5910;0;676;1;Spese correnti;3;Acquisto di beni e servizi;2;Acquisto di servizi;9;Manutenzione ordinaria e riparazioni;4;Manutenzione ordinaria e riparazioni di impianti e macchinari;25/02/2019
349;1;0;500;500;ISPEL SRL;ZC32629DB5;SALDO Fatt.n. 435  del 19/02/2019 VERIFICA IMPIANTO DI TERRA TORRI FARRO.;25/02/2019;6011;0;677;1;Spese correnti;3;Acquisto di beni e servizi;2;Acquisto di servizi;9;Manutenzione ordinaria e riparazioni;4;Manutenzione ordinaria e riparazioni di impianti e macchinari;25/02/2019
350;1;0;3.074,40;3.074,40;TERRALINK s.r.l.;Z0F26F594B;SALDO Fatt.n. 10/PA  del 01/02/2019 SERVIZI DI CONNESSIONE WIFI;26/02/2019;440;0;49;1;Spese correnti;3;Acquisto di beni e servizi;2;Acquisto di servizi;19;Servizi informatici e di telecomunicazioni;1;Gestione e manutenzione applicazioni;26/02/2019
351;1;0;1.833,42;1.833,42;TINET SRL;ZF02665B02;"SALDO Fatt.n. F04-2018-157  del 29/12/2018 CANONE ASSISTENZA SERVIZI "" GOLD"" E CANONE ASSISTENZA FIREWALL PER 12 MESI";26/02/2019;440;0;713;1;Spese correnti;3;Acquisto di beni e servizi;2;Acquisto di servizi;19;Servizi informatici e di telecomunicazioni;999;Altri servizi informatici e di telecomunicazioni n.a.c.;26/02/2019
352;1;0;321,29;321,29;RIFUGIO ENPA SEZIONE DI TREVISO;5,34E+41;SALDO Fatt.n. 155/PA  del 21/01/2019 CUSTODIA E MANTENIMENTO CANI OTT/DIC 2018;26/02/2019;4000;0;229;1;Spese correnti;3;Acquisto di beni e servizi;2;Acquisto di servizi;15;Contratti di servizio pubblico;11;Contratti di servizio per la lotta al randagismo;26/02/2019
353;1;0;193,82;193,82;ADPARTNERS SRL;Z6926CF730;SALDO Fatt.n. 249/2019  del 28/01/2019 ACQUISTO TELEFONO CORDLESS PER SCUOLA SECONDARIA;26/02/2019;2511;0;81;1;Spese correnti;3;Acquisto di beni e servizi;1;Acquisto di beni;2;Altri beni di consumo;7;Altri materiali tecnico-specialistici non sanitari;26/02/2019
354;1;0;349,04;349,04;ADPARTNERS SRL;Z4026DD482;ACCONTO Fatt.n. 275/2019  del 31/01/2019 N. 3 DUAL SIM BLACK;26/02/2019;650;0;37;1;Spese correnti;3;Acquisto di beni e servizi;1;Acquisto di beni;2;Altri beni di consumo;999;Altri beni e materiali di consumo n.a.c.;26/02/2019
355;1;0;174,52;174,52;ADPARTNERS SRL;Z4026DD482;SALDO Fatt.n. 275/2019  del 31/01/2019 N. 3 DUAL SIM BLACK;26/02/2019;337;0;38;1;Spese correnti;3;Acquisto di beni e servizi;1;Acquisto di beni;2;Altri beni di consumo;999;Altri beni e materiali di consumo n.a.c.;26/02/2019
356;1;0;20.755,86;20.755,86;ELTRAFF SRL;ZD72627BE1;SALDO Fatt.n. 1497/18/PA  del 28/12/2018 FORNITURA MISURATORE DI VELOCITA' TELELASER TRUCAM HD;28/02/2019;7446;0;675;2;Spese in conto capitale;2;Investimenti fissi lordi e acquisto di terreni;1;Beni materiali;5;Attrezzature;999;Attrezzature n.a.c.;28/02/2019
357;1;0;7.869,00;7.869,00;ECORAPPRESENTANZE DI DE LUCCA M. E PAVAN C. SNC;ZCA25B87C4;"SALDO Fatt.n. 2  del 10/01/2019 REALIZZAZIONE DI STACCIONATE SU ALCUNE AREE VERDI COMUNALI E FORNITURA DI DUE GIOCHI ""CAMPANON"".";28/02/2019;9523;0;614;2;Spese in conto capitale;2;Investimenti fissi lordi e acquisto di terreni;1;Beni materiali;9;Beni immobili;999;Beni immobili n.a.c.;28/02/2019
367;1;0;592,68;592,68;WOLTERS KLUWER ITALIA SRL;Z201CC5548;SALDO Fatt.n. 0054501561  del 18/01/2019 SISTEMA LEGGI D'ITALIA;06/03/2019;420;0;44;1;Spese correnti;3;Acquisto di beni e servizi;2;Acquisto di servizi;5;Utenze e canoni;3;Accesso a banche dati e a pubblicazioni on line;06/03/2019
370;1;0;150,27;150,27;SHARP ELECTRONICS ITALIA SPA;ZD10C6059F;SALDO Fatt.n. 7718023182  del 21/12/2018 CANONE NOLEGGIO FOTOCOPIATRICI PERIODO DAL 19/09/2018 AL 18/12/2018.;07/03/2019;440;0;133;1;Spese correnti;3;Acquisto di beni e servizi;2;Acquisto di servizi;19;Servizi informatici e di telecomunicazioni;999;Altri servizi informatici e di telecomunicazioni n.a.c.;07/03/2019
371;1;0;3,9;3,9;VODAFONE OMNITEL N.V;Z7B2733939;SALDO Fatt.n. AL03030480  del 20/02/2019 SPESE TELEFONO RICARICA M2M GOLD PERIODO 16 DICEMBRE 2018 AL 15 FEBBRAIO 2019.;07/03/2019;340;0;105;1;Spese correnti;3;Acquisto di beni e servizi;2;Acquisto di servizi;5;Utenze e canoni;2;Telefonia mobile;07/03/2019
372;1;0;83,95;83,95;MINISTERO INTERNO; ;COMUNE DI CESSALTO - CORRISPETTIVO PER IL RILASCIO N.5 CARTE D'IDENTITA'  PERIODO 16-28 FEBBRAIO 2019.;07/03/2019;822;0;130;1;Spese correnti;4;Trasferimenti correnti;1;Trasferimenti correnti a Amministrazioni Pubbliche;1;Trasferimenti correnti a Amministrazioni Centrali;1;Trasferimenti correnti a Ministeri;07/03/2019
373;1;0;385;385;TEATRINO DELLA NEVE; ;SALDO Fatt.n. FATTPA 6_19  del 28/02/2019 ORGANIZZAZIONE PROGRAMMA DI INCONTRI DI LETTURA ESPRESSIVA PER BAMBINI PROPOSTO DALL'ASSOCIAZIONE TEATRINO DELLA NEVE DI SAN DONA' DI PIAVE.;07/03/2019;3031;0;602;1;Spese correnti;3;Acquisto di beni e servizi;2;Acquisto di servizi;2;Organizzazione eventi, pubblicita` e servizi per trasferta;999;Altre spese per relazioni pubbliche, convegni e mostre, pubblicita` n.a.c;07/03/2019
374;1;0;170,96;170,96;TIM SPA;ZB72739CBC;SALDO Fatt.n. 8E00120583  del 06/02/2019 SPESE TELEFONO LINEA ISDN PERIODO DICEMBRE 2018 - GENNAIO 2019 SEDE MUNICIPALE .;07/03/2019;340;0;108;1;Spese correnti;3;Acquisto di beni e servizi;2;Acquisto di servizi;5;Utenze e canoni;1;Telefonia fissa;07/03/2019
375;1;0;99,6;99,6;TIM SPA;ZB72739CBC;SALDO Fatt.n. 8E00124786  del 06/02/2019 SPESE TELEFONO LINEA ISDN PERIODO DICEMBRE 2018 - GENNAIO 2019 UTENZA SEDE MUNICIPALE.;07/03/2019;340;0;108;1;Spese correnti;3;Acquisto di beni e servizi;2;Acquisto di servizi;5;Utenze e canoni;1;Telefonia fissa;07/03/2019
376;1;0;139,69;139,69;TIM SPA;ZB72739CBC;SALDO Fatt.n. 8E00120574  del 06/02/2019 SPESE TELEFONO LINEA TELEFONICA AFFARI DICEMBRE 2018 - GENNAIO 2019 FAX MUNICIPIO.;07/03/2019;340;0;108;1;Spese correnti;3;Acquisto di beni e servizi;2;Acquisto di servizi;5;Utenze e canoni;1;Telefonia fissa;07/03/2019
377;1;0;97,93;97,93;TIM SPA;Z4D21F70D6;SALDO Fatt.n. 8E00124823  del 06/02/2019 SPESE TELEFONO LINEA TELEFONICA AFFARI DICEMBRE 2018 - GENNAIO 2019 CENTRO ANZIANI.;07/03/2019;1080;0;32;1;Spese correnti;3;Acquisto di beni e servizi;2;Acquisto di servizi;5;Utenze e canoni;1;Telefonia fissa;07/03/2019
378;1;0;37,92;37,92;TIM SPA;Z4D21F70D6;ACCONTO Fatt.n. 8E00123116  del 06/02/2019 SPESE TELEFONO LINEA TELEFONICA AFFARI PERIODO DICEMBRE 2018-GENNAIO 2019 ASCENSORE VILLA MARIA VIA MAGGIORE.;07/03/2019;1080;0;32;1;Spese correnti;3;Acquisto di beni e servizi;2;Acquisto di servizi;5;Utenze e canoni;1;Telefonia fissa;07/03/2019
379;1;0;39,87;39,87;TIM SPA;Z4D21F70D6;SALDO Fatt.n. 8E00123116  del 06/02/2019 SPESE TELEFONO LINEA TELEFONICA AFFARI PERIODO DICEMBRE 2018-GENNAIO 2019 ASCENSORE VILLA MARIA VIA MAGGIORE.;07/03/2019;2340;0;33;1;Spese correnti;3;Acquisto di beni e servizi;2;Acquisto di servizi;5;Utenze e canoni;1;Telefonia fissa;07/03/2019
380;1;0;179,57;179,57;TIM SPA;Z4D21F70D6;SALDO Fatt.n. 8E00121260  del 06/02/2019 SPESE TELEFONO LINEA TELEFONICA AFFARI PERIODO DICEMBRE 2018-GENNAIO 2019 SCUOLA MEDIA.;07/03/2019;2510;0;34;1;Spese correnti;3;Acquisto di beni e servizi;2;Acquisto di servizi;5;Utenze e canoni;1;Telefonia fissa;07/03/2019
381;1;0;30,97;30,97;TIM SPA;Z4D21F70D6;ACCONTO Fatt.n. 8E00122868  del 06/02/2019 SPESE TELEFONO LINEA TELEFONICA AFFARI DICEMBRE 2018 - GENNAIO 2019 ASCENSORE SCUOLA MEDIA.;07/03/2019;2510;0;34;1;Spese correnti;3;Acquisto di beni e servizi;2;Acquisto di servizi;5;Utenze e canoni;1;Telefonia fissa;07/03/2019
382;1;0;37,11;37,11;TIM SPA;ZB72739CBC;SALDO Fatt.n. 8E00122868  del 06/02/2019 SPESE TELEFONO LINEA TELEFONICA AFFARI DICEMBRE 2018 - GENNAIO 2019 ASCENSORE SCUOLA MEDIA.;07/03/2019;2510;0;112;1;Spese correnti;3;Acquisto di beni e servizi;2;Acquisto di servizi;5;Utenze e canoni;1;Telefonia fissa;07/03/2019
383;1;0;126,13;126,13;TIM SPA;Z4D21F70D6;ACCONTO Fatt.n. 8E00120008  del 06/02/2019 SPESE TELEFONO LINEA ISDN DICEMBRE 2018 - GENNAIO 2019 SCUOLA ELEMENTARE.;07/03/2019;2340;0;33;1;Spese correnti;3;Acquisto di beni e servizi;2;Acquisto di servizi;5;Utenze e canoni;1;Telefonia fissa;07/03/2019
384;1;0;156;156;TIM SPA;ZB72739CBC;SALDO Fatt.n. 8E00120008  del 06/02/2019 SPESE TELEFONO LINEA ISDN DICEMBRE 2018 - GENNAIO 2019 SCUOLA ELEMENTARE.;07/03/2019;2340;0;111;1;Spese correnti;3;Acquisto di beni e servizi;2;Acquisto di servizi;5;Utenze e canoni;1;Telefonia fissa;07/03/2019
385;1;0;76,93;76,93;TIM SPA;ZB72739CBC;SALDO Fatt.n. 8E00119337  del 06/02/2019 SPESE TELEFONO LINEA AFFARI DICEMBRE 2018 - GENNAIO 2019 UTENZA ASCENSORE SCUOLA ELEMENTARE.;07/03/2019;2340;0;111;1;Spese correnti;3;Acquisto di beni e servizi;2;Acquisto di servizi;5;Utenze e canoni;1;Telefonia fissa;07/03/2019
386;1;0;213,57;213,57;TIM SPA;ZB72739CBC;SALDO Fatt.n. 8E00124901  del 06/02/2019 SPESE TELEFONO LINEA ISDN PERIODO DICEMBRE 2018 - GENNAIO 2019 BIBLIOTECA COMUNALE.;07/03/2019;3062;0;113;1;Spese correnti;3;Acquisto di beni e servizi;2;Acquisto di servizi;5;Utenze e canoni;1;Telefonia fissa;07/03/2019
387;1;0;128,1;128,1;BRUGNERA LIVIO;Z3926B4797;SALDO Fatt.n. 1/PA  del 12/02/2019 COMMISSIONE COMUNALE VIGILANZA LOCALI PUBBLICO SPETTACOLO 07/02/19 SAN VALENTINO;07/03/2019;640;0;13;1;Spese correnti;3;Acquisto di beni e servizi;2;Acquisto di servizi;11;Prestazioni professionali e specialistiche;999;Altre prestazioni professionali e specialistiche n.a.c.;07/03/2019
388;1;0;1.617,94;1.617,94;COMUNE DI ODERZO; ;RIMBORSO AL COMUNE DI ODERZO QUOTA SPESE PER IL FUNZIONAMENTO DELL'UFFICIO DI COLLOCAMENTO ANNO 2018.;07/03/2019;5830;0;131;1;Spese correnti;4;Trasferimenti correnti;1;Trasferimenti correnti a Amministrazioni Pubbliche;2;Trasferimenti correnti a Amministrazioni Locali;3;Trasferimenti correnti a Comuni;07/03/2019
389;1;0;693;693;ASSOCIAZIONE CULTURALE LINGUISTICA EDUCATIONAL; ;SALDO Fatt.n. 0000021/PA  del 13/02/2019 PDI PROGETTO CLIL WORKSHOP IN DATA 15/01/19;07/03/2019;3031;0;661;1;Spese correnti;3;Acquisto di beni e servizi;2;Acquisto di servizi;2;Organizzazione eventi, pubblicita` e servizi per trasferta;5;Organizzazione e partecipazione a manifestazioni e convegni;07/03/2019
390;1;0;464,66;464,66;COMUNE DI ODERZO; ;RIMBORSO AL COMUNE DI ODERZO QUOTA SPESE FUNZIONAMENTO SEDE STACCATA DELL'AGENZIA DELLE ENTRATE.;13/03/2019;5830;0;132;1;Spese correnti;4;Trasferimenti correnti;1;Trasferimenti correnti a Amministrazioni Pubbliche;2;Trasferimenti correnti a Amministrazioni Locali;3;Trasferimenti correnti a Comuni;13/03/2019
391;1;0;2.733,08;2.733,08;AMMINISTRATORI C/INDENNITA' DI CARICA; ;mar-19;18/03/2019;20;0;3;1;Spese correnti;3;Acquisto di beni e servizi;2;Acquisto di servizi;1;Organi e incarichi istituzionali dell'amministrazione;1;Organi istituzionali dell'amministrazione - Indennità;18/03/2019
450;1;0;12.437,70;12.437,70;PIOVESAN MORENO;Z67256B525;SALDO Fatt.n. 3/PA  del 20/02/2019 LAVORI DI SISTEMAZIONE ACCESSO AL PLESSO SCOLASTICO DI VIA L.EINAUDI;18/03/2019;8071;0;576;2;Spese in conto capitale;2;Investimenti fissi lordi e acquisto di terreni;1;Beni materiali;9;Beni immobili;3;Fabbricati ad uso scolastico;18/03/2019
451;1;0;1.061,50;1.061,50;PIOVESAN MORENO;Z67256B525;SALDO Fatt.n. 4/PA  del 20/02/2019 LAVORI RELATIVI ALLO SPOSTAMENTO DI UN PALO DI ILLUMINAZIONE, POSA DI UNA GUIDA A TERRA CON OPERE CORRELATE PER REALIZZAZIONE DI UN CANCELLO TRA PERCORSO CICLO-PEDONALE E IMP.SPORTIVI.;18/03/2019;8071;0;576;2;Spese in conto capitale;2;Investimenti fissi lordi e acquisto di terreni;1;Beni materiali;9;Beni immobili;3;Fabbricati ad uso scolastico;18/03/2019
452;1;0;560,11;560,11;LE LIBRERIE SRL;ZB0266DDCF;SALDO Fatt.n. 36/B/PA  del 28/02/2019 ACQUISTO LIBRI PER BIBLIOTECA COMUNALE.;18/03/2019;3020;0;711;1;Spese correnti;3;Acquisto di beni e servizi;1;Acquisto di beni;2;Altri beni di consumo;999;Altri beni e materiali di consumo n.a.c.;18/03/2019
453;1;0;1.500,00;1.500,00;A.S.D. EUROPEO CESSALTO; ;EROGAZIONE II RATA CONTRIBUTO PER CONVENZIONE PER L'UTILIZZO DEGLI IMPIANTI SPORTIVI DEL CALCIO DI VIA DIAZ DA PARTE DELL'ASSOCIAZIONE SPORTIVA DILETTANTISTICA EUROPEO CESSALTO PER LA STAGIONE SPORTIVA 2018/19.;18/03/2019;5289;0;495;1;Spese correnti;4;Trasferimenti correnti;4;Trasferimenti correnti a Istituzioni Sociali Private;1;Trasferimenti correnti a Istituzioni Sociali Private;1;Trasferimenti correnti a Istituzioni Sociali Private;18/03/2019
454;1;0;1.580,38;1.580,38;GLOBAL ENERGY S.R.L.; ;SALDO Fatt.n. 0047  del 19/02/2019 PROVENTI CONTO ENERGIA RELATIVO ALL'IMPIANTO FOTOVOLTAICO REALIZZATO PRESSO LA SCUOLA ELEMENTARE.;25/03/2019;2342;0;173;1;Spese correnti;4;Trasferimenti correnti;3;Trasferimenti correnti a Imprese;99;Trasferimenti correnti a altre imprese;999;Trasferimenti correnti a altre imprese;25/03/2019
455;1;0;1.019,26;1.019,26;GLOBAL ENERGY S.R.L.; ;SALDO Fatt.n. 0048  del 19/02/2019 PROVENTI CONTO ENERGIA RELATIVO ALL'IMPIANTO FOTOVOLTAICO PRESSO IL PALAZZETTO DELLO SPORT DI CESSALTO;25/03/2019;5291;0;174;1;Spese correnti;4;Trasferimenti correnti;3;Trasferimenti correnti a Imprese;99;Trasferimenti correnti a altre imprese;999;Trasferimenti correnti a altre imprese;25/03/2019
456;1;0;235,06;235,06;MINISTERO INTERNO; ;COMUNE DI CESSALTO - CORRISPETTIVO PER IL RILASCIO DI N.14 CARTE D'IDENTITA' PERIODO 01-15 MARZO 2019.;25/03/2019;822;0;172;1;Spese correnti;4;Trasferimenti correnti;1;Trasferimenti correnti a Amministrazioni Pubbliche;1;Trasferimenti correnti a Amministrazioni Centrali;1;Trasferimenti correnti a Ministeri;25/03/2019
457;1;0;4.830,00;4.830,00;ASSOCIAZIONE ANZIANI CESSALTO; ;CONCESSIONE CONTRIBUTO ECONOMICO PER L'ORGANIZZAZIONE DI ATTIVITA' DI GINNASTICA E NUOTO, A FAVORE DEGLI ANZIANI E DISABILI, ORGANIZZATE NELL'ANNO 2018/2019;25/03/2019;5659;0;740;1;Spese correnti;4;Trasferimenti correnti;4;Trasferimenti correnti a Istituzioni Sociali Private;1;Trasferimenti correnti a Istituzioni Sociali Private;1;Trasferimenti correnti a Istituzioni Sociali Private;25/03/2019
458;1;0;386,88;386,88;REGIONE VENETO; ;VERSAMENTO 0,40 PER CENTO VALORE LOCATIVO ALLOGGI ERP - ANNO 2018 - CAPITOLO N.101153/E.;26/03/2019;5658;0;722;1;Spese correnti;4;Trasferimenti correnti;2;Trasferimenti correnti a Famiglie;2;Interventi assistenziali;999;Altri assegni e sussidi assistenziali;26/03/2019
459;1;0;384;384;REGIONE VENETO; ;VERSAMENTO 0,40 PER CENTO VALORE LOCATIVO ALLOGGI ERP - ANNO 2018 - CAPITOLO N.101153/E.;26/03/2019;5658;0;177;1;Spese correnti;4;Trasferimenti correnti;2;Trasferimenti correnti a Famiglie;2;Interventi assistenziali;999;Altri assegni e sussidi assistenziali;26/03/2019
460;1;0;12.766,59;12.766,59;EURO TOURS S.R.L.;65873873B8;SALDO Fatt.n. 00076  del 28/02/2019 SERVIZIO TRASPORTO SCOLASTICO ANNO SCOLASTICO 2018/2019 MESE DI FEBBRAIO 2019.;28/03/2019;2720;0;373;1;Spese correnti;3;Acquisto di beni e servizi;2;Acquisto di servizi;15;Contratti di servizio pubblico;2;Contratti di servizio di trasporto scolastico;28/03/2019
461;1;0;108,16;108,16;POSTE ITALIANE SPA;Z6D1D3140D;SALDO Fatt.n. 8719032413  del 05/02/2019 SPESE POSTALI MESE DI NOVEMBRE;28/03/2019;340;0;685;1;Spese correnti;3;Acquisto di beni e servizi;2;Acquisto di servizi;5;Utenze e canoni;999;Utenze e canoni per altri servizi n.a.c.;28/03/2019
462;1;0;88,79;88,79;POSTE ITALIANE SPA;Z6D1D3140D;SALDO Fatt.n. 8719032414  del 05/02/2019 SPESE POSTALI MESE DI DICEMBRE;28/03/2019;340;0;685;1;Spese correnti;3;Acquisto di beni e servizi;2;Acquisto di servizi;5;Utenze e canoni;999;Utenze e canoni per altri servizi n.a.c.;28/03/2019
463;1;0;534,25;534,25;DOLOMITI ENERGIA SPA;7142067C20;SALDO Fatt.n. 41900750681  del 27/02/2019 FORNITURA ENERGIA ELETTRICA SEDE MUNICIPALE P.ZZA MARTIRI DELLA LIBERTA' 3 MESE DI GENNAIO 2019.;28/03/2019;340;0;129;1;Spese correnti;3;Acquisto di beni e servizi;2;Acquisto di servizi;5;Utenze e canoni;4;Energia elettrica;28/03/2019
464;1;0;123,2;123,2;DOLOMITI ENERGIA SPA;7142067C20;SALDO Fatt.n. 41900750673  del 27/02/2019 FORNITURA ENERGIA ELETTRICA IMPIANTO IRRIGAZIONE VIA PASCOLI MESE DI GENNAIO 2019.;28/03/2019;1130;0;131;1;Spese correnti;3;Acquisto di beni e servizi;2;Acquisto di servizi;5;Utenze e canoni;4;Energia elettrica;28/03/2019
465;1;0;162,52;162,52;DOLOMITI ENERGIA SPA;7142067C20;SALDO Fatt.n. 41900750677  del 27/02/2019 FORNITURA ENERGIA ELETTRICA IMP.IRRIGAZIONE DI VIA PASCOLI MESE DI GENNAIO 2019.;28/03/2019;1130;0;131;1;Spese correnti;3;Acquisto di beni e servizi;2;Acquisto di servizi;5;Utenze e canoni;4;Energia elettrica;28/03/2019
466;1;0;65,21;65,21;DOLOMITI ENERGIA SPA;7142067C20;SALDO Fatt.n. 41900750684  del 27/02/2019 FORNITURA ENERGIA ELETTRICA CIMITERO CESSALTO VIA U.FOSCOLO MESE DI GENNAIO 2019.;28/03/2019;4140;0;656;1;Spese correnti;3;Acquisto di beni e servizi;2;Acquisto di servizi;5;Utenze e canoni;4;Energia elettrica;28/03/2019
467;1;0;40,47;40,47;DOLOMITI ENERGIA SPA;7142067C20;SALDO Fatt.n. 41900750685  del 27/02/2019 FORNITURA ENERGIA ELETTRICA CIMITERO S.ANASTASIO VIA CHIESA 6 MESE DI GENNAIO 2019.;28/03/2019;4140;0;656;1;Spese correnti;3;Acquisto di beni e servizi;2;Acquisto di servizi;5;Utenze e canoni;4;Energia elettrica;28/03/2019
468;1;0;8,84;8,84;DOLOMITI ENERGIA SPA;7142067C20;ACCONTO Fatt.n. 41900750683  del 27/02/2019 FORNITURA ENERGIA ELETTRICA CIMITERO S.M.CAMPAGNA DI VIA MAGGIORE MESE DI GENNAIO 2019.;28/03/2019;4140;0;656;1;Spese correnti;3;Acquisto di beni e servizi;2;Acquisto di servizi;5;Utenze e canoni;4;Energia elettrica;28/03/2019
469;1;0;42,34;42,34;DOLOMITI ENERGIA SPA;7142067C20;SALDO Fatt.n. 41900750683  del 27/02/2019 FORNITURA ENERGIA ELETTRICA CIMITERO S.M.CAMPAGNA DI VIA MAGGIORE MESE DI GENNAIO 2019.;28/03/2019;4140;0;133;1;Spese correnti;3;Acquisto di beni e servizi;2;Acquisto di servizi;5;Utenze e canoni;4;Energia elettrica;28/03/2019
470;1;0;116,72;116,72;DOLOMITI ENERGIA SPA;7142067C20;ACCONTO Fatt.n. 41900750686  del 27/02/2019 FORNITURA ENERGIA ELETTRICA PALAZZETTO DELLO SPORT VIA G.GALILEI MESE DI GENNAIO 2019.;28/03/2019;5290;0;553;1;Spese correnti;3;Acquisto di beni e servizi;2;Acquisto di servizi;5;Utenze e canoni;999;Utenze e canoni per altri servizi n.a.c.;28/03/2019
471;1;0;679,67;679,67;DOLOMITI ENERGIA SPA;7142067C20;SALDO Fatt.n. 41900750686  del 27/02/2019 FORNITURA ENERGIA ELETTRICA PALAZZETTO DELLO SPORT VIA G.GALILEI MESE DI GENNAIO 2019.;28/03/2019;5290;0;134;1;Spese correnti;3;Acquisto di beni e servizi;2;Acquisto di servizi;5;Utenze e canoni;4;Energia elettrica;28/03/2019
472;1;0;456,12;456,12;DOLOMITI ENERGIA SPA;7142067C20;SALDO Fatt.n. 41900750674  del 27/02/2019 FORNITURA ENERGIA ELETTRICA SCUOLA ELEMENTARE MESE DI GENNAIO 2019.;28/03/2019;2340;0;550;1;Spese correnti;3;Acquisto di beni e servizi;2;Acquisto di servizi;5;Utenze e canoni;999;Utenze e canoni per altri servizi n.a.c.;28/03/2019
473;1;0;720,91;720,91;DOLOMITI ENERGIA SPA;7142067C20;SALDO Fatt.n. 41900750682  del 27/02/2019 FORNITURA ENERGIA ELETTRICA SCUOLA MEDIA MESE DI GENNAIO 2019.;28/03/2019;2510;0;551;1;Spese correnti;3;Acquisto di beni e servizi;2;Acquisto di servizi;5;Utenze e canoni;999;Utenze e canoni per altri servizi n.a.c.;28/03/2019
474;1;0;121,34;121,34;DOLOMITI ENERGIA SPA;7142067C20;SALDO Fatt.n. 41900747426  del 27/02/2019 FORNITURA ENERGIA ELETTRICA PUBBLICA ILLUMINAZIONE PIAZZA MARTIRI DELLA LIBERTA' MESE DI GENNAIO 2019.;28/03/2019;6000;0;135;1;Spese correnti;3;Acquisto di beni e servizi;2;Acquisto di servizi;5;Utenze e canoni;4;Energia elettrica;28/03/2019
475;1;0;124,68;124,68;DOLOMITI ENERGIA SPA;7142067C20;SALDO Fatt.n. 41900747427  del 27/02/2019 FORNITURA ENERGIA ELETTRICA PUBBLICA ILLUMINAZIONE PIAZZA MARTIRI DELLA LIBERTA' MESE DI GENNAIO 2019.;28/03/2019;6000;0;135;1;Spese correnti;3;Acquisto di beni e servizi;2;Acquisto di servizi;5;Utenze e canoni;4;Energia elettrica;28/03/2019
476;1;0;553,81;553,81;DOLOMITI ENERGIA SPA;7142067C20;SALDO Fatt.n. 41900750678  del 27/02/2019 FORNITURA ENERGIA ELETTRICA PUBBLICA ILLUMINAZIONE VIA MAGGIORE 115/X MESE DI GENNAIO 2019.;28/03/2019;6000;0;135;1;Spese correnti;3;Acquisto di beni e servizi;2;Acquisto di servizi;5;Utenze e canoni;4;Energia elettrica;28/03/2019
477;1;0;9.865,58;9.865,58;DOLOMITI ENERGIA SPA;7142067C20;SALDO Fatt.n. 41900759132  del 27/02/2019 FORNITURA ENERGIA ELETTRICA PUBBLICA ILLUMINAZIONE MESE DI GENNAIO 2019.;28/03/2019;6000;0;135;1;Spese correnti;3;Acquisto di beni e servizi;2;Acquisto di servizi;5;Utenze e canoni;4;Energia elettrica;28/03/2019
478;1;0;38,71;38,71;DOLOMITI ENERGIA SPA;7142067C20;SALDO Fatt.n. 41900750675  del 27/02/2019 FORNITURA ENERGIA ELTTRICA SEDE AVIS VIA A.DIAZ MESE DI GENNAIO 2019.;28/03/2019;1080;0;654;1;Spese correnti;3;Acquisto di beni e servizi;2;Acquisto di servizi;5;Utenze e canoni;4;Energia elettrica;28/03/2019
479;1;0;34,99;34,99;DOLOMITI ENERGIA SPA;7142067C20;SALDO Fatt.n. 41900750670  del 27/02/2019 FORNITURA ENERGIA ELETTRICA SERVIZIO SCALE DI VIA CHIESA MESE DI GENNAIO 2019.;28/03/2019;1080;0;654;1;Spese correnti;3;Acquisto di beni e servizi;2;Acquisto di servizi;5;Utenze e canoni;4;Energia elettrica;28/03/2019
480;1;0;20,82;20,82;DOLOMITI ENERGIA SPA;7142067C20;ACCONTO Fatt.n. 41900750680  del 27/02/2019 FORNITURA ENERGIA ELETTRICA MAGAZZINO PIAZZA MARTIRI DELLA LIBERTA' MESE DI GENNAIO 2019.;28/03/2019;1080;0;654;1;Spese correnti;3;Acquisto di beni e servizi;2;Acquisto di servizi;5;Utenze e canoni;4;Energia elettrica;28/03/2019
481;1;0;70,45;70,45;DOLOMITI ENERGIA SPA;7142067C20;SALDO Fatt.n. 41900750680  del 27/02/2019 FORNITURA ENERGIA ELETTRICA MAGAZZINO PIAZZA MARTIRI DELLA LIBERTA' MESE DI GENNAIO 2019.;28/03/2019;1080;0;130;1;Spese correnti;3;Acquisto di beni e servizi;2;Acquisto di servizi;5;Utenze e canoni;4;Energia elettrica;28/03/2019
482;1;0;48,9;48,9;DOLOMITI ENERGIA SPA;7142067C20;SALDO Fatt.n. 41900750672  del 27/02/2019 FORNITURA ENERGIA ELETTRICA AMBULATORIO VIA CHIESA MESE DI GENNAIO 2019.;28/03/2019;1080;0;130;1;Spese correnti;3;Acquisto di beni e servizi;2;Acquisto di servizi;5;Utenze e canoni;4;Energia elettrica;28/03/2019
483;1;0;553,71;553,71;DOLOMITI ENERGIA SPA;7142067C20;SALDO Fatt.n. 41900750669  del 27/02/2019 FORNITURA ENERGIA ELETTRICA VILLA MARIA DI VIA MAGGIORE MESE DI GENNAIO 2019.;28/03/2019;1080;0;130;1;Spese correnti;3;Acquisto di beni e servizi;2;Acquisto di servizi;5;Utenze e canoni;4;Energia elettrica;28/03/2019
484;1;0;149,22;149,22;DOLOMITI ENERGIA SPA;7142067C20;SALDO Fatt.n. 41900750676  del 27/02/2019 FORNITURA ENERGIA ELETTRICA CENTRO SOCIALE PIU' BIBLIOTECA MESE DI GENNAIO 2019.;28/03/2019;1080;0;130;1;Spese correnti;3;Acquisto di beni e servizi;2;Acquisto di servizi;5;Utenze e canoni;4;Energia elettrica;28/03/2019
485;1;0;37,88;37,88;DOLOMITI ENERGIA SPA;7142067C20;SALDO Fatt.n. 41900750671  del 27/02/2019 FORNITURA ENERGIA ELETTRICA CENTRO SOCIALE VIA CHIESA MESE DI GENNAIO 2019.;28/03/2019;1080;0;130;1;Spese correnti;3;Acquisto di beni e servizi;2;Acquisto di servizi;5;Utenze e canoni;4;Energia elettrica;28/03/2019
486;1;0;66,93;66,93;DOLOMITI ENERGIA SPA;7142067C20;SALDO Fatt.n. 41900750668  del 27/02/2019 FORNITURA ENERGIA ELETTRICA CENTRO ANZIANI VIA MARCONI MESE DI GENNAIO 2019.;28/03/2019;1080;0;130;1;Spese correnti;3;Acquisto di beni e servizi;2;Acquisto di servizi;5;Utenze e canoni;4;Energia elettrica;28/03/2019
487;1;0;209,13;209,13;DOLOMITI ENERGIA SPA;7142067C20;SALDO Fatt.n. 41900750679  del 27/02/2019 FORNITURA ENERGIA ELETTRICA EX SCUOLA P.ZZA MARTIRI DELLA LIBERTA' MESE DI GENNAIO 2019.;28/03/2019;1080;0;130;1;Spese correnti;3;Acquisto di beni e servizi;2;Acquisto di servizi;5;Utenze e canoni;4;Energia elettrica;28/03/2019
488;1;0;73,08;73,08;WIND TRE SPA;Z2B2739C42;SALDO Fatt.n. 2019E000001426  del 21/02/2019 CANONE ADSL AZIENDE DAL 01/02/2019 AL 31/03/2019;28/03/2019;340;0;109;1;Spese correnti;3;Acquisto di beni e servizi;2;Acquisto di servizi;5;Utenze e canoni;1;Telefonia fissa;28/03/2019
489;1;0;48,04;48,04;WIND TRE SPA;Z2B2739C42;SALDO Fatt.n. 2019E000001425  del 21/02/2019 SPESE TELEFONO TRAFFICO PERIODO 01/12/2018 AL 31/01/2019.;28/03/2019;340;0;109;1;Spese correnti;3;Acquisto di beni e servizi;2;Acquisto di servizi;5;Utenze e canoni;1;Telefonia fissa;28/03/2019
490;1;0;500;500;DE ZOTTI IMPIANTI SRL;Z772262FFA;ACCONTO Fatt.n. FE-0032  del 13/02/2019 LAVORI DI MANUTENZIONE IMPIANTI ELETTRICI COMUNALI;28/03/2019;1079;0;99;1;Spese correnti;3;Acquisto di beni e servizi;2;Acquisto di servizi;9;Manutenzione ordinaria e riparazioni;4;Manutenzione ordinaria e riparazioni di impianti e macchinari;28/03/2019
491;1;0;500;500;DE ZOTTI IMPIANTI SRL;Z772262FFA;ACCONTO Fatt.n. FE-0032  del 13/02/2019 LAVORI DI MANUTENZIONE IMPIANTI ELETTRICI COMUNALI;28/03/2019;1081;0;100;1;Spese correnti;3;Acquisto di beni e servizi;1;Acquisto di beni;2;Altri beni di consumo;999;Altri beni e materiali di consumo n.a.c.;28/03/2019
492;1;0;500;500;DE ZOTTI IMPIANTI SRL;Z772262FFA;ACCONTO Fatt.n. FE-0032  del 13/02/2019 LAVORI DI MANUTENZIONE IMPIANTI ELETTRICI COMUNALI;28/03/2019;5910;0;101;1;Spese correnti;3;Acquisto di beni e servizi;2;Acquisto di servizi;9;Manutenzione ordinaria e riparazioni;4;Manutenzione ordinaria e riparazioni di impianti e macchinari;28/03/2019
493;1;0;100;100;DE ZOTTI IMPIANTI SRL;Z772262FFA;ACCONTO Fatt.n. FE-0032  del 13/02/2019 LAVORI DI MANUTENZIONE IMPIANTI ELETTRICI COMUNALI;28/03/2019;5911;0;102;1;Spese correnti;3;Acquisto di beni e servizi;1;Acquisto di beni;2;Altri beni di consumo;999;Altri beni e materiali di consumo n.a.c.;28/03/2019
494;1;0;813,42;813,42;DE ZOTTI IMPIANTI SRL;Z772262FFA;ACCONTO Fatt.n. FE-0032  del 13/02/2019 LAVORI DI MANUTENZIONE IMPIANTI ELETTRICI COMUNALI;28/03/2019;6010;0;103;1;Spese correnti;3;Acquisto di beni e servizi;1;Acquisto di beni;2;Altri beni di consumo;999;Altri beni e materiali di consumo n.a.c.;28/03/2019
495;1;0;1.360,65;1.360,65;DE ZOTTI IMPIANTI SRL;Z772262FFA;SALDO Fatt.n. FE-0032  del 13/02/2019 LAVORI DI MANUTENZIONE IMPIANTI ELETTRICI COMUNALI;28/03/2019;6011;0;104;1;Spese correnti;3;Acquisto di beni e servizi;2;Acquisto di servizi;9;Manutenzione ordinaria e riparazioni;4;Manutenzione ordinaria e riparazioni di impianti e macchinari;28/03/2019
496;1;0;300;300;SITA SRL;ZB626C9358;ACCONTO Fatt.n. 0395  del 28/02/2019 SERVIZIO MANUTENZIONE LAMPADE DI EMERGENZA VARIE - PATRIMOIO COMUNALE.;28/03/2019;1079;0;23;1;Spese correnti;3;Acquisto di beni e servizi;2;Acquisto di servizi;9;Manutenzione ordinaria e riparazioni;4;Manutenzione ordinaria e riparazioni di impianti e macchinari;28/03/2019
497;1;0;300;300;SITA SRL;ZB626C9358;ACCONTO Fatt.n. 0395  del 28/02/2019 SERVIZIO MANUTENZIONE LAMPADE DI EMERGENZA VARIE - PATRIMOIO COMUNALE.;28/03/2019;1081;0;24;1;Spese correnti;3;Acquisto di beni e servizi;1;Acquisto di beni;2;Altri beni di consumo;999;Altri beni e materiali di consumo n.a.c.;28/03/2019
498;1;0;300;300;SITA SRL;ZB626C9358;ACCONTO Fatt.n. 0395  del 28/02/2019 SERVIZIO MANUTENZIONE LAMPADE DI EMERGENZA VARIE - PATRIMOIO COMUNALE.;28/03/2019;2339;0;25;1;Spese correnti;3;Acquisto di beni e servizi;2;Acquisto di servizi;9;Manutenzione ordinaria e riparazioni;4;Manutenzione ordinaria e riparazioni di impianti e macchinari;28/03/2019
499;1;0;300;300;SITA SRL;ZB626C9358;ACCONTO Fatt.n. 0395  del 28/02/2019 SERVIZIO MANUTENZIONE LAMPADE DI EMERGENZA VARIE - PATRIMOIO COMUNALE.;28/03/2019;2341;0;26;1;Spese correnti;3;Acquisto di beni e servizi;1;Acquisto di beni;2;Altri beni di consumo;999;Altri beni e materiali di consumo n.a.c.;28/03/2019
500;1;0;300;300;SITA SRL;ZB626C9358;ACCONTO Fatt.n. 0395  del 28/02/2019 SERVIZIO MANUTENZIONE LAMPADE DI EMERGENZA VARIE - PATRIMOIO COMUNALE.;28/03/2019;2509;0;27;1;Spese correnti;3;Acquisto di beni e servizi;2;Acquisto di servizi;9;Manutenzione ordinaria e riparazioni;4;Manutenzione ordinaria e riparazioni di impianti e macchinari;28/03/2019
501;1;0;139,68;139,68;SITA SRL;ZB626C9358;SALDO Fatt.n. 0395  del 28/02/2019 SERVIZIO MANUTENZIONE LAMPADE DI EMERGENZA VARIE - PATRIMOIO COMUNALE.;28/03/2019;2511;0;28;1;Spese correnti;3;Acquisto di beni e servizi;1;Acquisto di beni;2;Altri beni di consumo;999;Altri beni e materiali di consumo n.a.c.;28/03/2019
502;1;0;2.492,47;2.492,47;EOS COOPERATIVA SOCIALE ARL;ZF525ECFDA;SALDO Fatt.n. 2019240000011  del 31/01/2019 SERVIZI DI POTATURA E DIVERSI;28/03/2019;5101;0;653;1;Spese correnti;3;Acquisto di beni e servizi;2;Acquisto di servizi;9;Manutenzione ordinaria e riparazioni;4;Manutenzione ordinaria e riparazioni di impianti e macchinari;28/03/2019
503;1;0;500,2;500,2;SOLUZIONE SRL;ZEB1D48D2D;SALDO Fatt.n. 0002100528  del 11/02/2019 ABBONAMENTO SERVIZI RAGIONERIA  -PERSONALE - TRIBUTI ANNO 2019;28/03/2019;420;0;92;1;Spese correnti;3;Acquisto di beni e servizi;2;Acquisto di servizi;5;Utenze e canoni;3;Accesso a banche dati e a pubblicazioni on line;28/03/2019
504;1;0;707,61;707,61;GEMEAZ ELIOR SPA;6164666B4E;SALDO Fatt.n. 7680036532  del 31/01/2019 FORNITURA PASTI ANZIANI MESE DI GENNAIO;28/03/2019;5654;0;616;1;Spese correnti;3;Acquisto di beni e servizi;2;Acquisto di servizi;14;Servizi di ristorazione;999;Altri servizi di ristorazione;28/03/2019
505;1;0;322,16;322,16;ASE ACEGASAPSAMGA SERVIZI ENERGETICI S.p.A.;ZF526F2492;ACCONTO Fatt.n. 331900000254  del 08/02/2019 MANUTENZIONE STRAORDINARIA CALDAIA SALA MENSA SCUOLA SECONDARIA DI PRIMO GRADO;28/03/2019;2509;0;60;1;Spese correnti;3;Acquisto di beni e servizi;2;Acquisto di servizi;9;Manutenzione ordinaria e riparazioni;4;Manutenzione ordinaria e riparazioni di impianti e macchinari;28/03/2019
506;1;0;200;200;ASE ACEGASAPSAMGA SERVIZI ENERGETICI S.p.A.;ZF526F2492;SALDO Fatt.n. 331900000254  del 08/02/2019 MANUTENZIONE STRAORDINARIA CALDAIA SALA MENSA SCUOLA SECONDARIA DI PRIMO GRADO;28/03/2019;2511;0;61;1;Spese correnti;3;Acquisto di beni e servizi;1;Acquisto di beni;2;Altri beni di consumo;999;Altri beni e materiali di consumo n.a.c.;28/03/2019
507;1;0;1.642,12;1.642,12;VRG IMPIANTI SRL;ZA82624121;SALDO Fatt.n. 15FPA  del 28/02/2019 SERVIZIO POSA LUMINARIE NATALIZIE VARIE;28/03/2019;6011;0;671;1;Spese correnti;3;Acquisto di beni e servizi;2;Acquisto di servizi;9;Manutenzione ordinaria e riparazioni;4;Manutenzione ordinaria e riparazioni di impianti e macchinari;28/03/2019
508;1;0;1.022,36;1.022,36;VRG IMPIANTI SRL;Z92269F1DD;SALDO Fatt.n. 16FPA  del 28/02/2019 SERVIZIO LIEVO LUMINARIE NATALIZIE.;28/03/2019;6011;0;1;1;Spese correnti;3;Acquisto di beni e servizi;2;Acquisto di servizi;9;Manutenzione ordinaria e riparazioni;4;Manutenzione ordinaria e riparazioni di impianti e macchinari;28/03/2019
509;1;0;17.287,40;17.287,40;PROLUDIC SRL;ZA125B914E;SALDO Fatt.n. 22/F2  del 28/02/2019 FORNITURA ATTREZZATURE LUDICHE PER ESTERNO;28/03/2019;9523;0;615;2;Spese in conto capitale;2;Investimenti fissi lordi e acquisto di terreni;1;Beni materiali;9;Beni immobili;999;Beni immobili n.a.c.;28/03/2019
510;1;0;3.782,85;3.782,85;PROLUDIC SRL;ZA125B914E;SALDO Fatt.n. 23/F2  del 28/02/2019 FORNITURA E POSA IN OPERA GIOCO MULTIFUNZIONALE PER AREE VERDI;28/03/2019;9523;0;615;2;Spese in conto capitale;2;Investimenti fissi lordi e acquisto di terreni;1;Beni materiali;9;Beni immobili;999;Beni immobili n.a.c.;28/03/2019
511;1;0;973,96;973,96;SPIGAS SRL;Z2D21ED429;SALDO Fatt.n. PA004957/2019  del 11/03/2019 FORNITURA GAS VILLA MARIA DAL 01 AL 31 GENNAIO 2019.;28/03/2019;1080;0;51;1;Spese correnti;3;Acquisto di beni e servizi;2;Acquisto di servizi;5;Utenze e canoni;6;Gas;28/03/2019
512;1;0;138,89;138,89;SPIGAS SRL;Z2D21ED429;SALDO Fatt.n. PA004958/2019  del 11/03/2019 FORNITURA GAS CENTRO ANZIANI VIA MARCONI PERIODO 01-31 GENNAIO 2019.;28/03/2019;1080;0;51;1;Spese correnti;3;Acquisto di beni e servizi;2;Acquisto di servizi;5;Utenze e canoni;6;Gas;28/03/2019
513;1;0;90;90;VODAFONE OMNITEL N.V;Z7B2733939;SALDO Fatt.n. 1904207719  del 22/02/2019 SPESE TELEFONO PER RICARICA N.3 SIM;28/03/2019;340;0;105;1;Spese correnti;3;Acquisto di beni e servizi;2;Acquisto di servizi;5;Utenze e canoni;2;Telefonia mobile;28/03/2019
514;1;0;90,18;90,18;ISEPPON S.R.L.; ;SALDO Fatt.n. 000002/19P  del 28/02/2019 FORNITURA MATERIALE VARIO PER MANUTENZIONI;28/03/2019;5911;0;146;1;Spese correnti;3;Acquisto di beni e servizi;1;Acquisto di beni;2;Altri beni di consumo;999;Altri beni e materiali di consumo n.a.c.;28/03/2019
515;1;0;52,66;52,66;DOLOMITI ENERGIA SPA;7142067C20;SALDO Fatt.n. 41900888309  del 11/03/2019 FORNITURA ENERGIA ELETTRICA PERIODO 01/02/2019 AL 13/02/2019 IMPIANTO IRRIGAZIONE VIA PASCOLI.;28/03/2019;1130;0;131;1;Spese correnti;3;Acquisto di beni e servizi;2;Acquisto di servizi;5;Utenze e canoni;4;Energia elettrica;28/03/2019
516;1;0;60;60;ELETTROVENETA SPA; ;ACCONTO Fatt.n. 19/110/001583  del 31/01/2019 MATERIALE ELETTRICO;28/03/2019;6010;0;97;1;Spese correnti;3;Acquisto di beni e servizi;1;Acquisto di beni;2;Altri beni di consumo;999;Altri beni e materiali di consumo n.a.c.;28/03/2019
517;1;0;11;11;ELETTROVENETA SPA; ;ACCONTO Fatt.n. 19/110/001583  del 31/01/2019 MATERIALE ELETTRICO;28/03/2019;2341;0;94;1;Spese correnti;3;Acquisto di beni e servizi;1;Acquisto di beni;2;Altri beni di consumo;999;Altri beni e materiali di consumo n.a.c.;28/03/2019
518;1;0;17,47;17,47;ELETTROVENETA SPA; ;SALDO Fatt.n. 19/110/001583  del 31/01/2019 MATERIALE ELETTRICO;28/03/2019;4141;0;96;1;Spese correnti;3;Acquisto di beni e servizi;1;Acquisto di beni;2;Altri beni di consumo;999;Altri beni e materiali di consumo n.a.c.;28/03/2019
519;1;0;450;450;ASSOCIAZIONE FORESTALE DI PIANURA; ;LIQUIDAZIONE QUOTA DI CONTRIBUZIONE 2019 PER SERVIZIO DI VALORIZZAZIONE BOSCHI DI OLME' E DI S.MARCO - PATRIMONIO COMUNALE.;28/03/2019;7002;0;591;1;Spese correnti;3;Acquisto di beni e servizi;2;Acquisto di servizi;11;Prestazioni professionali e specialistiche;999;Altre prestazioni professionali e specialistiche n.a.c.;28/03/2019
520;1;0;2.040,00;2.040,00;ASSOCIAZIONE FORESTALE DI PIANURA; ;LIQUIDAZIONE QUOTA DI CONTRIBUZIONE 2019 PER SERVIZIO DI VALORIZZAZIONE BOSCHI DI OLME' E DI S.MARCO - PATRIMONIO COMUNALE.;28/03/2019;7002;0;134;1;Spese correnti;3;Acquisto di beni e servizi;2;Acquisto di servizi;11;Prestazioni professionali e specialistiche;999;Altre prestazioni professionali e specialistiche n.a.c.;28/03/2019
521;1;0;-146,4;146,4;BERTACCO VITTORIO;Z5326B4F94;SALDO Fatt.n. 3  del 28/02/2019 NOTA DI CREDITO A STORNO TOTALE FATTURA NR. 1 DEL 20/02/2019 - MANUTENZIONE SERRAMENTI EDIFICIO VILLA MARIA;28/03/2019;1079;0;8;1;Spese correnti;3;Acquisto di beni e servizi;2;Acquisto di servizi;9;Manutenzione ordinaria e riparazioni;8;Manutenzione ordinaria e riparazioni di beni immobili;28/03/2019
521;2;0;146,4;146,4;BERTACCO VITTORIO;Z5326B4F94;"SALDO Fatt.n. 1  del 20/02/2019 MANUTENZIONE ORDINARIA SERRAMENTI PRESSO L'EDIFICIO DI ""VILLA MARIA"".";28/03/2019;1079;0;8;1;Spese correnti;3;Acquisto di beni e servizi;2;Acquisto di servizi;9;Manutenzione ordinaria e riparazioni;8;Manutenzione ordinaria e riparazioni di beni immobili;28/03/2019
521;3;0;146,4;146,4;BERTACCO VITTORIO;Z5326B4F94;SALDO Fatt.n. 4  del 28/02/2019 SERVIZIO MANUTENZIONE ORDINARIA SERRAMENTI EDIFICIO VILLA MARIA.;28/03/2019;1079;0;8;1;Spese correnti;3;Acquisto di beni e servizi;2;Acquisto di servizi;9;Manutenzione ordinaria e riparazioni;8;Manutenzione ordinaria e riparazioni di beni immobili;28/03/2019
522;1;0;103;103;LA CARTOTIPOGRAFICA DEI COMUNI DI BISCARO R.; ;ACCONTO Fatt.n. FPA 33/19  del 06/03/2019 ACQUISTO MATERIALE VARIO DI CANCELLERIA E BANDIERE;28/03/2019;650;0;152;1;Spese correnti;3;Acquisto di beni e servizi;1;Acquisto di beni;2;Altri beni di consumo;999;Altri beni e materiali di consumo n.a.c.;28/03/2019
523;1;0;181,14;181,14;LA CARTOTIPOGRAFICA DEI COMUNI DI BISCARO R.; ;SALDO Fatt.n. FPA 33/19  del 06/03/2019 ACQUISTO MATERIALE VARIO DI CANCELLERIA E BANDIERE;28/03/2019;1081;0;153;1;Spese correnti;3;Acquisto di beni e servizi;1;Acquisto di beni;2;Altri beni di consumo;999;Altri beni e materiali di consumo n.a.c.;28/03/2019
524;1;0;2.398,14;2.398,14;OMESSO NOMINATIVO NEL RISPETTO DELLA NORMATIVA SULLA PROTEZIONE DATI PERSONALI; ;LIQUIDAZIONE CONTRIBUTO REGIONALE ANNO 2018 A FAVORE DI NUCLEI FAMILIARI CON FIGLI RIMASTI ORFANI DI UNO O ENTRAMBI I GENITORI.;01/04/2019;5670;0;179;1;Spese correnti;4;Trasferimenti correnti;2;Trasferimenti correnti a Famiglie;2;Interventi assistenziali;999;Altri assegni e sussidi assistenziali;01/04/2019
525;1;0;1.918,53;1.918,53;OMESSO NOMINATIVO NEL RISPETTO DELLA NORMATIVA SULLA PROTEZIONE DATI PERSONALI; ;LIQUIDAZIONE CONTRIBUTO REGIONALE ANNO 2018 A FAVORE DI NUCLEI FAMILIARI CON FIGLI RIMASTI ORFANI DI UNO O ENTRAMBI I GENITORI.;01/04/2019;5670;0;180;1;Spese correnti;4;Trasferimenti correnti;2;Trasferimenti correnti a Famiglie;2;Interventi assistenziali;999;Altri assegni e sussidi assistenziali;01/04/2019
526;1;0;466,92;466,92;OMESSO NOMINATIVO NEL RISPETTO DELLA NORMATIVA SULLA PROTEZIONE DATI PERSONALI; ;LIQUIDAZIONE CONTRIBUTO LIBRI DI TESTO LEGGE N. 448/1998 - ANNO SCOLASTICO E FORMATIVO 2018/2019.;01/04/2019;2361;0;182;1;Spese correnti;4;Trasferimenti correnti;2;Trasferimenti correnti a Famiglie;2;Interventi assistenziali;999;Altri assegni e sussidi assistenziali;01/04/2019
527;1;0;268,3;268,3;OMESSO NOMINATIVO NEL RISPETTO DELLA NORMATIVA SULLA PROTEZIONE DATI PERSONALI; ;LIQUIDAZIONE CONTRIBUTO LIBRI DI TESTO LEGGE N. 448/1998 - ANNO SCOLASTICO E FORMATIVO 2018/2019.;01/04/2019;2361;0;183;1;Spese correnti;4;Trasferimenti correnti;2;Trasferimenti correnti a Famiglie;2;Interventi assistenziali;999;Altri assegni e sussidi assistenziali;01/04/2019
528;1;0;102,48;102,48;OMESSO NOMINATIVO NEL RISPETTO DELLA NORMATIVA SULLA PROTEZIONE DATI PERSONALI; ;LIQUIDAZIONE CONTRIBUTO LIBRI DI TESTO LEGGE N. 448/1998 - ANNO SCOLASTICO E FORMATIVO 2018/2019.;01/04/2019;2361;0;184;1;Spese correnti;4;Trasferimenti correnti;2;Trasferimenti correnti a Famiglie;2;Interventi assistenziali;999;Altri assegni e sussidi assistenziali;01/04/2019
529;1;0;302,3;302,3;OMESSO NOMINATIVO NEL RISPETTO DELLA NORMATIVA SULLA PROTEZIONE DATI PERSONALI; ;LIQUIDAZIONE CONTRIBUTO LIBRI DI TESTO LEGGE N. 448/1998 - ANNO SCOLASTICO E FORMATIVO 2018/2019.;01/04/2019;2361;0;185;1;Spese correnti;4;Trasferimenti correnti;2;Trasferimenti correnti a Famiglie;2;Interventi assistenziali;999;Altri assegni e sussidi assistenziali;01/04/2019
530;1;0;97,11;97,11;OMESSO NOMINATIVO NEL RISPETTO DELLA NORMATIVA SULLA PROTEZIONE DATI PERSONALI; ;LIQUIDAZIONE CONTRIBUTO LIBRI DI TESTO LEGGE N. 448/1998 - ANNO SCOLASTICO E FORMATIVO 2018/2019.;01/04/2019;2361;0;186;1;Spese correnti;4;Trasferimenti correnti;2;Trasferimenti correnti a Famiglie;2;Interventi assistenziali;999;Altri assegni e sussidi assistenziali;01/04/2019
531;1;0;260,3;260,3;OMESSO NOMINATIVO NEL RISPETTO DELLA NORMATIVA SULLA PROTEZIONE DATI PERSONALI; ;LIQUIDAZIONE CONTRIBUTO LIBRI DI TESTO LEGGE N. 448/1998 - ANNO SCOLASTICO E FORMATIVO 2018/2019.;01/04/2019;2361;0;187;1;Spese correnti;4;Trasferimenti correnti;2;Trasferimenti correnti a Famiglie;2;Interventi assistenziali;999;Altri assegni e sussidi assistenziali;01/04/2019
532;1;0;114,25;114,25;OMESSO NOMINATIVO NEL RISPETTO DELLA NORMATIVA SULLA PROTEZIONE DATI PERSONALI; ;LIQUIDAZIONE CONTRIBUTO LIBRI DI TESTO LEGGE N. 448/1998 - ANNO SCOLASTICO E FORMATIVO 2018/2019.;01/04/2019;2361;0;188;1;Spese correnti;4;Trasferimenti correnti;2;Trasferimenti correnti a Famiglie;2;Interventi assistenziali;999;Altri assegni e sussidi assistenziali;01/04/2019
533;1;0;114,25;114,25;OMESSO NOMINATIVO NEL RISPETTO DELLA NORMATIVA SULLA PROTEZIONE DATI PERSONALI; ;LIQUIDAZIONE CONTRIBUTO LIBRI DI TESTO LEGGE N. 448/1998 - ANNO SCOLASTICO E FORMATIVO 2018/2019.;01/04/2019;2361;0;189;1;Spese correnti;4;Trasferimenti correnti;2;Trasferimenti correnti a Famiglie;2;Interventi assistenziali;999;Altri assegni e sussidi assistenziali;01/04/2019
534;1;0;113,07;113,07;OMESSO NOMINATIVO NEL RISPETTO DELLA NORMATIVA SULLA PROTEZIONE DATI PERSONALI; ;LIQUIDAZIONE CONTRIBUTO LIBRI DI TESTO LEGGE N. 448/1998 - ANNO SCOLASTICO E FORMATIVO 2018/2019.;01/04/2019;2361;0;190;1;Spese correnti;4;Trasferimenti correnti;2;Trasferimenti correnti a Famiglie;2;Interventi assistenziali;999;Altri assegni e sussidi assistenziali;01/04/2019
535;1;0;201,76;201,76;OMESSO NOMINATIVO NEL RISPETTO DELLA NORMATIVA SULLA PROTEZIONE DATI PERSONALI; ;LIQUIDAZIONE CONTRIBUTO LIBRI DI TESTO LEGGE N. 448/1998 - ANNO SCOLASTICO E FORMATIVO 2018/2019.;01/04/2019;2361;0;191;1;Spese correnti;4;Trasferimenti correnti;2;Trasferimenti correnti a Famiglie;2;Interventi assistenziali;999;Altri assegni e sussidi assistenziali;01/04/2019
536;1;0;98;98;OMESSO NOMINATIVO NEL RISPETTO DELLA NORMATIVA SULLA PROTEZIONE DATI PERSONALI; ;LIQUIDAZIONE CONTRIBUTO LIBRI DI TESTO LEGGE N. 448/1998 - ANNO SCOLASTICO E FORMATIVO 2018/2019.;01/04/2019;2361;0;192;1;Spese correnti;4;Trasferimenti correnti;2;Trasferimenti correnti a Famiglie;2;Interventi assistenziali;999;Altri assegni e sussidi assistenziali;01/04/2019
537;1;0;288;288;OMESSO NOMINATIVO NEL RISPETTO DELLA NORMATIVA SULLA PROTEZIONE DATI PERSONALI; ;LIQUIDAZIONE CONTRIBUTO LIBRI DI TESTO LEGGE N. 448/1998 - ANNO SCOLASTICO E FORMATIVO 2018/2019.;01/04/2019;2361;0;193;1;Spese correnti;4;Trasferimenti correnti;2;Trasferimenti correnti a Famiglie;2;Interventi assistenziali;999;Altri assegni e sussidi assistenziali;01/04/2019
538;1;0;186,03;186,03;OMESSO NOMINATIVO NEL RISPETTO DELLA NORMATIVA SULLA PROTEZIONE DATI PERSONALI; ;LIQUIDAZIONE CONTRIBUTO LIBRI DI TESTO LEGGE N. 448/1998 - ANNO SCOLASTICO E FORMATIVO 2018/2019.;01/04/2019;2361;0;194;1;Spese correnti;4;Trasferimenti correnti;2;Trasferimenti correnti a Famiglie;2;Interventi assistenziali;999;Altri assegni e sussidi assistenziali;01/04/2019
539;1;0;358,75;358,75;OMESSO NOMINATIVO NEL RISPETTO DELLA NORMATIVA SULLA PROTEZIONE DATI PERSONALI; ;LIQUIDAZIONE CONTRIBUTO LIBRI DI TESTO LEGGE N. 448/1998 - ANNO SCOLASTICO E FORMATIVO 2018/2019.;01/04/2019;2361;0;195;1;Spese correnti;4;Trasferimenti correnti;2;Trasferimenti correnti a Famiglie;2;Interventi assistenziali;999;Altri assegni e sussidi assistenziali;01/04/2019
540;1;0;374,01;374,01;OMESSO NOMINATIVO NEL RISPETTO DELLA NORMATIVA SULLA PROTEZIONE DATI PERSONALI; ;LIQUIDAZIONE CONTRIBUTO LIBRI DI TESTO LEGGE N. 448/1998 - ANNO SCOLASTICO E FORMATIVO 2018/2019.;01/04/2019;2361;0;196;1;Spese correnti;4;Trasferimenti correnti;2;Trasferimenti correnti a Famiglie;2;Interventi assistenziali;999;Altri assegni e sussidi assistenziali;01/04/2019
541;1;0;229,26;229,26;OMESSO NOMINATIVO NEL RISPETTO DELLA NORMATIVA SULLA PROTEZIONE DATI PERSONALI; ;LIQUIDAZIONE CONTRIBUTO LIBRI DI TESTO LEGGE N. 448/1998 - ANNO SCOLASTICO E FORMATIVO 2018/2019.;01/04/2019;2361;0;197;1;Spese correnti;4;Trasferimenti correnti;2;Trasferimenti correnti a Famiglie;2;Interventi assistenziali;999;Altri assegni e sussidi assistenziali;01/04/2019
542;1;0;101,88;101,88;OMESSO NOMINATIVO NEL RISPETTO DELLA NORMATIVA SULLA PROTEZIONE DATI PERSONALI; ;LIQUIDAZIONE CONTRIBUTO LIBRI DI TESTO LEGGE N. 448/1998 - ANNO SCOLASTICO E FORMATIVO 2018/2019.;01/04/2019;2361;0;198;1;Spese correnti;4;Trasferimenti correnti;2;Trasferimenti correnti a Famiglie;2;Interventi assistenziali;999;Altri assegni e sussidi assistenziali;01/04/2019
543;1;0;139,42;139,42;OMESSO NOMINATIVO NEL RISPETTO DELLA NORMATIVA SULLA PROTEZIONE DATI PERSONALI; ;LIQUIDAZIONE CONTRIBUTO LIBRI DI TESTO LEGGE N. 448/1998 - ANNO SCOLASTICO E FORMATIVO 2018/2019.;01/04/2019;2361;0;199;1;Spese correnti;4;Trasferimenti correnti;2;Trasferimenti correnti a Famiglie;2;Interventi assistenziali;999;Altri assegni e sussidi assistenziali;01/04/2019
544;1;0;172,87;172,87;OMESSO NOMINATIVO NEL RISPETTO DELLA NORMATIVA SULLA PROTEZIONE DATI PERSONALI; ;LIQUIDAZIONE CONTRIBUTO LIBRI DI TESTO LEGGE N. 448/1998 - ANNO SCOLASTICO E FORMATIVO 2018/2019.;01/04/2019;2361;0;200;1;Spese correnti;4;Trasferimenti correnti;2;Trasferimenti correnti a Famiglie;2;Interventi assistenziali;999;Altri assegni e sussidi assistenziali;01/04/2019
545;1;0;190,22;190,22;OMESSO NOMINATIVO NEL RISPETTO DELLA NORMATIVA SULLA PROTEZIONE DATI PERSONALI; ;LIQUIDAZIONE CONTRIBUTO LIBRI DI TESTO LEGGE N. 448/1998 - ANNO SCOLASTICO E FORMATIVO 2018/2019.;01/04/2019;2361;0;201;1;Spese correnti;4;Trasferimenti correnti;2;Trasferimenti correnti a Famiglie;2;Interventi assistenziali;999;Altri assegni e sussidi assistenziali;01/04/2019
546;1;0;128,61;128,61;OMESSO NOMINATIVO NEL RISPETTO DELLA NORMATIVA SULLA PROTEZIONE DATI PERSONALI; ;LIQUIDAZIONE CONTRIBUTO LIBRI DI TESTO LEGGE N. 448/1998 - ANNO SCOLASTICO E FORMATIVO 2018/2019.;01/04/2019;2361;0;202;1;Spese correnti;4;Trasferimenti correnti;2;Trasferimenti correnti a Famiglie;2;Interventi assistenziali;999;Altri assegni e sussidi assistenziali;01/04/2019
547;1;0;336,25;336,25;OMESSO NOMINATIVO NEL RISPETTO DELLA NORMATIVA SULLA PROTEZIONE DATI PERSONALI; ;LIQUIDAZIONE CONTRIBUTO LIBRI DI TESTO LEGGE N. 448/1998 - ANNO SCOLASTICO E FORMATIVO 2018/2019.;01/04/2019;2361;0;203;1;Spese correnti;4;Trasferimenti correnti;2;Trasferimenti correnti a Famiglie;2;Interventi assistenziali;999;Altri assegni e sussidi assistenziali;01/04/2019
548;1;0;232,39;232,39;OMESSO NOMINATIVO NEL RISPETTO DELLA NORMATIVA SULLA PROTEZIONE DATI PERSONALI; ;LIQUIDAZIONE CONTRIBUTO LIBRI DI TESTO LEGGE N. 448/1998 - ANNO SCOLASTICO E FORMATIVO 2018/2019.;01/04/2019;2361;0;204;1;Spese correnti;4;Trasferimenti correnti;2;Trasferimenti correnti a Famiglie;2;Interventi assistenziali;999;Altri assegni e sussidi assistenziali;01/04/2019
549;1;0;166,1;166,1;OMESSO NOMINATIVO NEL RISPETTO DELLA NORMATIVA SULLA PROTEZIONE DATI PERSONALI; ;LIQUIDAZIONE CONTRIBUTO LIBRI DI TESTO LEGGE N. 448/1998 - ANNO SCOLASTICO E FORMATIVO 2018/2019.;01/04/2019;2361;0;205;1;Spese correnti;4;Trasferimenti correnti;2;Trasferimenti correnti a Famiglie;2;Interventi assistenziali;999;Altri assegni e sussidi assistenziali;01/04/2019
550;1;0;214,35;214,35;OMESSO NOMINATIVO NEL RISPETTO DELLA NORMATIVA SULLA PROTEZIONE DATI PERSONALI; ;LIQUIDAZIONE CONTRIBUTO LIBRI DI TESTO LEGGE N. 448/1998 - ANNO SCOLASTICO E FORMATIVO 2018/2019.;01/04/2019;2361;0;206;1;Spese correnti;4;Trasferimenti correnti;2;Trasferimenti correnti a Famiglie;2;Interventi assistenziali;999;Altri assegni e sussidi assistenziali;01/04/2019
551;1;0;281,2;281,2;OMESSO NOMINATIVO NEL RISPETTO DELLA NORMATIVA SULLA PROTEZIONE DATI PERSONALI; ;LIQUIDAZIONE CONTRIBUTO LIBRI DI TESTO LEGGE N. 448/1998 - ANNO SCOLASTICO E FORMATIVO 2018/2019.;01/04/2019;2361;0;207;1;Spese correnti;4;Trasferimenti correnti;2;Trasferimenti correnti a Famiglie;2;Interventi assistenziali;999;Altri assegni e sussidi assistenziali;01/04/2019
552;1;0;70;70;KUWAIT PETROLEUM ITALIA SPA;ZF21878CC7;ACCONTO Fatt.n. PJ00749330  del 31/01/2019 FORNITURA CARBURANTI MEZZI COMUNALI MESE DI GENNAIO;02/04/2019;1711;0;597;1;Spese correnti;3;Acquisto di beni e servizi;1;Acquisto di beni;2;Altri beni di consumo;2;Carburanti, combustibili e lubrificanti;02/04/2019
553;1;0;89,79;89,79;KUWAIT PETROLEUM ITALIA SPA;ZF21878CC7;ACCONTO Fatt.n. PJ00749330  del 31/01/2019 FORNITURA CARBURANTI MEZZI COMUNALI MESE DI GENNAIO;02/04/2019;5100;0;598;1;Spese correnti;3;Acquisto di beni e servizi;1;Acquisto di beni;2;Altri beni di consumo;2;Carburanti, combustibili e lubrificanti;02/04/2019
554;1;0;190;190;KUWAIT PETROLEUM ITALIA SPA;ZF21878CC7;ACCONTO Fatt.n. PJ00749330  del 31/01/2019 FORNITURA CARBURANTI MEZZI COMUNALI MESE DI GENNAIO;02/04/2019;5911;0;600;1;Spese correnti;3;Acquisto di beni e servizi;1;Acquisto di beni;2;Altri beni di consumo;2;Carburanti, combustibili e lubrificanti;02/04/2019
555;1;0;20;20;KUWAIT PETROLEUM ITALIA SPA;ZF21878CC7;SALDO Fatt.n. PJ00749330  del 31/01/2019 FORNITURA CARBURANTI MEZZI COMUNALI MESE DI GENNAIO;02/04/2019;5557;0;599;1;Spese correnti;3;Acquisto di beni e servizi;1;Acquisto di beni;2;Altri beni di consumo;2;Carburanti, combustibili e lubrificanti;02/04/2019
558;1;0;2.733,08;2.733,08;AMMINISTRATORI C/INDENNITA' DI CARICA; ;apr-19;08/04/2019;20;0;3;1;Spese correnti;3;Acquisto di beni e servizi;2;Acquisto di servizi;1;Organi e incarichi istituzionali dell'amministrazione;1;Organi istituzionali dell'amministrazione - Indennità;08/04/2019
608;1;0;302,22;302,22;MINISTERO INTERNO; ;COMUNE DI CESSALTO - CORRISPETTIVO PER IL RILASCIO DI N.18 CARTE D'IDENTITA' PERIODO 16-31 MARZO 2019.;10/04/2019;822;0;218;1;Spese correnti;4;Trasferimenti correnti;1;Trasferimenti correnti a Amministrazioni Pubbliche;1;Trasferimenti correnti a Amministrazioni Centrali;1;Trasferimenti correnti a Ministeri;10/04/2019
609;1;0;80;80;KUWAIT PETROLEUM ITALIA SPA;ZF21878CC7;ACCONTO Fatt.n. PJ00864118  del 28/02/2019 FORNITURA CARBURANTE AUTOMEZZI MESE DI FEBBRAIO 2019.;10/04/2019;1711;0;597;1;Spese correnti;3;Acquisto di beni e servizi;1;Acquisto di beni;2;Altri beni di consumo;2;Carburanti, combustibili e lubrificanti;10/04/2019
610;1;0;10,21;10,21;KUWAIT PETROLEUM ITALIA SPA;ZF21878CC7;ACCONTO Fatt.n. PJ00864118  del 28/02/2019 FORNITURA CARBURANTE AUTOMEZZI MESE DI FEBBRAIO 2019.;10/04/2019;5100;0;598;1;Spese correnti;3;Acquisto di beni e servizi;1;Acquisto di beni;2;Altri beni di consumo;2;Carburanti, combustibili e lubrificanti;10/04/2019
611;1;0;35;35;KUWAIT PETROLEUM ITALIA SPA;ZF21878CC7;ACCONTO Fatt.n. PJ00864118  del 28/02/2019 FORNITURA CARBURANTE AUTOMEZZI MESE DI FEBBRAIO 2019.;10/04/2019;5911;0;600;1;Spese correnti;3;Acquisto di beni e servizi;1;Acquisto di beni;2;Altri beni di consumo;2;Carburanti, combustibili e lubrificanti;10/04/2019
612;1;0;30;30;KUWAIT PETROLEUM ITALIA SPA;ZF21878CC7;ACCONTO Fatt.n. PJ00864118  del 28/02/2019 FORNITURA CARBURANTE AUTOMEZZI MESE DI FEBBRAIO 2019.;10/04/2019;5557;0;599;1;Spese correnti;3;Acquisto di beni e servizi;1;Acquisto di beni;2;Altri beni di consumo;2;Carburanti, combustibili e lubrificanti;10/04/2019
613;1;0;119,79;119,79;KUWAIT PETROLEUM ITALIA SPA;ZF21878CC7;ACCONTO Fatt.n. PJ00864118  del 28/02/2019 FORNITURA CARBURANTE AUTOMEZZI MESE DI FEBBRAIO 2019.;10/04/2019;5100;0;48;1;Spese correnti;3;Acquisto di beni e servizi;1;Acquisto di beni;2;Altri beni di consumo;2;Carburanti, combustibili e lubrificanti;10/04/2019
614;1;0;126,04;126,04;KUWAIT PETROLEUM ITALIA SPA;ZF21878CC7;SALDO Fatt.n. PJ00864118  del 28/02/2019 FORNITURA CARBURANTE AUTOMEZZI MESE DI FEBBRAIO 2019.;10/04/2019;5911;0;51;1;Spese correnti;3;Acquisto di beni e servizi;1;Acquisto di beni;2;Altri beni di consumo;2;Carburanti, combustibili e lubrificanti;10/04/2019
615;1;0;96,22;96,22;V.E.R.I.T.A.S. SPA;Z8022005E3;ACCONTO Fatt.n. 810000367968  del 19/03/2019 SERVIZIO IDRICO INTEGRATO PERIODO 01.01.2019-28.02.2019 SEDE MUNICIPALE PIAZZA MARTIRI DELLA LIBERTA' 3;10/04/2019;340;0;45;1;Spese correnti;3;Acquisto di beni e servizi;2;Acquisto di servizi;5;Utenze e canoni;5;Acqua;10/04/2019
616;1;0;2,86;2,86;V.E.R.I.T.A.S. SPA;Z8022005E3;SALDO Fatt.n. 810000367968  del 19/03/2019 SERVIZIO IDRICO INTEGRATO PERIODO 01.01.2019-28.02.2019 SEDE MUNICIPALE PIAZZA MARTIRI DELLA LIBERTA' 3;10/04/2019;340;0;223;1;Spese correnti;3;Acquisto di beni e servizi;2;Acquisto di servizi;5;Utenze e canoni;5;Acqua;10/04/2019
617;1;0;289,75;289,75;V.E.R.I.T.A.S. SPA;Z8022005E3;SALDO Fatt.n. 810000367966  del 19/03/2019 SERVIZIO IDRICO INTEGRATO PERIODO 01.01.2019-28.02.2019 SCUOLA MEDIA VIA MAGNADOLA;10/04/2019;2510;0;226;1;Spese correnti;3;Acquisto di beni e servizi;2;Acquisto di servizi;5;Utenze e canoni;5;Acqua;10/04/2019
618;1;0;62,28;62,28;V.E.R.I.T.A.S. SPA;Z8022005E3;ACCONTO Fatt.n. 810000367676  del 19/03/2019 SERVIZIO IDRICO INTEGRATO PERIODO 01.01.2019-28.02.2019 CIMITERO S.MARIA DI CAMPAGNA;10/04/2019;4140;0;49;1;Spese correnti;3;Acquisto di beni e servizi;2;Acquisto di servizi;5;Utenze e canoni;5;Acqua;10/04/2019
619;1;0;4,82;4,82;V.E.R.I.T.A.S. SPA;Z8022005E3;SALDO Fatt.n. 810000367676  del 19/03/2019 SERVIZIO IDRICO INTEGRATO PERIODO 01.01.2019-28.02.2019 CIMITERO S.MARIA DI CAMPAGNA;10/04/2019;4140;0;227;1;Spese correnti;3;Acquisto di beni e servizi;2;Acquisto di servizi;5;Utenze e canoni;5;Acqua;10/04/2019
620;1;0;51,54;51,54;V.E.R.I.T.A.S. SPA;Z8022005E3;SALDO Fatt.n. 810000367677  del 19/03/2019 SERVIZIO IDRICO INTEGRATO PERIODO  01.01.2019-28.02.2019 CIMITERO VIA CHIESA;10/04/2019;4140;0;227;1;Spese correnti;3;Acquisto di beni e servizi;2;Acquisto di servizi;5;Utenze e canoni;5;Acqua;10/04/2019
621;1;0;66,18;66,18;V.E.R.I.T.A.S. SPA;Z8022005E3;SALDO Fatt.n. 810000367675  del 19/03/2019 SERVIZIO IDRICO INTEGRATO PERIODO 01.01.2019-28.02.2019 CIMITERO VIA MAGGIORE;10/04/2019;4140;0;227;1;Spese correnti;3;Acquisto di beni e servizi;2;Acquisto di servizi;5;Utenze e canoni;5;Acqua;10/04/2019
622;1;0;73,98;73,98;V.E.R.I.T.A.S. SPA;Z8022005E3;SALDO Fatt.n. 810000367558  del 19/03/2019 SERVIZIO IDRICO INTEGRATO PERIODO 16.10.2017-28.02.2019 AREA VERDE VIA PAPA LUCIANI;10/04/2019;1080;0;46;1;Spese correnti;3;Acquisto di beni e servizi;2;Acquisto di servizi;5;Utenze e canoni;5;Acqua;10/04/2019
623;1;0;92,49;92,49;V.E.R.I.T.A.S. SPA;Z8022005E3;SALDO Fatt.n. 810000367967  del 19/03/2019 SERVIZIO IDRICO INTEGRATO PERIODO 01.01.2019-28.02.2019 EX SCUOLA PIAZZA MARTIRI DELLA LIBERTA 7;10/04/2019;1080;0;46;1;Spese correnti;3;Acquisto di beni e servizi;2;Acquisto di servizi;5;Utenze e canoni;5;Acqua;10/04/2019
624;1;0;70,19;70,19;V.E.R.I.T.A.S. SPA;Z8022005E3;SALDO Fatt.n. 810000367872  del 19/03/2019 SERVIZIO IDRICO INTEGRATO PERIODO 01.01.2019-28.02.2019 PARCHEGGIO VIA MAGNADOLA;10/04/2019;1080;0;46;1;Spese correnti;3;Acquisto di beni e servizi;2;Acquisto di servizi;5;Utenze e canoni;5;Acqua;10/04/2019
625;1;0;63,8;63,8;V.E.R.I.T.A.S. SPA;Z8022005E3;SALDO Fatt.n. 810000367939  del 19/03/2019 SERVIZIO IDRICO INTEGRATO PERIODO 01.01.2019-28.02.2019 AREA VERDE VIA ROMA;10/04/2019;1080;0;46;1;Spese correnti;3;Acquisto di beni e servizi;2;Acquisto di servizi;5;Utenze e canoni;5;Acqua;10/04/2019
626;1;0;67,58;67,58;V.E.R.I.T.A.S. SPA;Z8022005E3;SALDO Fatt.n. 810000367653  del 19/03/2019 SERVIZIO IDRICO INTEGRATO PERIODO 01.01.2019-28.02.2019 IDRANTI;10/04/2019;1080;0;46;1;Spese correnti;3;Acquisto di beni e servizi;2;Acquisto di servizi;5;Utenze e canoni;5;Acqua;10/04/2019
627;1;0;74,99;74,99;V.E.R.I.T.A.S. SPA;Z8022005E3;SALDO Fatt.n. 810000367911  del 19/03/2019 SERVIZIO IDRICO INTEGRATO PERIODO 01.01.2019-28.02.2019 PARCHEGGIO VIA ROMA;10/04/2019;1080;0;46;1;Spese correnti;3;Acquisto di beni e servizi;2;Acquisto di servizi;5;Utenze e canoni;5;Acqua;10/04/2019
628;1;0;88,41;88,41;V.E.R.I.T.A.S. SPA;Z8022005E3;SALDO Fatt.n. 810000367818  del 19/03/2019 SERVIZIO IDRICO INTEGRATO PERIODO 01.01.2019-28.02.2019 BIBLIOTECA COMUNALE;10/04/2019;1080;0;46;1;Spese correnti;3;Acquisto di beni e servizi;2;Acquisto di servizi;5;Utenze e canoni;5;Acqua;10/04/2019
629;1;0;47,91;47,91;V.E.R.I.T.A.S. SPA;Z8022005E3;SALDO Fatt.n. 810000367969  del 19/03/2019 SERVIZIO IDRICO INTEGRATO PERIODO 01.01.2019-28.02.2019 PIAZZA DEL SANTO VOLTO;10/04/2019;1080;0;46;1;Spese correnti;3;Acquisto di beni e servizi;2;Acquisto di servizi;5;Utenze e canoni;5;Acqua;10/04/2019
630;1;0;80,07;80,07;V.E.R.I.T.A.S. SPA;Z8022005E3;SALDO Fatt.n. 810000368030  del 19/03/2019 SERVIZIO IDRICO INTEGRATO PERIODO 01.01.2019-28.02.2019 COLONNINA PIAZZA DON ANDREAZZA;10/04/2019;1080;0;46;1;Spese correnti;3;Acquisto di beni e servizi;2;Acquisto di servizi;5;Utenze e canoni;5;Acqua;10/04/2019
631;1;0;52,4;52,4;V.E.R.I.T.A.S. SPA;Z8022005E3;SALDO Fatt.n. 810000368070  del 19/03/2019 SERVIZIO IDRICO INTEGRATO PERIODO 01.01.2019-28.02.2019 AREA VERDE VIA GONELLE;10/04/2019;1080;0;46;1;Spese correnti;3;Acquisto di beni e servizi;2;Acquisto di servizi;5;Utenze e canoni;5;Acqua;10/04/2019
632;1;0;14,18;14,18;V.E.R.I.T.A.S. SPA;Z8022005E3;SALDO Fatt.n. 810000368069  del 19/03/2019 SERVIZIO IDRICO INTEGRATO PERIODO 01.01.2019-28.02.2019 CASERMA CARABINIERI;10/04/2019;1080;0;46;1;Spese correnti;3;Acquisto di beni e servizi;2;Acquisto di servizi;5;Utenze e canoni;5;Acqua;10/04/2019
633;1;0;72,45;72,45;V.E.R.I.T.A.S. SPA;Z8022005E3;SALDO Fatt.n. 810000368084  del 19/03/2019 SERVIZIO IDRICO INTEGRATO PERIODO 05.12.2018-28.02.2019 PIAZZA MARTIRI DELLA LIBERTA' 2;10/04/2019;1080;0;46;1;Spese correnti;3;Acquisto di beni e servizi;2;Acquisto di servizi;5;Utenze e canoni;5;Acqua;10/04/2019
634;1;0;52,82;52,82;V.E.R.I.T.A.S. SPA;Z8022005E3;SALDO Fatt.n. 810000368083  del 19/03/2019 SERVIZIO IDRICO INTEGRATO PERIODO 01.01.2019-28.02.2019 VIA CALNOVA BOSCHI;10/04/2019;1080;0;46;1;Spese correnti;3;Acquisto di beni e servizi;2;Acquisto di servizi;5;Utenze e canoni;5;Acqua;10/04/2019
635;1;0;23,42;23,42;V.E.R.I.T.A.S. SPA;Z8022005E3;SALDO Fatt.n. 810000367779  del 19/03/2019 SERVIZIO IDRICO INTEGRATO PERIODO 11.05.2018-28.02.2019 AREA CARD VIA GIOVANNI PASCOLI;10/04/2019;1080;0;46;1;Spese correnti;3;Acquisto di beni e servizi;2;Acquisto di servizi;5;Utenze e canoni;5;Acqua;10/04/2019
636;1;0;54,34;54,34;V.E.R.I.T.A.S. SPA;Z8022005E3;SALDO Fatt.n. 810000367853  del 19/03/2019 SERVIZIO IDRICO INTEGRATO PERIODO 01.01.2019-28.02.2019 FONTANA P.ZZA MARTIRI DELLA LIBERTA;10/04/2019;1080;0;46;1;Spese correnti;3;Acquisto di beni e servizi;2;Acquisto di servizi;5;Utenze e canoni;5;Acqua;10/04/2019
637;1;0;50,59;50,59;V.E.R.I.T.A.S. SPA;Z8022005E3;SALDO Fatt.n. 810000367557  del 19/03/2019 SERVIZIO IDRICO INTEGRATO PERIODO 01.01.2019-28.02.2019 UTENZA VIA ISONZO 28;10/04/2019;1080;0;46;1;Spese correnti;3;Acquisto di beni e servizi;2;Acquisto di servizi;5;Utenze e canoni;5;Acqua;10/04/2019
638;1;0;57,05;57,05;V.E.R.I.T.A.S. SPA;Z8022005E3;SALDO Fatt.n. 810000368300  del 19/03/2019 SERVIZIO IDRICO INTEGRATO PERIODO  01.01.2019-28.02.2019 CENTRO ANZIANI VIA MARCONI;10/04/2019;1080;0;46;1;Spese correnti;3;Acquisto di beni e servizi;2;Acquisto di servizi;5;Utenze e canoni;5;Acqua;10/04/2019
639;1;0;24,61;24,61;V.E.R.I.T.A.S. SPA;Z8022005E3;SALDO Fatt.n. 810000367730  del 19/03/2019 SERVIZIO IDRICO INTEGRATO PERIODO 01.01.2019-28.02.2019 VILLA MARIA DI VIA MAGGIORE;10/04/2019;1080;0;46;1;Spese correnti;3;Acquisto di beni e servizi;2;Acquisto di servizi;5;Utenze e canoni;5;Acqua;10/04/2019
640;1;0;27,38;27,38;V.E.R.I.T.A.S. SPA;Z8022005E3;ACCONTO Fatt.n. 810000367694  del 19/03/2019 SERVIZIO IDRICO INTEGRATO PERIODO 01.01.2019-28.02.2019 CONDOMINIO VIA CHIESA;10/04/2019;1080;0;46;1;Spese correnti;3;Acquisto di beni e servizi;2;Acquisto di servizi;5;Utenze e canoni;5;Acqua;10/04/2019
641;1;0;135,63;135,63;V.E.R.I.T.A.S. SPA;Z8022005E3;SALDO Fatt.n. 810000367694  del 19/03/2019 SERVIZIO IDRICO INTEGRATO PERIODO 01.01.2019-28.02.2019 CONDOMINIO VIA CHIESA;10/04/2019;1080;0;224;1;Spese correnti;3;Acquisto di beni e servizi;2;Acquisto di servizi;5;Utenze e canoni;5;Acqua;10/04/2019
642;1;0;80,08;80,08;V.E.R.I.T.A.S. SPA;Z8022005E3;SALDO Fatt.n. 810000368241  del 19/03/2019 SERVIZIO IDRICO INTEGRATO PERIODO 01.01.2019-28.02.2019 FONTANA VIA DANTE ALIGHIERI;10/04/2019;1080;0;224;1;Spese correnti;3;Acquisto di beni e servizi;2;Acquisto di servizi;5;Utenze e canoni;5;Acqua;10/04/2019
643;1;0;440;440;CONDOMINIO CAMPIELLO;Z70243BF4F;LIQUIDAZIONE QUARTA RATA ANNO .2018-2019 PER  GESTIONE CENTRO POLIFUNZIONALE DI VIA ROMA. CONDOMINIO CAMPIELLO - PATRIMONIO COMUNALE.;10/04/2019;1081;0;440;1;Spese correnti;3;Acquisto di beni e servizi;1;Acquisto di beni;2;Altri beni di consumo;999;Altri beni e materiali di consumo n.a.c.;10/04/2019
644;1;0;3,45;3,45;AZIENDA U.L.S.S. N.2 MARCA TREVIGIANA; ;SALDO Fatt.n. 19-V11-000059  del 01/03/2019 COSTO MICROCHIP A PRIVATI-VETERINARI;11/04/2019;4000;0;231;1;Spese correnti;3;Acquisto di beni e servizi;2;Acquisto di servizi;15;Contratti di servizio pubblico;11;Contratti di servizio per la lotta al randagismo;11/04/2019
645;1;0;0,76;0,76;AZIENDA U.L.S.S. N.2 MARCA TREVIGIANA; ;SALDO Fatt.n. 19-V11-000059  del 01/03/2019 COSTO MICROCHIP A PRIVATI-VETERINARI;11/04/2019;4000;0;231;1;Spese correnti;3;Acquisto di beni e servizi;2;Acquisto di servizi;15;Contratti di servizio pubblico;11;Contratti di servizio per la lotta al randagismo;11/04/2019
646;1;0;433,92;433,92;WIND TRE SPA;Z2B2739C42;SALDO Fatt.n. 19E0000000510  del 20/03/2019 SPESE TELEFONO PER ABBONAMENTO HAPPY ITALY ISDN AFFARI PERIODO DAL 09/01/2019 AL 08/03/2019;17/04/2019;340;0;109;1;Spese correnti;3;Acquisto di beni e servizi;2;Acquisto di servizi;5;Utenze e canoni;1;Telefonia fissa;17/04/2019
647;1;0;65,95;65,95;WIND TRE SPA;Z2B2739C42;SALDO Fatt.n. 19E0000000513  del 20/03/2019 SPESE TELEFONO PER ABBONAMENTO ADSL AFFARI FLAT PERIODO DAL 09/01/2019 AL 08/03/2019;17/04/2019;340;0;109;1;Spese correnti;3;Acquisto di beni e servizi;2;Acquisto di servizi;5;Utenze e canoni;1;Telefonia fissa;17/04/2019
648;1;0;176,8;176,8;SME SPA;Z2827AD3A2;SALDO Fatt.n. p10 24  del 21/03/2019 ACQUISTO DI UNO SMARTPHONE AD USO DEL SERVIZIO DI PROTEZIONE CIVILE.;17/04/2019;4302;0;165;1;Spese correnti;3;Acquisto di beni e servizi;1;Acquisto di beni;2;Altri beni di consumo;999;Altri beni e materiali di consumo n.a.c.;17/04/2019
649;1;0;11;11;MINATO MARIO; ;ACCONTO Fatt.n. 1/PA  del 21/03/2019 FORNITURA MATERIALE VARIO PER UFFICIO TECNICO;17/04/2019;650;0;624;1;Spese correnti;3;Acquisto di beni e servizi;1;Acquisto di beni;2;Altri beni di consumo;999;Altri beni e materiali di consumo n.a.c.;17/04/2019
650;1;0;42;42;MINATO MARIO; ;ACCONTO Fatt.n. 1/PA  del 21/03/2019 FORNITURA MATERIALE VARIO PER UFFICIO TECNICO;17/04/2019;1081;0;693;1;Spese correnti;3;Acquisto di beni e servizi;1;Acquisto di beni;2;Altri beni di consumo;999;Altri beni e materiali di consumo n.a.c.;17/04/2019
651;1;0;60;60;MINATO MARIO; ;ACCONTO Fatt.n. 1/PA  del 21/03/2019 FORNITURA MATERIALE VARIO PER UFFICIO TECNICO;17/04/2019;5911;0;691;1;Spese correnti;3;Acquisto di beni e servizi;1;Acquisto di beni;2;Altri beni di consumo;999;Altri beni e materiali di consumo n.a.c.;17/04/2019
652;1;0;55;55;MINATO MARIO; ;ACCONTO Fatt.n. 1/PA  del 21/03/2019 FORNITURA MATERIALE VARIO PER UFFICIO TECNICO;17/04/2019;650;0;692;1;Spese correnti;3;Acquisto di beni e servizi;1;Acquisto di beni;2;Altri beni di consumo;999;Altri beni e materiali di consumo n.a.c.;17/04/2019
653;1;0;329;329;MINATO MARIO; ;ACCONTO Fatt.n. 1/PA  del 21/03/2019 FORNITURA MATERIALE VARIO PER UFFICIO TECNICO;17/04/2019;5100;0;687;1;Spese correnti;3;Acquisto di beni e servizi;1;Acquisto di beni;2;Altri beni di consumo;999;Altri beni e materiali di consumo n.a.c.;17/04/2019
654;1;0;60;60;MINATO MARIO; ;ACCONTO Fatt.n. 1/PA  del 21/03/2019 FORNITURA MATERIALE VARIO PER UFFICIO TECNICO;17/04/2019;5911;0;791;1;Spese correnti;3;Acquisto di beni e servizi;1;Acquisto di beni;2;Altri beni di consumo;999;Altri beni e materiali di consumo n.a.c.;17/04/2019
655;1;0;60;60;MINATO MARIO; ;ACCONTO Fatt.n. 1/PA  del 21/03/2019 FORNITURA MATERIALE VARIO PER UFFICIO TECNICO;17/04/2019;5911;0;100;1;Spese correnti;3;Acquisto di beni e servizi;1;Acquisto di beni;2;Altri beni di consumo;999;Altri beni e materiali di consumo n.a.c.;17/04/2019
656;1;0;28;28;MINATO MARIO; ;ACCONTO Fatt.n. 1/PA  del 21/03/2019 FORNITURA MATERIALE VARIO PER UFFICIO TECNICO;17/04/2019;2341;0;99;1;Spese correnti;3;Acquisto di beni e servizi;1;Acquisto di beni;2;Altri beni di consumo;999;Altri beni e materiali di consumo n.a.c.;17/04/2019
657;1;0;9;9;MINATO MARIO; ;ACCONTO Fatt.n. 1/PA  del 21/03/2019 FORNITURA MATERIALE VARIO PER UFFICIO TECNICO;17/04/2019;650;0;98;1;Spese correnti;3;Acquisto di beni e servizi;1;Acquisto di beni;2;Altri beni di consumo;999;Altri beni e materiali di consumo n.a.c.;17/04/2019
658;1;0;57,39;57,39;MINATO MARIO; ;SALDO Fatt.n. 1/PA  del 21/03/2019 FORNITURA MATERIALE VARIO PER UFFICIO TECNICO;17/04/2019;5911;0;149;1;Spese correnti;3;Acquisto di beni e servizi;1;Acquisto di beni;2;Altri beni di consumo;999;Altri beni e materiali di consumo n.a.c.;17/04/2019
659;1;0;691,41;691,41;SPIGAS SRL;Z2D21ED429;SALDO Fatt.n. PA007964/2019  del 28/03/2019 FORNITURA GAS MESE DI FEBBRAIO 2019 VILLA MARIA DI VIA MAGGIORE;17/04/2019;1080;0;51;1;Spese correnti;3;Acquisto di beni e servizi;2;Acquisto di servizi;5;Utenze e canoni;6;Gas;17/04/2019
660;1;0;152,7;152,7;SPIGAS SRL;Z2D21ED429;SALDO Fatt.n. PA007965/2019  del 28/03/2019 FORNITURA GAS MESE DI FEBBRAIO 2019 CENTRO ANZIANI VIA MARCONI;17/04/2019;1080;0;51;1;Spese correnti;3;Acquisto di beni e servizi;2;Acquisto di servizi;5;Utenze e canoni;6;Gas;17/04/2019
661;1;0;12.766,59;12.766,59;EURO TOURS S.R.L.;65873873B8;SALDO Fatt.n. 00131  del 30/03/2019 SERVIZIOTRASPORTO SCOLASTICO MESE DI MARZO 2019;17/04/2019;2720;0;373;1;Spese correnti;3;Acquisto di beni e servizi;2;Acquisto di servizi;15;Contratti di servizio pubblico;2;Contratti di servizio di trasporto scolastico;17/04/2019
662;1;0;442,12;442,12;DOLOMITI ENERGIA SPA;7142067C20;SALDO Fatt.n. 41901285263  del 28/03/2019 FORNITURA ENERGIA ELETTRICA MESE DI FEBBRAIO 2019 SEDE MUNICIPALE P.ZZA MARTIRI DELLA LIBERTA;17/04/2019;340;0;129;1;Spese correnti;3;Acquisto di beni e servizi;2;Acquisto di servizi;5;Utenze e canoni;4;Energia elettrica;17/04/2019
663;1;0;116,52;116,52;DOLOMITI ENERGIA SPA;7142067C20;SALDO Fatt.n. 41901285259  del 28/03/2019 FORNITURA ENERGIA ELETTRICA MESE DI FEBBRAIO 2019 MPIANTO IRRIGAZIONE VIA PASCOLI;17/04/2019;1130;0;131;1;Spese correnti;3;Acquisto di beni e servizi;2;Acquisto di servizi;5;Utenze e canoni;4;Energia elettrica;17/04/2019
664;1;0;141,36;141,36;DOLOMITI ENERGIA SPA;7142067C20;ACCONTO Fatt.n. 41901285256  del 28/03/2019 FORNITURA ENERGIA ELETTRICA MESE DI FEBBRAIO 2019 SCUOLA ELEMENTARE;17/04/2019;2340;0;550;1;Spese correnti;3;Acquisto di beni e servizi;2;Acquisto di servizi;5;Utenze e canoni;999;Utenze e canoni per altri servizi n.a.c.;17/04/2019
665;1;0;195,35;195,35;DOLOMITI ENERGIA SPA;7142067C20;SALDO Fatt.n. 41901285256  del 28/03/2019 FORNITURA ENERGIA ELETTRICA MESE DI FEBBRAIO 2019 SCUOLA ELEMENTARE;17/04/2019;2340;0;136;1;Spese correnti;3;Acquisto di beni e servizi;2;Acquisto di servizi;5;Utenze e canoni;4;Energia elettrica;17/04/2019
666;1;0;21,33;21,33;DOLOMITI ENERGIA SPA;7142067C20;ACCONTO Fatt.n. 41901285264  del 28/03/2019 FORNITURA ENERGIA ELETTRICA MESE DI FEBBRAIO 2019 SCUOLA MEDIA.;17/04/2019;2510;0;551;1;Spese correnti;3;Acquisto di beni e servizi;2;Acquisto di servizi;5;Utenze e canoni;999;Utenze e canoni per altri servizi n.a.c.;17/04/2019
667;1;0;561,27;561,27;DOLOMITI ENERGIA SPA;7142067C20;SALDO Fatt.n. 41901285264  del 28/03/2019 FORNITURA ENERGIA ELETTRICA MESE DI FEBBRAIO 2019 SCUOLA MEDIA.;17/04/2019;2510;0;132;1;Spese correnti;3;Acquisto di beni e servizi;2;Acquisto di servizi;5;Utenze e canoni;4;Energia elettrica;17/04/2019
668;1;0;47,1;47,1;DOLOMITI ENERGIA SPA;7142067C20;SALDO Fatt.n. 41901285265  del 28/03/2019 FORNITURA ENERGIA ELETTRICA MESE DI FEBBRAIO 2019 CIMITERO S.MARIA DI CAMPAGNA VIA MAGGIORE 40X;17/04/2019;4140;0;133;1;Spese correnti;3;Acquisto di beni e servizi;2;Acquisto di servizi;5;Utenze e canoni;4;Energia elettrica;17/04/2019
669;1;0;60,37;60,37;DOLOMITI ENERGIA SPA;7142067C20;SALDO Fatt.n. 41901285266  del 28/03/2019 FORNITURA ENERGIA ELETTRICA MESE DI FEBBRAIO 2019 CIMITERO CESSALTO VIA U.FOSCOLO;17/04/2019;4140;0;133;1;Spese correnti;3;Acquisto di beni e servizi;2;Acquisto di servizi;5;Utenze e canoni;4;Energia elettrica;17/04/2019
670;1;0;38,21;38,21;DOLOMITI ENERGIA SPA;7142067C20;SALDO Fatt.n. 41901285267  del 28/03/2019 FORNITURA ENERGIA ELETTRICA MESE DI FEBBRAIO 2019 CIMITERO VIA CHIESA S.ANASTASIO;17/04/2019;4140;0;133;1;Spese correnti;3;Acquisto di beni e servizi;2;Acquisto di servizi;5;Utenze e canoni;4;Energia elettrica;17/04/2019
671;1;0;631,4;631,4;DOLOMITI ENERGIA SPA;7142067C20;SALDO Fatt.n. 41901285268  del 28/03/2019 FORNITURA ENERGIA ELETTRICA MESE DI FEBBRAIO 2019 UTENZA PALAZZETTO DELLO SPORT VIA G.GALILEI;17/04/2019;5290;0;134;1;Spese correnti;3;Acquisto di beni e servizi;2;Acquisto di servizi;5;Utenze e canoni;4;Energia elettrica;17/04/2019
672;1;0;435,64;435,64;DOLOMITI ENERGIA SPA;7142067C20;SALDO Fatt.n. 41901285260  del 28/03/2019 FORNITURA ENERGIA ELETTRICA MESE DI FEBBRAIO 2019 PUBBLICA ILLUMINAZIONE VIA MAGGIORE 115/X.;17/04/2019;6000;0;135;1;Spese correnti;3;Acquisto di beni e servizi;2;Acquisto di servizi;5;Utenze e canoni;4;Energia elettrica;17/04/2019
673;1;0;124,37;124,37;DOLOMITI ENERGIA SPA;7142067C20;SALDO Fatt.n. 41901272189  del 28/03/2019 FORNITURA ENERGIA ELETTRICA MESE DI FEBBRAIO 2019 PUBBLICA ILLUMINAZIONE P.ZZA MARTIRI DELLA LIBERTA';17/04/2019;6000;0;135;1;Spese correnti;3;Acquisto di beni e servizi;2;Acquisto di servizi;5;Utenze e canoni;4;Energia elettrica;17/04/2019
674;1;0;94,06;94,06;DOLOMITI ENERGIA SPA;7142067C20;SALDO Fatt.n. 41901272188  del 28/03/2019 FORNITURA ENERGIA ELETTRICA MESE DI FEBBRAIO 2019 PUBBLICA ILLUMINAZIONE P.ZZA MARTIRI DELLA LIBERTA';17/04/2019;6000;0;135;1;Spese correnti;3;Acquisto di beni e servizi;2;Acquisto di servizi;5;Utenze e canoni;4;Energia elettrica;17/04/2019
675;1;0;7.979,37;7.979,37;DOLOMITI ENERGIA SPA;7142067C20;SALDO Fatt.n. 41901280423  del 28/03/2019 FORNITURA ENERGIA ELETTRICA MESE DI FEBBRAIO 2019 PUBBLICA ILLUMINAZIONE.;17/04/2019;6000;0;135;1;Spese correnti;3;Acquisto di beni e servizi;2;Acquisto di servizi;5;Utenze e canoni;4;Energia elettrica;17/04/2019
676;1;0;33,64;33,64;DOLOMITI ENERGIA SPA;7142067C20;SALDO Fatt.n. 41901285253  del 28/03/2019 FORNITURA ENERGIA ELETTRICA MESE DI FEBBRAIO 2019 SERVIZIO SCALE VIA CHIESA;17/04/2019;1080;0;130;1;Spese correnti;3;Acquisto di beni e servizi;2;Acquisto di servizi;5;Utenze e canoni;4;Energia elettrica;17/04/2019
677;1;0;78,09;78,09;DOLOMITI ENERGIA SPA;7142067C20;SALDO Fatt.n. 41901285262  del 28/03/2019 FORNITURA ENERGIA ELETTRICA MESE DI FEBBRAIO 2019 MAGAZZINO COMUNALE P.ZZA MARTIRI DELLA LIBERTA' 4;17/04/2019;1080;0;130;1;Spese correnti;3;Acquisto di beni e servizi;2;Acquisto di servizi;5;Utenze e canoni;4;Energia elettrica;17/04/2019
678;1;0;46,8;46,8;DOLOMITI ENERGIA SPA;7142067C20;SALDO Fatt.n. 41901285255  del 28/03/2019 FORNITURA ENERGIA ELETTRICA MESE DI FEBBRAIO 2019 AMBULATORIO VIA CHIESA.;17/04/2019;1080;0;130;1;Spese correnti;3;Acquisto di beni e servizi;2;Acquisto di servizi;5;Utenze e canoni;4;Energia elettrica;17/04/2019
679;1;0;488,26;488,26;DOLOMITI ENERGIA SPA;7142067C20;SALDO Fatt.n. 41901285252  del 28/03/2019 FORNITURA ENERGIA ELETTRICA MESE DI FEBBRAIO 2019 VILLA MARIA DI VIA MAGGIORE;17/04/2019;1080;0;130;1;Spese correnti;3;Acquisto di beni e servizi;2;Acquisto di servizi;5;Utenze e canoni;4;Energia elettrica;17/04/2019
680;1;0;133,61;133,61;DOLOMITI ENERGIA SPA;7142067C20;SALDO Fatt.n. 41901285258  del 28/03/2019 FORNITURA ENERGIA ELETTRICA MESE DI FEBBRAIO 2019 CENTRO SOCIALE + BIBLIOTECA;17/04/2019;1080;0;130;1;Spese correnti;3;Acquisto di beni e servizi;2;Acquisto di servizi;5;Utenze e canoni;4;Energia elettrica;17/04/2019
681;1;0;37,62;37,62;DOLOMITI ENERGIA SPA;7142067C20;SALDO Fatt.n. 41901285254  del 28/03/2019 FORNITURA ENERGIA ELETTRICA MESE DI FEBBRAIO 2019 CENTRO SOCIALE VIA CHIESA 4 X;17/04/2019;1080;0;130;1;Spese correnti;3;Acquisto di beni e servizi;2;Acquisto di servizi;5;Utenze e canoni;4;Energia elettrica;17/04/2019
682;1;0;60,51;60,51;DOLOMITI ENERGIA SPA;7142067C20;SALDO Fatt.n. 41901285251  del 28/03/2019 FORNITURA ENERGIA ELETTRICA MESE DI FEBBRAIO 2019 CENTRO ANZIANI VIA MARCONI.;17/04/2019;1080;0;130;1;Spese correnti;3;Acquisto di beni e servizi;2;Acquisto di servizi;5;Utenze e canoni;4;Energia elettrica;17/04/2019
683;1;0;38,39;38,39;DOLOMITI ENERGIA SPA;7142067C20;SALDO Fatt.n. 41901285257  del 28/03/2019 FORNITURA ENERGIA ELETTRICA MESE DI FEBBRAIO 2019 SEDE AVIS VIA DIAZ;17/04/2019;1080;0;130;1;Spese correnti;3;Acquisto di beni e servizi;2;Acquisto di servizi;5;Utenze e canoni;4;Energia elettrica;17/04/2019
684;1;0;240,47;240,47;DOLOMITI ENERGIA SPA;7142067C20;SALDO Fatt.n. 41901285261  del 28/03/2019 FORNITURA ENERGIA ELETTRICA MESE DI FEBBRAIO 2019 EX SCUOLA P.ZZA MARTIRI DELLA LIBERTA';17/04/2019;1080;0;130;1;Spese correnti;3;Acquisto di beni e servizi;2;Acquisto di servizi;5;Utenze e canoni;4;Energia elettrica;17/04/2019
685;1;0;3.342,80;3.342,80;ALADINO SOCIETA' COOPERATIVA SOCIALE;Z0D25B9298;SALDO Fatt.n. 14/2  del 29/03/2019 SERVIZIO DI MANUTENZIONE E POSA ATTREZZATURE LUDICHE SU AREE VERDI COMUNALI.;17/04/2019;9523;0;618;2;Spese in conto capitale;2;Investimenti fissi lordi e acquisto di terreni;1;Beni materiali;9;Beni immobili;999;Beni immobili n.a.c.;17/04/2019
686;1;0;410,77;410,77;ISEPPON S.R.L.;Z1527A1E07;SALDO Fatt.n. 000003/19P  del 25/03/2019 FORNITURA DI GHIAIA PER STRADE BIANCHE;18/04/2019;5911;0;162;1;Spese correnti;3;Acquisto di beni e servizi;1;Acquisto di beni;2;Altri beni di consumo;999;Altri beni e materiali di consumo n.a.c.;18/04/2019
687;1;0;1.586,00;1.586,00;DE ZOTTI IMPIANTI SRL;ZE626DD521;SALDO Fatt.n. FE-0057  del 14/03/2019 SOSTITUZIONE DI UN PALO DI ILLUMINAZIONE PUBBLICA INCIDENTATO IN VIA CALNOVA BOSCHI INCROCIO CON VIA SAN MARCO;18/04/2019;1082;0;45;1;Spese correnti;3;Acquisto di beni e servizi;2;Acquisto di servizi;9;Manutenzione ordinaria e riparazioni;4;Manutenzione ordinaria e riparazioni di impianti e macchinari;18/04/2019
688;1;0;170,8;170,8;VEZZANI SPA;ZA822202B2;SALDO Fatt.n. 00031/VS  del 15/02/2019 VERIFICA TRIMESTRALE DI CONTROLLO FUNI/CATENE;18/04/2019;4139;0;81;1;Spese correnti;3;Acquisto di beni e servizi;2;Acquisto di servizi;9;Manutenzione ordinaria e riparazioni;5;Manutenzione ordinaria e riparazioni di attrezzature;18/04/2019
689;1;0;810;810;FDM TOURS SRL;Z7826DDAC7;SALDO Fatt.n. 108  del 31/03/2019 SERVIZIO TRASPORTO SCOLASTICO AGGIUNTIVO PER USCITE A PADOVA IL 27/03/2019 E A CASTELFRANCO VENETO IL 29/03/2019;18/04/2019;2720;0;87;1;Spese correnti;3;Acquisto di beni e servizi;2;Acquisto di servizi;15;Contratti di servizio pubblico;2;Contratti di servizio di trasporto scolastico;18/04/2019
690;1;0;692;692;GEMEAZ ELIOR SPA;6164666B4E;SALDO Fatt.n. 7680037006  del 28/02/2019 SERVIZIO PASTI ANZIANI A DOMICILIO MESE DI FEBBRAIO 2019.;18/04/2019;5654;0;616;1;Spese correnti;3;Acquisto di beni e servizi;2;Acquisto di servizi;14;Servizi di ristorazione;999;Altri servizi di ristorazione;18/04/2019
691;1;0;183;183;GIAROLO SERGIO;Z59277CE81;SALDO Fatt.n. 1/PA  del 30/03/2019 SERVIZIO DI PULIZIA DEGLI SCARICHI DELL'EDIFICIO SITO IN VIA CHIESA S.ANASTASIO;18/04/2019;1079;0;155;1;Spese correnti;3;Acquisto di beni e servizi;2;Acquisto di servizi;9;Manutenzione ordinaria e riparazioni;4;Manutenzione ordinaria e riparazioni di impianti e macchinari;18/04/2019
692;1;0;16.431,77;16.431,77;I.F.A.F. SPA;Z6B2657AE9;SALDO Fatt.n. 000212  del 10/04/2019 INTERVENTO DI MANUTENZIONE STRAORDINARIA TRATTO PISTA CICLABILE DI VIA MAGGIORE.;18/04/2019;9643;0;721;2;Spese in conto capitale;2;Investimenti fissi lordi e acquisto di terreni;1;Beni materiali;9;Beni immobili;12;Infrastrutture stradali;18/04/2019
693;1;0;194,49;194,49;POSTE ITALIANE SPA;ZE221F836D;SALDO Fatt.n. 8719069717  del 14/03/2019 SPESE POSTALI MESE DI GENNAIO 2019;18/04/2019;340;0;685;1;Spese correnti;3;Acquisto di beni e servizi;2;Acquisto di servizi;5;Utenze e canoni;999;Utenze e canoni per altri servizi n.a.c.;18/04/2019
694;1;0;46,48;46,48;PROMOSELF SRL;Z962602CC9;SALDO Fatt.n. 1/861  del 19/03/2019 FORNITURA MATERIALI PER CONCERTO GOSPEL IN DATA 8 DICEMBRE 2018.;19/04/2019;3030;0;652;1;Spese correnti;3;Acquisto di beni e servizi;1;Acquisto di beni;2;Altri beni di consumo;999;Altri beni e materiali di consumo n.a.c.;19/04/2019
695;1;0;58,76;58,76;ELETTROVENETA SPA; ;ACCONTO Fatt.n. 19/110/010407  del 28/02/2019 FORNITURA MATERIALE VARIO PER UFFICIO TECNICO.;19/04/2019;2511;0;95;1;Spese correnti;3;Acquisto di beni e servizi;1;Acquisto di beni;2;Altri beni di consumo;999;Altri beni e materiali di consumo n.a.c.;19/04/2019
696;1;0;60,52;60,52;ELETTROVENETA SPA; ;SALDO Fatt.n. 19/110/010407  del 28/02/2019 FORNITURA MATERIALE VARIO PER UFFICIO TECNICO.;19/04/2019;4141;0;96;1;Spese correnti;3;Acquisto di beni e servizi;1;Acquisto di beni;2;Altri beni di consumo;999;Altri beni e materiali di consumo n.a.c.;19/04/2019
697;1;0;2.040,45;2.040,45;AZIENDA U.L.S.S. N.2 MARCA TREVIGIANA; ;LIQUIDAZIONE RICHIESTA DA NOTA PROT. 2921/2019 - COMPETENZE PER GESTIONE ATTIVITA' DELEGATE - QUOTE PER UTENTE A CONSUTIVO ANNO 2018.;19/04/2019;5600;0;760;1;Spese correnti;4;Trasferimenti correnti;1;Trasferimenti correnti a Amministrazioni Pubbliche;2;Trasferimenti correnti a Amministrazioni Locali;11;Trasferimenti correnti a Aziende sanitarie locali  n.a.f.;19/04/2019
698;1;0;1.650,00;1.650,00;PETRACCO ALIANO;Z6B2657AE9;SALDO Fatt.n. 01/01/0000005  del 02/04/2019 AFFIDAMENTO INCARICO PER LA PROGETTAZIONE LAVORI DI  MANUTENZIONE STRAORDINARIA TRATTO PISTA CICLABILE DI VIA MAGGIORE.;19/04/2019;640;0;527;1;Spese correnti;3;Acquisto di beni e servizi;2;Acquisto di servizi;11;Prestazioni professionali e specialistiche;999;Altre prestazioni professionali e specialistiche n.a.c.;19/04/2019
699;1;0;369,38;369,38;MINISTERO INTERNO; ;COMUNE DI CESSALTO - CORRISPETTIVO PER IL RILASCIO DI N.22 CARTE D'IDENTITA' PERIODO 1-15 APRILE 2019.;19/04/2019;822;0;243;1;Spese correnti;4;Trasferimenti correnti;1;Trasferimenti correnti a Amministrazioni Pubbliche;1;Trasferimenti correnti a Amministrazioni Centrali;1;Trasferimenti correnti a Ministeri;19/04/2019
700;1;0;50,07;50,07;FIRAS SRL; ;SALDO Fatt.n. 000421/19/04  del 30/03/2019 FORNITURA MATERIALE VARIO PER MANUTENZIONI;19/04/2019;5100;0;233;1;Spese correnti;3;Acquisto di beni e servizi;1;Acquisto di beni;2;Altri beni di consumo;999;Altri beni e materiali di consumo n.a.c.;19/04/2019
701;1;0;256,2;256,2;ISEPPON S.R.L.;Z8527B7CD4;SALDO Fatt.n. 000004/19P  del 31/03/2019 NOLEGGIO MINIESCAVATORE PER INUMAZIONE CIMITERO CAPOLUOGO.;19/04/2019;4139;0;176;1;Spese correnti;3;Acquisto di beni e servizi;2;Acquisto di servizi;9;Manutenzione ordinaria e riparazioni;4;Manutenzione ordinaria e riparazioni di impianti e macchinari;19/04/2019
702;1;0;20;20;FIRAS SRL; ;ACCONTO Fatt.n. 000420/19/04  del 30/03/2019 FORNITURA MATERIALE VARIO PER MANUTENZIONE;19/04/2019;1081;0;150;1;Spese correnti;3;Acquisto di beni e servizi;1;Acquisto di beni;2;Altri beni di consumo;999;Altri beni e materiali di consumo n.a.c.;19/04/2019
703;1;0;25,86;25,86;FIRAS SRL; ;SALDO Fatt.n. 000420/19/04  del 30/03/2019 FORNITURA MATERIALE VARIO PER MANUTENZIONE;19/04/2019;650;0;151;1;Spese correnti;3;Acquisto di beni e servizi;1;Acquisto di beni;2;Altri beni di consumo;999;Altri beni e materiali di consumo n.a.c.;19/04/2019
704;1;0;1.120,36;1.120,36;ASE ACEGASAPSAMGA SERVIZI ENERGETICI S.p.A.;7221838140;ACCONTO Fatt.n. 331900000335  del 13/02/2019 QUARTA RATA GESTIONE CALORE EDIFICI COMUNALI STAGIONE TERMICA 2018/2019;19/04/2019;340;0;245;1;Spese correnti;3;Acquisto di beni e servizi;2;Acquisto di servizi;5;Utenze e canoni;6;Gas;19/04/2019
705;1;0;908,29;908,29;ASE ACEGASAPSAMGA SERVIZI ENERGETICI S.p.A.;7221838140;ACCONTO Fatt.n. 331900000335  del 13/02/2019 QUARTA RATA GESTIONE CALORE EDIFICI COMUNALI STAGIONE TERMICA 2018/2019;19/04/2019;1080;0;246;1;Spese correnti;3;Acquisto di beni e servizi;2;Acquisto di servizi;5;Utenze e canoni;6;Gas;19/04/2019
706;1;0;1.848,20;1.848,20;ASE ACEGASAPSAMGA SERVIZI ENERGETICI S.p.A.;7221838140;ACCONTO Fatt.n. 331900000335  del 13/02/2019 QUARTA RATA GESTIONE CALORE EDIFICI COMUNALI STAGIONE TERMICA 2018/2019;19/04/2019;2340;0;247;1;Spese correnti;3;Acquisto di beni e servizi;2;Acquisto di servizi;5;Utenze e canoni;6;Gas;19/04/2019
707;1;0;6.159,50;6.159,50;ASE ACEGASAPSAMGA SERVIZI ENERGETICI S.p.A.;7221838140;SALDO Fatt.n. 331900000335  del 13/02/2019 QUARTA RATA GESTIONE CALORE EDIFICI COMUNALI STAGIONE TERMICA 2018/2019;19/04/2019;2510;0;248;1;Spese correnti;3;Acquisto di beni e servizi;2;Acquisto di servizi;5;Utenze e canoni;6;Gas;19/04/2019
708;1;0;1.120,36;1.120,36;ASE ACEGASAPSAMGA SERVIZI ENERGETICI S.p.A.;7221838140;ACCONTO Fatt.n. 331900000336  del 13/02/2019 TERZA RATA GESTIONE CALORE IMPIANTI COMUNALI - STAGIONE TERMICA 2018/2019;19/04/2019;340;0;245;1;Spese correnti;3;Acquisto di beni e servizi;2;Acquisto di servizi;5;Utenze e canoni;6;Gas;19/04/2019
709;1;0;908,29;908,29;ASE ACEGASAPSAMGA SERVIZI ENERGETICI S.p.A.;7221838140;ACCONTO Fatt.n. 331900000336  del 13/02/2019 TERZA RATA GESTIONE CALORE IMPIANTI COMUNALI - STAGIONE TERMICA 2018/2019;19/04/2019;1080;0;246;1;Spese correnti;3;Acquisto di beni e servizi;2;Acquisto di servizi;5;Utenze e canoni;6;Gas;19/04/2019
710;1;0;1.848,20;1.848,20;ASE ACEGASAPSAMGA SERVIZI ENERGETICI S.p.A.;7221838140;ACCONTO Fatt.n. 331900000336  del 13/02/2019 TERZA RATA GESTIONE CALORE IMPIANTI COMUNALI - STAGIONE TERMICA 2018/2019;19/04/2019;2340;0;247;1;Spese correnti;3;Acquisto di beni e servizi;2;Acquisto di servizi;5;Utenze e canoni;6;Gas;19/04/2019
711;1;0;6.159,50;6.159,50;ASE ACEGASAPSAMGA SERVIZI ENERGETICI S.p.A.;7221838140;SALDO Fatt.n. 331900000336  del 13/02/2019 TERZA RATA GESTIONE CALORE IMPIANTI COMUNALI - STAGIONE TERMICA 2018/2019;19/04/2019;2510;0;248;1;Spese correnti;3;Acquisto di beni e servizi;2;Acquisto di servizi;5;Utenze e canoni;6;Gas;19/04/2019
712;1;0;104;104;REGIONE VENETO; ;VERSAMENTO DELL'IMPORTO DERIVANTE DALLE SANZIONI AMMINISTRATIVE EX C.2 E 3 ART. 8 L.R. N.23/2007 - ANNO 2018.;23/04/2019;1755;0;608;1;Spese correnti;4;Trasferimenti correnti;1;Trasferimenti correnti a Amministrazioni Pubbliche;2;Trasferimenti correnti a Amministrazioni Locali;1;Trasferimenti correnti a Regioni e province autonome;23/04/2019
713;1;0;116,67;116,67;REGIONE VENETO; ;VERSAMENTO DELL'IMPORTO DERIVANTE DALLE SANZIONI AMMINISTRATIVE EX C.2 E 3 ART. 8 L.R. N.23/2007 - ANNO 2018.;23/04/2019;1755;0;723;1;Spese correnti;4;Trasferimenti correnti;1;Trasferimenti correnti a Amministrazioni Pubbliche;2;Trasferimenti correnti a Amministrazioni Locali;1;Trasferimenti correnti a Regioni e province autonome;23/04/2019
714;1;0;116,67;116,67;REGIONE VENETO; ;VERSAMENTO DELL'IMPORTO DERIVANTE DALLE SANZIONI AMMINISTRATIVE EX C.2 E 3 ART. 8 L.R. N.23/2007 - ANNO 2018.;23/04/2019;1755;0;805;1;Spese correnti;4;Trasferimenti correnti;1;Trasferimenti correnti a Amministrazioni Pubbliche;2;Trasferimenti correnti a Amministrazioni Locali;1;Trasferimenti correnti a Regioni e province autonome;23/04/2019
715;1;0;3,5;3,5;MARCATO MARTA ECONOMO COMUNALE; ;RIMBORSO PER ACQUISTO NASTRO PER CONFEZIONAMENTO PACCHETTI CORNICI PER OMAGGIO AGLI SPOSI (BUONO 3).;06/05/2019;337;0;21;1;Spese correnti;3;Acquisto di beni e servizi;1;Acquisto di beni;2;Altri beni di consumo;999;Altri beni e materiali di consumo n.a.c.;06/05/2019
716;1;0;6,4;6,4;MARCATO MARTA ECONOMO COMUNALE; ;RIMBORSO PER ACQUISTO STAMPATI (BUONO 15).;06/05/2019;337;0;107;1;Spese correnti;3;Acquisto di beni e servizi;1;Acquisto di beni;2;Altri beni di consumo;999;Altri beni e materiali di consumo n.a.c.;06/05/2019
717;1;0;20;20;MARCATO MARTA ECONOMO COMUNALE; ;RIMBORSO  PER ACQUISTO OMAGGIO FLOREALE PER PREFETTO IN VISITA PRESSO IL COMUNE (BUONO 16).;06/05/2019;337;0;117;1;Spese correnti;3;Acquisto di beni e servizi;1;Acquisto di beni;2;Altri beni di consumo;999;Altri beni e materiali di consumo n.a.c.;06/05/2019
718;1;0;11,1;11,1;MARCATO MARTA ECONOMO COMUNALE; ;RIMBORSO PER ACQUISTO MATERIALE VARIO CANCELLERIA PER UFFICI (BUONO 19).;06/05/2019;337;0;128;1;Spese correnti;3;Acquisto di beni e servizi;1;Acquisto di beni;2;Altri beni di consumo;1;Carta, cancelleria e stampati;06/05/2019
719;1;0;6,9;6,9;MARCATO MARTA ECONOMO COMUNALE; ;RIMBORSO PER ACQUISTO FOGLI PER PLASTIFICATRICE (BUONO 33).;06/05/2019;337;0;171;1;Spese correnti;3;Acquisto di beni e servizi;1;Acquisto di beni;2;Altri beni di consumo;1;Carta, cancelleria e stampati;06/05/2019
722;1;0;36;36;MARCATO MARTA ECONOMO COMUNALE; ;RIMBORSO PER ACQUISTO NR. 2 MARCHE DA BOLLO DA EURO 16,00 E N. 2 MARCHE DA BOLLO DA EURO 2,00 PER REGISTRAZIONE CONTRATTO DI COMODATO D'USO GRATUITO IMMOBILE (BUONO 23).;06/05/2019;500;0;156;1;Spese correnti;3;Acquisto di beni e servizi;2;Acquisto di servizi;16;Servizi amministrativi;999;Altre spese per servizi amministrativi;06/05/2019
723;1;0;200;200;MARCATO MARTA ECONOMO COMUNALE; ;RIMBORSO IMPOSTA DI REGISTRO CONTRATTO DI COMODATO D'USO GRATUITO IMMOBILE VIA MAGGIORE (BUONO 30).;06/05/2019;500;0;160;1;Spese correnti;3;Acquisto di beni e servizi;2;Acquisto di servizi;16;Servizi amministrativi;999;Altre spese per servizi amministrativi;06/05/2019
724;1;0;4,5;4,5;MARCATO MARTA ECONOMO COMUNALE; ;RIMBORSO PER DUPLICATO CHIAVI (BUONO 24).;06/05/2019;650;0;157;1;Spese correnti;3;Acquisto di beni e servizi;1;Acquisto di beni;2;Altri beni di consumo;999;Altri beni e materiali di consumo n.a.c.;06/05/2019
725;1;0;1,2;1,2;MARCATO MARTA ECONOMO COMUNALE; ;RIMBORSO PER DUPLICAZIONE CHIAVI PER UFFICIO TECNICO (BUONO 28).;06/05/2019;650;0;164;1;Spese correnti;3;Acquisto di beni e servizi;1;Acquisto di beni;2;Altri beni di consumo;999;Altri beni e materiali di consumo n.a.c.;06/05/2019
726;1;0;5,4;5,4;MARCATO MARTA ECONOMO COMUNALE; ;RIMBORSO SPESE POSTALI PER NR. 1 AVVISO RICEVUTA RITORNO RACCOMANDATA A.R. UFFICIO POLIZIA LOCALE (BUONO 1).;06/05/2019;1721;0;9;1;Spese correnti;3;Acquisto di beni e servizi;2;Acquisto di servizi;5;Utenze e canoni;999;Utenze e canoni per altri servizi n.a.c.;06/05/2019
727;1;0;5,4;5,4;MARCATO MARTA ECONOMO COMUNALE; ;RIMBORSO SPESE POSTALI PER NR.1 AVVISO RICEVUTA RITORNO RACCOMANDATA A.R. UFFICIO POLIZIA LOCALE (BUONO 2).;06/05/2019;1721;0;20;1;Spese correnti;3;Acquisto di beni e servizi;2;Acquisto di servizi;5;Utenze e canoni;999;Utenze e canoni per altri servizi n.a.c.;06/05/2019
728;1;0;5,4;5,4;MARCATO MARTA ECONOMO COMUNALE; ;RIMBORSO SPESE POSTALI PER NR. 1 AVVISO RICEVUTA RACCOMANDATA A.R. UFFICIO POLIZIA LOCALE (BUONO 5).;06/05/2019;1721;0;46;1;Spese correnti;3;Acquisto di beni e servizi;2;Acquisto di servizi;5;Utenze e canoni;999;Utenze e canoni per altri servizi n.a.c.;06/05/2019
729;1;0;6,5;6,5;MARCATO MARTA ECONOMO COMUNALE; ;RIMBORSO SPESE POSTALI PER NR. 1 AVVISO RICEVUTA RITORNO RACCOMANDATA A.R. UFFICIO POLIZIA LOCALE (BUONO 6).;06/05/2019;1721;0;64;1;Spese correnti;3;Acquisto di beni e servizi;2;Acquisto di servizi;5;Utenze e canoni;999;Utenze e canoni per altri servizi n.a.c.;06/05/2019
730;1;0;6,5;6,5;MARCATO MARTA ECONOMO COMUNALE; ;RIMBORSO SPESE POSTALI PER NR. 1 AVVISO RICEVUTA RITORNO RACCOMANDATA A.R. UFFICIO POLIZIA LOCALE (BUONO 7).;06/05/2019;1721;0;72;1;Spese correnti;3;Acquisto di beni e servizi;2;Acquisto di servizi;5;Utenze e canoni;999;Utenze e canoni per altri servizi n.a.c.;06/05/2019
731;1;0;5,4;5,4;MARCATO MARTA ECONOMO COMUNALE; ;RIMBORSO SPESE POSTALI PER NR. 1 AVVISO RICEVUTA RITORNO RACCOMANDATA A.R. UFFICIO POLIZIA LOCALE (BUONO 8).;06/05/2019;1721;0;75;1;Spese correnti;3;Acquisto di beni e servizi;2;Acquisto di servizi;5;Utenze e canoni;999;Utenze e canoni per altri servizi n.a.c.;06/05/2019
732;1;0;6,5;6,5;MARCATO MARTA ECONOMO COMUNALE; ;RIMBORSO SPESE POSTALI PER NR. 1 AVVISO RICEVUTA RIORNO RACCOMANDATA A.R. UFFICIO POLIZIA MUNICIPALE (BUONO 9).;06/05/2019;1721;0;76;1;Spese correnti;3;Acquisto di beni e servizi;2;Acquisto di servizi;5;Utenze e canoni;999;Utenze e canoni per altri servizi n.a.c.;06/05/2019
733;1;0;10,8;10,8;MARCATO MARTA ECONOMO COMUNALE; ;RIMBORSO SPESE POSTALI PER NR. 2 AVVISI RICEVUTE RITORNO RACCOMANDATE A.R. UFFICIO POLIZIA MUNICIPALE (BUONO 12).;06/05/2019;1721;0;102;1;Spese correnti;3;Acquisto di beni e servizi;2;Acquisto di servizi;5;Utenze e canoni;999;Utenze e canoni per altri servizi n.a.c.;06/05/2019
734;1;0;6,5;6,5;MARCATO MARTA ECONOMO COMUNALE; ;RIMBORSO SPESE POSTALI PER NR. 1 AVVISO RICEVUTA RITORNO RACCOMANDATA A.R. UFFICIO POLIZIA MUNICIPALE (BUONO 14).;06/05/2019;1721;0;104;1;Spese correnti;3;Acquisto di beni e servizi;2;Acquisto di servizi;5;Utenze e canoni;999;Utenze e canoni per altri servizi n.a.c.;06/05/2019
735;1;0;5,4;5,4;MARCATO MARTA ECONOMO COMUNALE; ;RIMBORSO SPESE POSTALI PER NR.1 AVVISO RICEVUTA RITORNO RACCOMANDATA A.R. UFFICIO POLIZIA LOCALE (BUONO 18).;06/05/2019;1721;0;121;1;Spese correnti;3;Acquisto di beni e servizi;2;Acquisto di servizi;5;Utenze e canoni;999;Utenze e canoni per altri servizi n.a.c.;06/05/2019
736;1;0;6,5;6,5;MARCATO MARTA ECONOMO COMUNALE; ;RIMBORSO SPESE POSTALI PER NR.1 AVVISO RICEVUTA RITORNO RACCOMANDATA A.R. UFFICIO POLIZIA LOCALE (BUONO 20).;06/05/2019;1721;0;129;1;Spese correnti;3;Acquisto di beni e servizi;2;Acquisto di servizi;5;Utenze e canoni;999;Utenze e canoni per altri servizi n.a.c.;06/05/2019
737;1;0;6,5;6,5;MARCATO MARTA ECONOMO COMUNALE; ;RIMBORSO SPESE POSTALI PER NR. 1 AVVISO RICEVUTA RITORNO RACCOMANDATA A.R. UFFICIO POLIZIA LOCALE (BUONO 22).;06/05/2019;1721;0;154;1;Spese correnti;3;Acquisto di beni e servizi;2;Acquisto di servizi;5;Utenze e canoni;999;Utenze e canoni per altri servizi n.a.c.;06/05/2019
738;1;0;5,4;5,4;MARCATO MARTA ECONOMO COMUNALE; ;RIMBORSO PER NR.1 AVVISO RICEVUTA RITORNO RACCOMANDATA A.R. UFFICIO POLIZIA LOCALE (BUONO 25).;06/05/2019;1721;0;158;1;Spese correnti;3;Acquisto di beni e servizi;2;Acquisto di servizi;5;Utenze e canoni;999;Utenze e canoni per altri servizi n.a.c.;06/05/2019
739;1;0;5,4;5,4;MARCATO MARTA ECONOMO COMUNALE; ;RIMBORSO SPESE POSTALI PER NR. 1 AVVISO RICEVUTE RITORNO RACCOMANDATE A.R. UFFICIO POLIZIA LOCALE (BUONO 26).;06/05/2019;1721;0;159;1;Spese correnti;3;Acquisto di beni e servizi;2;Acquisto di servizi;5;Utenze e canoni;999;Utenze e canoni per altri servizi n.a.c.;06/05/2019
740;1;0;5,4;5,4;MARCATO MARTA ECONOMO COMUNALE; ;RIMBORSO SPESE NR.1 AVVISO RICEVUTA RITORNO RACCOMANDATA A.R. UFFICIO POLIZIA LOCALE (BUONO 27).;06/05/2019;1721;0;163;1;Spese correnti;3;Acquisto di beni e servizi;2;Acquisto di servizi;5;Utenze e canoni;999;Utenze e canoni per altri servizi n.a.c.;06/05/2019
741;1;0;11,9;11,9;MARCATO MARTA ECONOMO COMUNALE; ;RIMBORSO SPESE POSTALI PER NR. 2 AVVISI RICEVUTE RITORNO RACCOMANDATE A.R. UFFICIO POLIZIA LOCALE (BUONO 29).;06/05/2019;1721;0;166;1;Spese correnti;3;Acquisto di beni e servizi;2;Acquisto di servizi;5;Utenze e canoni;999;Utenze e canoni per altri servizi n.a.c.;06/05/2019
742;1;0;6,5;6,5;MARCATO MARTA ECONOMO COMUNALE; ;RIMBORSO SPESE POSTALI NR. 1 AVVISO RICEVUTA RITORNO RACCOMANDATA A.R. UFFICIO POLIZIA LOCALE (BUONO 32).;06/05/2019;1721;0;170;1;Spese correnti;3;Acquisto di beni e servizi;2;Acquisto di servizi;5;Utenze e canoni;999;Utenze e canoni per altri servizi n.a.c.;06/05/2019
743;1;0;6,5;6,5;MARCATO MARTA ECONOMO COMUNALE; ;RIMBORSO PER SPESE POSTALI NR.1 AVVISO RICEVUTA RITORNO RACCOMANDATA A.R. UFFICIO POLIZIA LOCALE (BUONO 34).;06/05/2019;1721;0;178;1;Spese correnti;3;Acquisto di beni e servizi;2;Acquisto di servizi;5;Utenze e canoni;999;Utenze e canoni per altri servizi n.a.c.;06/05/2019
744;1;0;18,6;18,6;MARCATO MARTA ECONOMO COMUNALE; ;RIMBORSO PER ACQUISTO RINFRESCO FINE CORSO LETTURA BAMBIN (BUONO 17).;06/05/2019;3030;0;120;1;Spese correnti;3;Acquisto di beni e servizi;1;Acquisto di beni;2;Altri beni di consumo;11;Generi alimentari;06/05/2019
745;1;0;16,9;16,9;MARCATO MARTA ECONOMO COMUNALE; ;RIMBORSO PER ACQUISTO CHIAVETTA PER BIBLIOTECA (BUONO 31).;06/05/2019;3060;0;169;1;Spese correnti;3;Acquisto di beni e servizi;1;Acquisto di beni;2;Altri beni di consumo;999;Altri beni e materiali di consumo n.a.c.;06/05/2019
747;1;0;20;20;MARCATO MARTA ECONOMO COMUNALE; ;RIMBORSO PER FORNITURA CARBURANTE PUNTO BLU SERVIZI SOCIALI TARGA DH638SF (BUONO 21).;06/05/2019;5557;0;135;1;Spese correnti;3;Acquisto di beni e servizi;1;Acquisto di beni;2;Altri beni di consumo;2;Carburanti, combustibili e lubrificanti;06/05/2019
749;1;0;302,22;302,22;MINISTERO INTERNO; ;COMUNE DI CESSALTO - CORRISPETTIVO PER IL RILASCIO DI N.18 CARTE D'IDENTITA'  PERIODO 16 - 30 APRILE 2019.;06/05/2019;822;0;265;1;Spese correnti;4;Trasferimenti correnti;1;Trasferimenti correnti a Amministrazioni Pubbliche;1;Trasferimenti correnti a Amministrazioni Centrali;1;Trasferimenti correnti a Ministeri;06/05/2019
750;1;0;4,91;4,91;VODAFONE OMNITEL N.V;Z7B2733939;SALDO Fatt.n. AL07093897  del 19/04/2019 SPESE TELEFONICHE M2M GOLD FEBB/APR 2019;06/05/2019;340;0;105;1;Spese correnti;3;Acquisto di beni e servizi;2;Acquisto di servizi;5;Utenze e canoni;2;Telefonia mobile;06/05/2019
751;1;0;90;90;VODAFONE OMNITEL N.V;Z2B2739C42;SALDO Fatt.n. 1904215485  del 23/04/2019 RICARICHE N. 3 CELLULARI SERVIZIO;06/05/2019;340;0;105;1;Spese correnti;3;Acquisto di beni e servizi;2;Acquisto di servizi;5;Utenze e canoni;2;Telefonia mobile;06/05/2019
752;1;0;73,08;73,08;WIND TRE SPA;Z2B2739C42;SALDO Fatt.n. 2019E000003188  del 21/04/2019 SPESE CANONE ADSL PERIODO 1/4/19-31/5/19;06/05/2019;340;0;109;1;Spese correnti;3;Acquisto di beni e servizi;2;Acquisto di servizi;5;Utenze e canoni;1;Telefonia fissa;06/05/2019
753;1;0;64,05;64,05;WIND TRE SPA;Z2B2739C42;SALDO Fatt.n. 2019E000003187  del 21/04/2019 SPESE TELEFONICHE SIM FEBB/MARZO;06/05/2019;340;0;109;1;Spese correnti;3;Acquisto di beni e servizi;2;Acquisto di servizi;5;Utenze e canoni;1;Telefonia fissa;06/05/2019
754;1;0;50;50;KUWAIT PETROLEUM ITALIA SPA;Z3226E93D9;ACCONTO Fatt.n. PJ00983159  del 31/03/2019 FORNITURA CARBURANTE AUTOMEZZI MESE DI MARZO 2019;06/05/2019;1711;0;47;1;Spese correnti;3;Acquisto di beni e servizi;1;Acquisto di beni;2;Altri beni di consumo;2;Carburanti, combustibili e lubrificanti;06/05/2019
755;1;0;60;60;KUWAIT PETROLEUM ITALIA SPA;Z3226E93D9;ACCONTO Fatt.n. PJ00983159  del 31/03/2019 FORNITURA CARBURANTE AUTOMEZZI MESE DI MARZO 2019;06/05/2019;5100;0;48;1;Spese correnti;3;Acquisto di beni e servizi;1;Acquisto di beni;2;Altri beni di consumo;2;Carburanti, combustibili e lubrificanti;06/05/2019
756;1;0;50;50;KUWAIT PETROLEUM ITALIA SPA;Z3226E93D9;ACCONTO Fatt.n. PJ00983159  del 31/03/2019 FORNITURA CARBURANTE AUTOMEZZI MESE DI MARZO 2019;06/05/2019;5557;0;50;1;Spese correnti;3;Acquisto di beni e servizi;1;Acquisto di beni;2;Altri beni di consumo;2;Carburanti, combustibili e lubrificanti;06/05/2019
757;1;0;94,56;94,56;KUWAIT PETROLEUM ITALIA SPA;Z3226E93D9;SALDO Fatt.n. PJ00983159  del 31/03/2019 FORNITURA CARBURANTE AUTOMEZZI MESE DI MARZO 2019;06/05/2019;5911;0;51;1;Spese correnti;3;Acquisto di beni e servizi;1;Acquisto di beni;2;Altri beni di consumo;2;Carburanti, combustibili e lubrificanti;06/05/2019
758;1;0;292,8;292,8;I.S.E. ITALIANA SERVIZI ECOLOGICI SRL;Z6423382CF;ACCONTO Fatt.n. FS1/27  del 02/04/2019 SERVIZIO DI DERATTIZZAZIONE E DISINFESTAZIONE NEL TERRITORIO COMUNALE.;06/05/2019;5910;0;248;1;Spese correnti;3;Acquisto di beni e servizi;2;Acquisto di servizi;9;Manutenzione ordinaria e riparazioni;4;Manutenzione ordinaria e riparazioni di impianti e macchinari;06/05/2019
759;1;0;585,6;585,6;I.S.E. ITALIANA SERVIZI ECOLOGICI SRL;Z6423382CF;SALDO Fatt.n. FS1/27  del 02/04/2019 SERVIZIO DI DERATTIZZAZIONE E DISINFESTAZIONE NEL TERRITORIO COMUNALE.;06/05/2019;5910;0;248;1;Spese correnti;3;Acquisto di beni e servizi;2;Acquisto di servizi;9;Manutenzione ordinaria e riparazioni;4;Manutenzione ordinaria e riparazioni di impianti e macchinari;06/05/2019
760;1;0;1.926,48;1.926,48;EOS COOPERATIVA SOCIALE ARL;Z612415E51;ACCONTO Fatt.n. 2019240000031  del 31/03/2019 SERVIZIO MANUTENZIONE PARCHI E GIARDINI, LAVORI VARI GENNAIOP/MARZO;06/05/2019;5101;0;718;1;Spese correnti;3;Acquisto di beni e servizi;2;Acquisto di servizi;9;Manutenzione ordinaria e riparazioni;4;Manutenzione ordinaria e riparazioni di impianti e macchinari;06/05/2019
761;1;0;686,76;686,76;EOS COOPERATIVA SOCIALE ARL;Z612415E51;SALDO Fatt.n. 2019240000031  del 31/03/2019 SERVIZIO MANUTENZIONE PARCHI E GIARDINI, LAVORI VARI GENNAIOP/MARZO;06/05/2019;5910;0;719;1;Spese correnti;3;Acquisto di beni e servizi;2;Acquisto di servizi;9;Manutenzione ordinaria e riparazioni;4;Manutenzione ordinaria e riparazioni di impianti e macchinari;06/05/2019
762;1;0;74,37;74,37;TIM SPA;ZB72739CBC;SALDO Fatt.n. 8E00307768  del 05/04/2019 SPESE TELEFONICHE FEBBRAIO-MARZO UTENZA ASCENSORE VILLA MARIA;06/05/2019;1080;0;110;1;Spese correnti;3;Acquisto di beni e servizi;2;Acquisto di servizi;5;Utenze e canoni;1;Telefonia fissa;06/05/2019
763;1;0;89,76;89,76;TIM SPA;ZB72739CBC;SALDO Fatt.n. 8E00303594  del 05/04/2019 SPESE TELEFONICHE FEBBRAIO-MARZO UTENZA CENTRO ANZIANI;06/05/2019;1080;0;110;1;Spese correnti;3;Acquisto di beni e servizi;2;Acquisto di servizi;5;Utenze e canoni;1;Telefonia fissa;06/05/2019
764;1;0;194,54;194,54;TIM SPA;ZB72739CBC;SALDO Fatt.n. 8E00308443  del 05/04/2019 SPESE TELEFONICHE FEBBRAIO-MARZO UTENZA SC.MEDIA;06/05/2019;2510;0;112;1;Spese correnti;3;Acquisto di beni e servizi;2;Acquisto di servizi;5;Utenze e canoni;1;Telefonia fissa;06/05/2019
765;1;0;68,08;68,08;TIM SPA;ZB72739CBC;SALDO Fatt.n. 8E00306327  del 05/04/2019 SPESE TELEFONICHE FEBBRAIO-MARZO UTENZA ASCENSORE SC.MEDIA;06/05/2019;2510;0;112;1;Spese correnti;3;Acquisto di beni e servizi;2;Acquisto di servizi;5;Utenze e canoni;1;Telefonia fissa;06/05/2019
766;1;0;213,57;213,57;TIM SPA;ZB72739CBC;SALDO Fatt.n. 8E00306070  del 05/04/2019 SPESE TELEFONICHE FEBBRAIO-MARZO UTENZA BIBLIOTECA;06/05/2019;3062;0;113;1;Spese correnti;3;Acquisto di beni e servizi;2;Acquisto di servizi;5;Utenze e canoni;1;Telefonia fissa;06/05/2019
767;1;0;338,26;338,26;OMESSO NOMINATIVO NEL RISPETTO DELLA NORMATIVA SULLA PROTEZIONE DATI PERSONALI; ;LIQUIDAZIONE PIANO STRAORDINARIO DI INTERVENTI DI SOSTEGNO ECONOMICO ALLE FAMIGLIE - BENEFICI DI CUI AL BANDO N.1829 DEL 18-02-2019.;08/05/2019;5656;0;762;1;Spese correnti;4;Trasferimenti correnti;2;Trasferimenti correnti a Famiglie;2;Interventi assistenziali;999;Altri assegni e sussidi assistenziali;08/05/2019
768;1;0;332,86;332,86;OMESSO NOMINATIVO NEL RISPETTO DELLA NORMATIVA SULLA PROTEZIONE DATI PERSONALI; ;LIQUIDAZIONE PIANO STRAORDINARIO DI INTERVENTI DI SOSTEGNO ECONOMICO ALLE FAMIGLIE - BENEFICI DI CUI AL BANDO N.1829 DEL 18-02-2019.;08/05/2019;5656;0;762;1;Spese correnti;4;Trasferimenti correnti;2;Trasferimenti correnti a Famiglie;2;Interventi assistenziali;999;Altri assegni e sussidi assistenziali;08/05/2019
769;1;0;91,64;91,64;OMESSO NOMINATIVO NEL RISPETTO DELLA NORMATIVA SULLA PROTEZIONE DATI PERSONALI; ;LIQUIDAZIONE PIANO STRAORDINARIO DI INTERVENTI DI SOSTEGNO ECONOMICO ALLE FAMIGLIE - BENEFICI DI CUI AL BANDO N.1829 DEL 18-02-2019.;08/05/2019;5656;0;762;1;Spese correnti;4;Trasferimenti correnti;2;Trasferimenti correnti a Famiglie;2;Interventi assistenziali;999;Altri assegni e sussidi assistenziali;08/05/2019
770;1;0;53,2;53,2;OMESSO NOMINATIVO NEL RISPETTO DELLA NORMATIVA SULLA PROTEZIONE DATI PERSONALI; ;LIQUIDAZIONE PIANO STRAORDINARIO DI INTERVENTI DI SOSTEGNO ECONOMICO ALLE FAMIGLIE - BENEFICI DI CUI AL BANDO N.1829 DEL 18-02-2019.;08/05/2019;5656;0;762;1;Spese correnti;4;Trasferimenti correnti;2;Trasferimenti correnti a Famiglie;2;Interventi assistenziali;999;Altri assegni e sussidi assistenziali;08/05/2019
771;1;0;446,8;446,8;OMESSO NOMINATIVO NEL RISPETTO DELLA NORMATIVA SULLA PROTEZIONE DATI PERSONALI; ;LIQUIDAZIONE PIANO STRAORDINARIO DI INTERVENTI DI SOSTEGNO ECONOMICO ALLE FAMIGLIE - BENEFICI DI CUI AL BANDO N.1829 DEL 18-02-2019.;08/05/2019;5650;0;778;1;Spese correnti;4;Trasferimenti correnti;2;Trasferimenti correnti a Famiglie;2;Interventi assistenziali;999;Altri assegni e sussidi assistenziali;08/05/2019
772;1;0;433,22;433,22;OMESSO NOMINATIVO NEL RISPETTO DELLA NORMATIVA SULLA PROTEZIONE DATI PERSONALI; ;LIQUIDAZIONE PIANO STRAORDINARIO DI INTERVENTI DI SOSTEGNO ECONOMICO ALLE FAMIGLIE - BENEFICI DI CUI AL BANDO N.1829 DEL 18-02-2019.;08/05/2019;5650;0;778;1;Spese correnti;4;Trasferimenti correnti;2;Trasferimenti correnti a Famiglie;2;Interventi assistenziali;999;Altri assegni e sussidi assistenziali;08/05/2019
773;1;0;500;500;OMESSO NOMINATIVO NEL RISPETTO DELLA NORMATIVA SULLA PROTEZIONE DATI PERSONALI; ;LIQUIDAZIONE PIANO STRAORDINARIO DI INTERVENTI DI SOSTEGNO ECONOMICO ALLE FAMIGLIE - BENEFICI DI CUI AL BANDO N.1829 DEL 18-02-2019.;08/05/2019;5650;0;778;1;Spese correnti;4;Trasferimenti correnti;2;Trasferimenti correnti a Famiglie;2;Interventi assistenziali;999;Altri assegni e sussidi assistenziali;08/05/2019
774;1;0;176,55;176,55;OMESSO NOMINATIVO NEL RISPETTO DELLA NORMATIVA SULLA PROTEZIONE DATI PERSONALI; ;LIQUIDAZIONE PIANO STRAORDINARIO DI INTERVENTI DI SOSTEGNO ECONOMICO ALLE FAMIGLIE - BENEFICI DI CUI AL BANDO N.1829 DEL 18-02-2019.;08/05/2019;5650;0;778;1;Spese correnti;4;Trasferimenti correnti;2;Trasferimenti correnti a Famiglie;2;Interventi assistenziali;999;Altri assegni e sussidi assistenziali;08/05/2019
775;1;0;55,21;55,21;OMESSO NOMINATIVO NEL RISPETTO DELLA NORMATIVA SULLA PROTEZIONE DATI PERSONALI; ;LIQUIDAZIONE PIANO STRAORDINARIO DI INTERVENTI DI SOSTEGNO ECONOMICO ALLE FAMIGLIE - BENEFICI DI CUI AL BANDO N.1829 DEL 18-02-2019.;08/05/2019;5650;0;778;1;Spese correnti;4;Trasferimenti correnti;2;Trasferimenti correnti a Famiglie;2;Interventi assistenziali;999;Altri assegni e sussidi assistenziali;08/05/2019
776;1;0;400;400;OMESSO NOMINATIVO NEL RISPETTO DELLA NORMATIVA SULLA PROTEZIONE DATI PERSONALI; ;LIQUIDAZIONE PIANO STRAORDINARIO DI INTERVENTI DI SOSTEGNO ECONOMICO ALLE FAMIGLIE - BENEFICI DI CUI AL BANDO N.1829 DEL 18-02-2019.;08/05/2019;5650;0;778;1;Spese correnti;4;Trasferimenti correnti;2;Trasferimenti correnti a Famiglie;2;Interventi assistenziali;999;Altri assegni e sussidi assistenziali;08/05/2019
777;1;0;247,67;247,67;OMESSO NOMINATIVO NEL RISPETTO DELLA NORMATIVA SULLA PROTEZIONE DATI PERSONALI; ;LIQUIDAZIONE PIANO STRAORDINARIO DI INTERVENTI DI SOSTEGNO ECONOMICO ALLE FAMIGLIE - BENEFICI DI CUI AL BANDO N.1829 DEL 18-02-2019.;08/05/2019;5650;0;778;1;Spese correnti;4;Trasferimenti correnti;2;Trasferimenti correnti a Famiglie;2;Interventi assistenziali;999;Altri assegni e sussidi assistenziali;08/05/2019
778;1;0;41,28;41,28;OMESSO NOMINATIVO NEL RISPETTO DELLA NORMATIVA SULLA PROTEZIONE DATI PERSONALI; ;LIQUIDAZIONE PIANO STRAORDINARIO DI INTERVENTI DI SOSTEGNO ECONOMICO ALLE FAMIGLIE - BENEFICI DI CUI AL BANDO N.1829 DEL 18-02-2019.;08/05/2019;5650;0;778;1;Spese correnti;4;Trasferimenti correnti;2;Trasferimenti correnti a Famiglie;2;Interventi assistenziali;999;Altri assegni e sussidi assistenziali;08/05/2019
779;1;0;322,52;322,52;OMESSO NOMINATIVO NEL RISPETTO DELLA NORMATIVA SULLA PROTEZIONE DATI PERSONALI; ;LIQUIDAZIONE PIANO STRAORDINARIO DI INTERVENTI DI SOSTEGNO ECONOMICO ALLE FAMIGLIE - BENEFICI DI CUI AL BANDO N.1829 DEL 18-02-2019.;08/05/2019;5650;0;778;1;Spese correnti;4;Trasferimenti correnti;2;Trasferimenti correnti a Famiglie;2;Interventi assistenziali;999;Altri assegni e sussidi assistenziali;08/05/2019
780;1;0;500;500;OMESSO NOMINATIVO NEL RISPETTO DELLA NORMATIVA SULLA PROTEZIONE DATI PERSONALI; ;LIQUIDAZIONE PIANO STRAORDINARIO DI INTERVENTI DI SOSTEGNO ECONOMICO ALLE FAMIGLIE - BENEFICI DI CUI AL BANDO N.1829 DEL 18-02-2019.;08/05/2019;5650;0;778;1;Spese correnti;4;Trasferimenti correnti;2;Trasferimenti correnti a Famiglie;2;Interventi assistenziali;999;Altri assegni e sussidi assistenziali;08/05/2019
781;1;0;600;600;OMESSO NOMINATIVO NEL RISPETTO DELLA NORMATIVA SULLA PROTEZIONE DATI PERSONALI; ;LIQUIDAZIONE PIANO STRAORDINARIO DI INTERVENTI DI SOSTEGNO ECONOMICO ALLE FAMIGLIE - BENEFICI DI CUI AL BANDO N.1829 DEL 18-02-2019.;08/05/2019;5650;0;778;1;Spese correnti;4;Trasferimenti correnti;2;Trasferimenti correnti a Famiglie;2;Interventi assistenziali;999;Altri assegni e sussidi assistenziali;08/05/2019
792;1;0;98,04;98,04;TIM SPA;ZB72739CBC;SALDO Fatt.n. 8E00308427  del 05/04/2019 SPESE TELEFONICHE FEBBRAIO-MARZO UTENZA MUNICIPIO-327502;09/05/2019;340;0;108;1;Spese correnti;3;Acquisto di beni e servizi;2;Acquisto di servizi;5;Utenze e canoni;1;Telefonia fissa;09/05/2019
793;1;0;157,12;157,12;TIM SPA;ZB72739CBC;SALDO Fatt.n. 8E00304660  del 05/04/2019 SPESE TELEFONICHE FEBBRAIO-MARZO UTENZA MUNICIPIO-327110;09/05/2019;340;0;108;1;Spese correnti;3;Acquisto di beni e servizi;2;Acquisto di servizi;5;Utenze e canoni;1;Telefonia fissa;09/05/2019
794;1;0;114,2;114,2;TIM SPA;ZB72739CBC;SALDO Fatt.n. 8E00303939  del 05/04/2019 SPESE TELEFONICHE FEBBRAIO-MARZO UTENZA FAX MUNICIPIO;09/05/2019;340;0;108;1;Spese correnti;3;Acquisto di beni e servizi;2;Acquisto di servizi;5;Utenze e canoni;1;Telefonia fissa;09/05/2019
795;1;0;291,78;291,78;TIM SPA;ZB72739CBC;SALDO Fatt.n. 8E00304139  del 05/04/2019 SPESE TELEFONICHE FEBBRAIO-MARZO UTENZA SC.ELEMENTARI;09/05/2019;2340;0;111;1;Spese correnti;3;Acquisto di beni e servizi;2;Acquisto di servizi;5;Utenze e canoni;1;Telefonia fissa;09/05/2019
796;1;0;77,01;77,01;TIM SPA;ZB72739CBC;SALDO Fatt.n. 8E00307921  del 05/04/2019 SPESE TELEFONICHE FEBBRAIO-MARZO UTENZA ASCENSORE SC.ELEMENTARI;09/05/2019;2340;0;111;1;Spese correnti;3;Acquisto di beni e servizi;2;Acquisto di servizi;5;Utenze e canoni;1;Telefonia fissa;09/05/2019
797;1;0;78,54;78,54;SPIGAS SRL;Z2D21ED429;SALDO Fatt.n. PA010940/2019  del 19/04/2019 FORNITURA GAS CENTRO ANZIANI NOV18/FEB19;09/05/2019;1080;0;51;1;Spese correnti;3;Acquisto di beni e servizi;2;Acquisto di servizi;5;Utenze e canoni;6;Gas;09/05/2019
798;1;0;364,5;364,5;SPIGAS SRL;Z2D21ED429;ACCONTO Fatt.n. PA010939/2019  del 19/04/2019 FORNITURA GAS VILLA MARIA MESE DI MARZO;09/05/2019;1080;0;51;1;Spese correnti;3;Acquisto di beni e servizi;2;Acquisto di servizi;5;Utenze e canoni;6;Gas;09/05/2019
799;1;0;108,08;108,08;SPIGAS SRL;Z2D21ED429;SALDO Fatt.n. PA010939/2019  del 19/04/2019 FORNITURA GAS VILLA MARIA MESE DI MARZO;09/05/2019;1080;0;270;1;Spese correnti;3;Acquisto di beni e servizi;2;Acquisto di servizi;5;Utenze e canoni;6;Gas;09/05/2019
800;1;0;12.766,59;12.766,59;EURO TOURS S.R.L.;65873873B8;SALDO Fatt.n. 00180  del 30/04/2019 SERVIZIO TRASPORTO SCOLASTICO MESE DI APRILE 2018;09/05/2019;2720;0;373;1;Spese correnti;3;Acquisto di beni e servizi;2;Acquisto di servizi;15;Contratti di servizio pubblico;2;Contratti di servizio di trasporto scolastico;09/05/2019
801;1;0;168,28;168,28;POSTE ITALIANE SPA;ZE221F836D;ACCONTO Fatt.n. 8719107074  del 08/04/2019 SPESE POSTALI MESE DI FEBBRAIO 2019;09/05/2019;340;0;685;1;Spese correnti;3;Acquisto di beni e servizi;2;Acquisto di servizi;5;Utenze e canoni;999;Utenze e canoni per altri servizi n.a.c.;09/05/2019
802;1;0;949,7;949,7;POSTE ITALIANE SPA;Z442805C1D;SALDO Fatt.n. 8719107074  del 08/04/2019 SPESE POSTALI MESE DI FEBBRAIO 2019;09/05/2019;338;0;237;1;Spese correnti;3;Acquisto di beni e servizi;2;Acquisto di servizi;16;Servizi amministrativi;2;Spese postali;09/05/2019
803;1;0;2.733,08;2.733,08;AMMINISTRATORI C/INDENNITA' DI CARICA; ;mag-19;10/05/2019;20;0;3;1;Spese correnti;3;Acquisto di beni e servizi;2;Acquisto di servizi;1;Organi e incarichi istituzionali dell'amministrazione;1;Organi istituzionali dell'amministrazione - Indennità;10/05/2019
854;1;0;386,17;386,17;MINISTERO INTERNO; ;COMUNE DI CESSALTO - CORRISPETTIVO PER IL RILASCIO DI N. 23 CARTE D'IDENTITA' ELETTRONICHE PERIODO 1-15 MAGGIO 2019.;16/05/2019;822;0;284;1;Spese correnti;4;Trasferimenti correnti;1;Trasferimenti correnti a Amministrazioni Pubbliche;1;Trasferimenti correnti a Amministrazioni Centrali;1;Trasferimenti correnti a Ministeri;16/05/2019
855;1;0;2.480,17;2.480,17;GLOBAL ENERGY S.R.L.; ;SALDO Fatt.n. 0095  del 17/04/2019 PROVENTI CONTO ENERGIA IMPIANTO FOTOVOLTAICO SCUOLE ELEMENTARI;16/05/2019;2342;0;287;1;Spese correnti;4;Trasferimenti correnti;3;Trasferimenti correnti a Imprese;99;Trasferimenti correnti a altre imprese;999;Trasferimenti correnti a altre imprese;16/05/2019
856;1;0;3.182,20;3.182,20;GLOBAL ENERGY S.R.L.; ;SALDO Fatt.n. 0096  del 17/04/2019 PROVENTI CONTO ENERGIA IMP.FOTOVOLTAICO PALAZZETTO DELLO SPORT;16/05/2019;5291;0;286;1;Spese correnti;4;Trasferimenti correnti;3;Trasferimenti correnti a Imprese;99;Trasferimenti correnti a altre imprese;999;Trasferimenti correnti a altre imprese;16/05/2019
857;1;0;1.675,05;1.675,05;SQUILLANTE FELICE ABBIAGLIAMENTO ED ACCESSORI;Z3F2509A48;SALDO Fatt.n. E2019043  del 13/04/2019 FORNITURA VESTIARIO ED ACCESSORI PER POLIZIA LOCALE;21/05/2019;1750;0;525;1;Spese correnti;3;Acquisto di beni e servizi;1;Acquisto di beni;2;Altri beni di consumo;4;Vestiario;21/05/2019
859;1;0;2.271,15;2.271,15;PETRACCO ALIANO;ZEB27374D3;SALDO Fatt.n. 01/01/0000006  del 26/04/2019 PRESTAZIONI PROFESSIONALI PROGETTO ESECUTIVO E SICUREZZA INTERVENTI MASSA IN SICUREZZA STRADE E PATRIMONIO COMUNALE;22/05/2019;640;0;115;1;Spese correnti;3;Acquisto di beni e servizi;2;Acquisto di servizi;11;Prestazioni professionali e specialistiche;999;Altre prestazioni professionali e specialistiche n.a.c.;22/05/2019
861;1;0;439,82;439,82;DOLOMITI ENERGIA SPA;7142067C20;SALDO Fatt.n. 41901704059  del 30/04/2019 ENERGIA ELETTRICA PERIODO 01/03/2019 31/03/2019 UTENZA MUNICIPIO;23/05/2019;340;0;129;1;Spese correnti;3;Acquisto di beni e servizi;2;Acquisto di servizi;5;Utenze e canoni;4;Energia elettrica;23/05/2019
862;1;0;108,02;108,02;DOLOMITI ENERGIA SPA;7142067C20;SALDO Fatt.n. 41901704055  del 30/04/2019 ENERGIA ELETTRICA PERIODO 01/03/2019 31/03/2019 UTENZA IMPIANTO IRRIGAZIONE 2;23/05/2019;1130;0;131;1;Spese correnti;3;Acquisto di beni e servizi;2;Acquisto di servizi;5;Utenze e canoni;4;Energia elettrica;23/05/2019
863;1;0;242,18;242,18;DOLOMITI ENERGIA SPA;7142067C20;SALDO Fatt.n. 41901704052  del 30/04/2019 ENERGIA ELETTRICA PERIODO 01/03/2019 31/03/2019 UTENZA SCUOLE ELEMENTARI;23/05/2019;2340;0;136;1;Spese correnti;3;Acquisto di beni e servizi;2;Acquisto di servizi;5;Utenze e canoni;4;Energia elettrica;23/05/2019
864;1;0;463,6;463,6;DOLOMITI ENERGIA SPA;7142067C20;SALDO Fatt.n. 41901704060  del 30/04/2019 ENERGIA ELETTRICA PERIODO 01/03/2019 31/03/2019 UTENZA SCUOLA MEDIA;23/05/2019;2510;0;132;1;Spese correnti;3;Acquisto di beni e servizi;2;Acquisto di servizi;5;Utenze e canoni;4;Energia elettrica;23/05/2019
865;1;0;62,32;62,32;DOLOMITI ENERGIA SPA;7142067C20;SALDO Fatt.n. 41901704062  del 30/04/2019 ENERGIA ELETTRICA PERIODO 01/03/2019 31/03/2019 UTENZA CIMITERO CESSALTO;23/05/2019;4140;0;133;1;Spese correnti;3;Acquisto di beni e servizi;2;Acquisto di servizi;5;Utenze e canoni;4;Energia elettrica;23/05/2019
866;1;0;38,74;38,74;DOLOMITI ENERGIA SPA;7142067C20;SALDO Fatt.n. 41901704063  del 30/04/2019 ENERGIA ELETTRICA PERIODO 01/03/2019 31/03/2019 UTENZA CIMITERO S.ANASTASIO;23/05/2019;4140;0;133;1;Spese correnti;3;Acquisto di beni e servizi;2;Acquisto di servizi;5;Utenze e canoni;4;Energia elettrica;23/05/2019
867;1;0;48,63;48,63;DOLOMITI ENERGIA SPA;7142067C20;SALDO Fatt.n. 41901704061  del 30/04/2019 ENERGIA ELETTRICA PERIODO 01/03/2019 31/03/2019 UTENZA CIMITERO S.M.DI CAMPAGNA;23/05/2019;4140;0;133;1;Spese correnti;3;Acquisto di beni e servizi;2;Acquisto di servizi;5;Utenze e canoni;4;Energia elettrica;23/05/2019
868;1;0;590,52;590,52;DOLOMITI ENERGIA SPA;7142067C20;SALDO Fatt.n. 41901704064  del 30/04/2019 ENERGIA ELETTRICA 01/03/2019 31/03/2019 UTENZA PALAZZETTO DELLO SPORT;23/05/2019;5290;0;134;1;Spese correnti;3;Acquisto di beni e servizi;2;Acquisto di servizi;5;Utenze e canoni;4;Energia elettrica;23/05/2019
869;1;0;124,51;124,51;DOLOMITI ENERGIA SPA;7142067C20;SALDO Fatt.n. 41901706860  del 30/04/2019 ENERGIA ELETTRICA 01/03/2019 31/03/2019 UTENZA P.I. PIAZZA MARTIRI DELLA LIBERTA';23/05/2019;6000;0;135;1;Spese correnti;3;Acquisto di beni e servizi;2;Acquisto di servizi;5;Utenze e canoni;4;Energia elettrica;23/05/2019
870;1;0;403,15;403,15;DOLOMITI ENERGIA SPA;7142067C20;SALDO Fatt.n. 41901704056  del 30/04/2019 ENERGIA ELETTRICA PERIODO 01/03/2019 31/03/2019 UTENZA P.I. VIA MAGGIORE;23/05/2019;6000;0;135;1;Spese correnti;3;Acquisto di beni e servizi;2;Acquisto di servizi;5;Utenze e canoni;4;Energia elettrica;23/05/2019
871;1;0;7.612,87;7.612,87;DOLOMITI ENERGIA SPA;7142067C20;SALDO Fatt.n. 41901696781  del 30/04/2019 ENERGIA ELETTRICA PERIODO 01/03/2019 31/03/2019 UTENZA P.I.;23/05/2019;6000;0;135;1;Spese correnti;3;Acquisto di beni e servizi;2;Acquisto di servizi;5;Utenze e canoni;4;Energia elettrica;23/05/2019
872;1;0;88,14;88,14;DOLOMITI ENERGIA SPA;7142067C20;SALDO Fatt.n. 41901706859  del 30/04/2019 ENERGIA ELETTRICA PERIODO 01/03/2019 31/03/2019 UTENZA P.I. P.ZZA MARTIRI;23/05/2019;6000;0;135;1;Spese correnti;3;Acquisto di beni e servizi;2;Acquisto di servizi;5;Utenze e canoni;4;Energia elettrica;23/05/2019
873;1;0;33,27;33,27;DOLOMITI ENERGIA SPA;7142067C20;SALDO Fatt.n. 41901704049  del 30/04/2019 ENERGIA ELETTRICA PERIODO 01/03/2019 31/03/2019 UTENZA SERVIZIO SCALE VIA CHIESA;23/05/2019;1080;0;130;1;Spese correnti;3;Acquisto di beni e servizi;2;Acquisto di servizi;5;Utenze e canoni;4;Energia elettrica;23/05/2019
874;1;0;74,88;74,88;DOLOMITI ENERGIA SPA;7142067C20;SALDO Fatt.n. 41901704058  del 30/04/2019 ENERGIA ELETTRICA PERIODO 01/03/2019 31/03/2019 UTENZA MAGAZZINO P.ZZA MARTIRI;23/05/2019;1080;0;130;1;Spese correnti;3;Acquisto di beni e servizi;2;Acquisto di servizi;5;Utenze e canoni;4;Energia elettrica;23/05/2019
875;1;0;47,38;47,38;DOLOMITI ENERGIA SPA;7142067C20;SALDO Fatt.n. 41901704051  del 30/04/2019 ENERGIA ELETTRICA PERIODO 01/03/2019 31/03/2019 UTENZA AMBULATORIO VIA CHIESA;23/05/2019;1080;0;130;1;Spese correnti;3;Acquisto di beni e servizi;2;Acquisto di servizi;5;Utenze e canoni;4;Energia elettrica;23/05/2019
876;1;0;40,35;40,35;DOLOMITI ENERGIA SPA;7142067C20;SALDO Fatt.n. 41901704053  del 30/04/2019 ENERGIA ELETTRICA PERIODO 01/03/2019 31/03/2019 UTENZA SEDE AVIS;23/05/2019;1080;0;130;1;Spese correnti;3;Acquisto di beni e servizi;2;Acquisto di servizi;5;Utenze e canoni;4;Energia elettrica;23/05/2019
877;1;0;475,47;475,47;DOLOMITI ENERGIA SPA;7142067C20;SALDO Fatt.n. 41901704048  del 30/04/2019 ENERGIA ELETTRICA PERIODO 01/03/2019 31/03/2019 UTENZA VILLA MARIA;23/05/2019;1080;0;130;1;Spese correnti;3;Acquisto di beni e servizi;2;Acquisto di servizi;5;Utenze e canoni;4;Energia elettrica;23/05/2019
878;1;0;122,98;122,98;DOLOMITI ENERGIA SPA;7142067C20;SALDO Fatt.n. 41901704054  del 30/04/2019 ENERGIA ELETTRICA PERIODO 01/03/2019 31/03/2019 UTENZA CENTRO SOC. E BIBLIOTECA;23/05/2019;1080;0;130;1;Spese correnti;3;Acquisto di beni e servizi;2;Acquisto di servizi;5;Utenze e canoni;4;Energia elettrica;23/05/2019
879;1;0;59,5;59,5;DOLOMITI ENERGIA SPA;7142067C20;SALDO Fatt.n. 41901704047  del 30/04/2019 ENERGIA ELETTRICA 01/03/2019 31/03/2019 UTENZA CENTRO ANZIANI;23/05/2019;1080;0;130;1;Spese correnti;3;Acquisto di beni e servizi;2;Acquisto di servizi;5;Utenze e canoni;4;Energia elettrica;23/05/2019
880;1;0;37,59;37,59;DOLOMITI ENERGIA SPA;7142067C20;SALDO Fatt.n. 41901704050  del 30/04/2019 ENERGIA ELETTRICA 01/03/2019 31/03/2019 UTENZA CENTRO SOCIALE VIA CHIESA;23/05/2019;1080;0;130;1;Spese correnti;3;Acquisto di beni e servizi;2;Acquisto di servizi;5;Utenze e canoni;4;Energia elettrica;23/05/2019
881;1;0;185,14;185,14;DOLOMITI ENERGIA SPA;7142067C20;SALDO Fatt.n. 41901704057  del 30/04/2019 ENERGIA ELETTRICA PERIODO 01/03/2019 31/03/2019 UTENZA EX SC.ELEMENTARE CAPOLUOGO;23/05/2019;1080;0;130;1;Spese correnti;3;Acquisto di beni e servizi;2;Acquisto di servizi;5;Utenze e canoni;4;Energia elettrica;23/05/2019
882;1;0;164,73;164,73;BENVEGNU' AGRICOLTURA SAS; ;ACCONTO Fatt.n. 1/05  del 30/04/2019 FORNITURA PRODOTTI;27/05/2019;5100;0;238;1;Spese correnti;3;Acquisto di beni e servizi;1;Acquisto di beni;2;Altri beni di consumo;999;Altri beni e materiali di consumo n.a.c.;27/05/2019
883;1;0;100;100;BENVEGNU' AGRICOLTURA SAS; ;SALDO Fatt.n. 1/05  del 30/04/2019 FORNITURA PRODOTTI;27/05/2019;5911;0;239;1;Spese correnti;3;Acquisto di beni e servizi;1;Acquisto di beni;2;Altri beni di consumo;999;Altri beni e materiali di consumo n.a.c.;27/05/2019
